Workbook

Sheet RESUMO
A5: INSTITUTO FEDERAL DE EDUCAÇÃO, CIÊNCIA E TECNOLOGIA DE MATO GROSSO
A6: =ORÇAMENTO!A6 -> CAMPUS ALTA FLORESTA
A9: RESUMO
A10: OBRA: | B10: =ORÇAMENTO!B10 -> PAVIMENTAÇÃO
A11: ITEM | B11: DESCRIÇÃO / ETAPA | C11: TOTAL
C12: VALOR (R$) | D12: (%)
A13: 1.0 | B13: =IFERROR(INDEX(ORÇAMENTO!$D:$D,MATCH($A13,ORÇAMENTO!$A:$A,0)),"") -> ADMINISTRAÇÃO DA OBRA | C13: =IFERROR(INDEX(ORÇAMENTO!$I:$I,MATCH($A13,ORÇAMENTO!$A:$A,0)),0) -> 56563.37 | D13: =IFERROR(C13/$C$29,"") -> 0.06652840576
A15: 2.0 | B15: =IFERROR(INDEX(ORÇAMENTO!$D:$D,MATCH($A15,ORÇAMENTO!$A:$A,0)),"") -> SERVIÇOS PRELIMINARES | C15: =IFERROR(INDEX(ORÇAMENTO!$I:$I,MATCH($A15,ORÇAMENTO!$A:$A,0)),0) -> 33040.56 | D15: =IFERROR(C15/$C$29,"") -> 0.03886147134
A17: 3.0 | B17: =IFERROR(INDEX(ORÇAMENTO!$D:$D,MATCH($A17,ORÇAMENTO!$A:$A,0)),"") -> MOVIMENTAÇÃO DE TERRA | C17: =IFERROR(INDEX(ORÇAMENTO!$I:$I,MATCH($A17,ORÇAMENTO!$A:$A,0)),0) -> 46275.07 | D17: =IFERROR(C17/$C$29,"") -> 0.05442756741
A19: 4.0 | B19: =IFERROR(INDEX(ORÇAMENTO!$D:$D,MATCH($A19,ORÇAMENTO!$A:$A,0)),"") -> DRENAGEM DE ÁGUAS PLUVIAIS | C19: =IFERROR(INDEX(ORÇAMENTO!$I:$I,MATCH($A19,ORÇAMENTO!$A:$A,0)),0) -> 26007.3 | D19: =IFERROR(C19/$C$29,"") -> 0.03058912874
A21: 5.0 | B21: =IFERROR(INDEX(ORÇAMENTO!$D:$D,MATCH($A21,ORÇAMENTO!$A:$A,0)),"") -> PAVIMENTAÇÃO DE VIAS | C21: =IFERROR(INDEX(ORÇAMENTO!$I:$I,MATCH($A21,ORÇAMENTO!$A:$A,0)),0) -> 421943.42 | D21: =IFERROR(C21/$C$29,"") -> 0.496279183
A23: 6.0 | B23: =IFERROR(INDEX(ORÇAMENTO!$D:$D,MATCH($A23,ORÇAMENTO!$A:$A,0)),"") -> CONTROLE TECNOLÓGICO | C23: =IFERROR(INDEX(ORÇAMENTO!$I:$I,MATCH($A23,ORÇAMENTO!$A:$A,0)),0) -> 6795.4 | D23: =IFERROR(C23/$C$29,"") -> 0.007992577679
A25: 7.0 | B25: =IFERROR(INDEX(ORÇAMENTO!$D:$D,MATCH($A25,ORÇAMENTO!$A:$A,0)),"") -> PASSEIO PÚBLICO COM ACESSIBILIDADE | C25: =IFERROR(INDEX(ORÇAMENTO!$I:$I,MATCH($A25,ORÇAMENTO!$A:$A,0)),0) -> 246485.07 | D25: =IFERROR(C25/$C$29,"") -> 0.2899095077
A27: 8.0 | B27: =IFERROR(INDEX(ORÇAMENTO!$D:$D,MATCH($A27,ORÇAMENTO!$A:$A,0)),"") -> SINALIZAÇÃO VIÁRIA | C27: =IFERROR(INDEX(ORÇAMENTO!$I:$I,MATCH($A27,ORÇAMENTO!$A:$A,0)),0) -> 13103.63 | D27: =IFERROR(C27/$C$29,"") -> 0.01541215832
B29: TOTAL | C29: =SUM(C13:C28) -> 850213.82 | D29: =SUM(D13:D28) -> 1

Sheet ORÇAMENTO
A5: INSTITUTO FEDERAL DE EDUCAÇÃO, CIÊNCIA E TECNOLOGIA DE MATO GROSSO
A6: CAMPUS ALTA FLORESTA
A8: PLANILHA DE ESTIMATIVA DE CUSTO
A9: LOCAL: | B9: ALF | E9: SICRO3 | F9: 2022-10-01 | H9: BDI: | I9: =BDI -> 0.2223
A10: OBRA: | B10: PAVIMENTAÇÃO
D11: TABELA SINAPI - DATA DE EMISSÃO: 15/03/2023
D12: SINAPI DATA REFERÊNCIA TÉCNICA: 15/03/2023 - NÃO DESONERADO
A13: ITEM | B13: REFERÊNCIA | C13: CÓDIGO | D13: DESCRIÇÃO DETALHADA | E13: UND | F13: QTD | G13: VALOR UNIT (R$) | H13: VALOR UNIT c/ BDI (R$) | I13: VALOR TOTAL (R$)
A14: 1.0 | D14: ADMINISTRAÇÃO DA OBRA | I14: =SUM(I15:I16) -> 56563.37
A15: 1.2 | B15: SINAPI | C15: 2707 | D15: =IF(B15="SINAPI",IFERROR(INDEX(SINAPI!$B:$B,MATCH($C15,SINAPI!$A:$A,0)),""),IF(B15="COMPOSIÇÃO",IFERROR(INDEX(COMPOSIÇÃO!$C:$C,MATCH($C15,COMPOSIÇÃO!$A:$A,0)),""),"")) -> ENGENHEIRO CIVIL DE OBRA PLENO | E15: =IF(B15="SINAPI",IFERROR(INDEX(SINAPI!$C:$C,MATCH($C15,SINAPI!$A:$A,0)),""),IF(B15="COMPOSIÇÃO",IFERROR(INDEX(COMPOSIÇÃO!$D:$D,MATCH($C15,COMPOSIÇÃO!$A:$A,0)),""),"")) -> H | F15: 179.38 | G15: =IF(B15="SINAPI",IFERROR(INDEX(SINAPI!$D:$D,MATCH($C15,SINAPI!$A:$A,0)),0),IF(B15="COMPOSIÇÃO",IFERROR(INDEX(COMPOSIÇÃO!$G:$G,MATCH($C15,COMPOSIÇÃO!$A:$A,0)),0),0)) -> 118.86 | H15: =ROUND(G15*(1+$I$9),2) -> 145.28 | I15: =ROUND(F15*H15,2) -> 26060.33
A16: 1.3 | B16: SINAPI | C16: 4083 | D16: =IF(B16="SINAPI",IFERROR(INDEX(SINAPI!$B:$B,MATCH($C16,SINAPI!$A:$A,0)),""),IF(B16="COMPOSIÇÃO",IFERROR(INDEX(COMPOSIÇÃO!$C:$C,MATCH($C16,COMPOSIÇÃO!$A:$A,0)),""),"")) -> ENCARREGADO GERAL DE OBRAS (HORISTA) | E16: =IF(B16="SINAPI",IFERROR(INDEX(SINAPI!$C:$C,MATCH($C16,SINAPI!$A:$A,0)),""),IF(B16="COMPOSIÇÃO",IFERROR(INDEX(COMPOSIÇÃO!$D:$D,MATCH($C16,COMPOSIÇÃO!$A:$A,0)),""),"")) -> H | F16: 995.53 | G16: =IF(B16="SINAPI",IFERROR(INDEX(SINAPI!$D:$D,MATCH($C16,SINAPI!$A:$A,0)),0),IF(B16="COMPOSIÇÃO",IFERROR(INDEX(COMPOSIÇÃO!$G:$G,MATCH($C16,COMPOSIÇÃO!$A:$A,0)),0),0)) -> 25.07 | H16: 30.64 | I16: 30503.04
A18: 2.0 | D18: SERVIÇOS PRELIMINARES | I18: =SUM(I19:I22) -> 33040.56
A19: 2.1 | B19: COMPOSIÇÃO | C19: CP01 | D19: =IF(B19="SINAPI",IFERROR(INDEX(SINAPI!$B:$B,MATCH($C19,SINAPI!$A:$A,0)),""),IF(B19="COMPOSIÇÃO",IFERROR(INDEX(COMPOSIÇÃO!$C:$C,MATCH($C19,COMPOSIÇÃO!$A:$A,0)),""),"")) -> Placa de obra em chapa de aço galvanizado (4,00 x 3,00 m) | E19: =IF(B19="SINAPI",IFERROR(INDEX(SINAPI!$C:$C,MATCH($C19,SINAPI!$A:$A,0)),""),IF(B19="COMPOSIÇÃO",IFERROR(INDEX(COMPOSIÇÃO!$D:$D,MATCH($C19,COMPOSIÇÃO!$A:$A,0)),""),"")) -> M³ | F19: 12 | G19: =IF(B19="SINAPI",IFERROR(INDEX(SINAPI!$D:$D,MATCH($C19,SINAPI!$A:$A,0)),0),IF(B19="COMPOSIÇÃO",IFERROR(INDEX(COMPOSIÇÃO!$G:$G,MATCH($C19,COMPOSIÇÃO!$A:$A,0)),0),0)) -> 402.96 | H19: =ROUND(G19*(1+$I$9),2) -> 492.54 | I19: =ROUND(F19*H19,2) -> 5910.48
A20: 2.2 | B20: SINAPI | C20: 93584 | D20: =IF(B20="SINAPI",IFERROR(INDEX(SINAPI!$B:$B,MATCH($C20,SINAPI!$A:$A,0)),""),IF(B20="COMPOSIÇÃO",IFERROR(INDEX(COMPOSIÇÃO!$C:$C,MATCH($C20,COMPOSIÇÃO!$A:$A,0)),""),"")) -> EXECUÇÃO DE DEPÓSITO EM CANTEIRO DE OBRA EM CHAPA DE MADEIRA COMPENSADA, NÃO INCLUSO MOBILIÁRIO. AF_04/2016 | E20: =IF(B20="SINAPI",IFERROR(INDEX(SINAPI!$C:$C,MATCH($C20,SINAPI!$A:$A,0)),""),IF(B20="COMPOSIÇÃO",IFERROR(INDEX(COMPOSIÇÃO!$D:$D,MATCH($C20,COMPOSIÇÃO!$A:$A,0)),""),"")) -> M2 | F20: 24 | G20: =IF(B20="SINAPI",IFERROR(INDEX(SINAPI!$D:$D,MATCH($C20,SINAPI!$A:$A,0)),0),IF(B20="COMPOSIÇÃO",IFERROR(INDEX(COMPOSIÇÃO!$G:$G,MATCH($C20,COMPOSIÇÃO!$A:$A,0)),0),0)) -> 917.37 | H20: 1121.3 | I20: 26911.2
A21: 2.3 | B21: SINAPI | C21: 99063 | D21: =IF(B21="SINAPI",IFERROR(INDEX(SINAPI!$B:$B,MATCH($C21,SINAPI!$A:$A,0)),""),IF(B21="COMPOSIÇÃO",IFERROR(INDEX(COMPOSIÇÃO!$C:$C,MATCH($C21,COMPOSIÇÃO!$A:$A,0)),""),"")) -> LOCAÇÃO DE REDE DE ÁGUA OU ESGOTO. AF_10/2018 | E21: =IF(B21="SINAPI",IFERROR(INDEX(SINAPI!$C:$C,MATCH($C21,SINAPI!$A:$A,0)),""),IF(B21="COMPOSIÇÃO",IFERROR(INDEX(COMPOSIÇÃO!$D:$D,MATCH($C21,COMPOSIÇÃO!$A:$A,0)),""),"")) -> M | F21: 10 | G21: =IF(B21="SINAPI",IFERROR(INDEX(SINAPI!$D:$D,MATCH($C21,SINAPI!$A:$A,0)),0),IF(B21="COMPOSIÇÃO",IFERROR(INDEX(COMPOSIÇÃO!$G:$G,MATCH($C21,COMPOSIÇÃO!$A:$A,0)),0),0)) -> 4.88 | H21: 5.96 | I21: 59.6
A22: 2.4 | B22: SINAPI | C22: 99064 | D22: =IF(B22="SINAPI",IFERROR(INDEX(SINAPI!$B:$B,MATCH($C22,SINAPI!$A:$A,0)),""),IF(B22="COMPOSIÇÃO",IFERROR(INDEX(COMPOSIÇÃO!$C:$C,MATCH($C22,COMPOSIÇÃO!$A:$A,0)),""),"")) -> LOCAÇÃO DE PAVIMENTAÇÃO. AF_10/2018 | E22: =IF(B22="SINAPI",IFERROR(INDEX(SINAPI!$C:$C,MATCH($C22,SINAPI!$A:$A,0)),""),IF(B22="COMPOSIÇÃO",IFERROR(INDEX(COMPOSIÇÃO!$D:$D,MATCH($C22,COMPOSIÇÃO!$A:$A,0)),""),"")) -> M | F22: 362 | G22: =IF(B22="SINAPI",IFERROR(INDEX(SINAPI!$D:$D,MATCH($C22,SINAPI!$A:$A,0)),0),IF(B22="COMPOSIÇÃO",IFERROR(INDEX(COMPOSIÇÃO!$G:$G,MATCH($C22,COMPOSIÇÃO!$A:$A,0)),0),0)) -> 0.36 | H22: 0.44 | I22: 159.28
A24: 3.0 | D24: MOVIMENTAÇÃO DE TERRA | I24: =SUM(I25:I31) -> 46275.07
A25: 3.1 | B25: SINAPI | C25: 93588 | D25: =IF(B25="SINAPI",IFERROR(INDEX(SINAPI!$B:$B,MATCH($C25,SINAPI!$A:$A,0)),""),IF(B25="COMPOSIÇÃO",IFERROR(INDEX(COMPOSIÇÃO!$C:$C,MATCH($C25,COMPOSIÇÃO!$A:$A,0)),""),"")) -> TRANSPORTE COM CAMINHÃO BASCULANTE DE 10 M³, EM VIA URBANA EM LEITO NATURAL (UNIDADE: M3XKM). AF_07/2020 | E25: =IF(B25="SINAPI",IFERROR(INDEX(SINAPI!$C:$C,MATCH($C25,SINAPI!$A:$A,0)),""),IF(B25="COMPOSIÇÃO",IFERROR(INDEX(COMPOSIÇÃO!$D:$D,MATCH($C25,COMPOSIÇÃO!$A:$A,0)),""),"")) -> M3XKM | F25: 419.7 | G25: =IF(B25="SINAPI",IFERROR(INDEX(SINAPI!$D:$D,MATCH($C25,SINAPI!$A:$A,0)),0),IF(B25="COMPOSIÇÃO",IFERROR(INDEX(COMPOSIÇÃO!$G:$G,MATCH($C25,COMPOSIÇÃO!$A:$A,0)),0),0)) -> 2.96 | H25: 3.62 | I25: 1519.31
A26: 3.2 | B26: SINAPI | C26: 100574 | D26: =IF(B26="SINAPI",IFERROR(INDEX(SINAPI!$B:$B,MATCH($C26,SINAPI!$A:$A,0)),""),IF(B26="COMPOSIÇÃO",IFERROR(INDEX(COMPOSIÇÃO!$C:$C,MATCH($C26,COMPOSIÇÃO!$A:$A,0)),""),"")) -> ESPALHAMENTO DE MATERIAL COM TRATOR DE ESTEIRAS. AF_11/2019 | E26: =IF(B26="SINAPI",IFERROR(INDEX(SINAPI!$C:$C,MATCH($C26,SINAPI!$A:$A,0)),""),IF(B26="COMPOSIÇÃO",IFERROR(INDEX(COMPOSIÇÃO!$D:$D,MATCH($C26,COMPOSIÇÃO!$A:$A,0)),""),"")) -> M3 | F26: 932.727 | G26: =IF(B26="SINAPI",IFERROR(INDEX(SINAPI!$D:$D,MATCH($C26,SINAPI!$A:$A,0)),0),IF(B26="COMPOSIÇÃO",IFERROR(INDEX(COMPOSIÇÃO!$G:$G,MATCH($C26,COMPOSIÇÃO!$A:$A,0)),0),0)) -> 1.27 | H26: 1.55 | I26: 1445.73
A27: 3.3 | B27: SINAPI | C27: 100576 | D27: =IF(B27="SINAPI",IFERROR(INDEX(SINAPI!$B:$B,MATCH($C27,SINAPI!$A:$A,0)),""),IF(B27="COMPOSIÇÃO",IFERROR(INDEX(COMPOSIÇÃO!$C:$C,MATCH($C27,COMPOSIÇÃO!$A:$A,0)),""),"")) -> REGULARIZAÇÃO E COMPACTAÇÃO DE SUBLEITO DE SOLO PREDOMINANTEMENTE ARGILOSO. AF_11/2019 | E27: =IF(B27="SINAPI",IFERROR(INDEX(SINAPI!$C:$C,MATCH($C27,SINAPI!$A:$A,0)),""),IF(B27="COMPOSIÇÃO",IFERROR(INDEX(COMPOSIÇÃO!$D:$D,MATCH($C27,COMPOSIÇÃO!$A:$A,0)),""),"")) -> M2 | F27: 3109.09 | G27: =IF(B27="SINAPI",IFERROR(INDEX(SINAPI!$D:$D,MATCH($C27,SINAPI!$A:$A,0)),0),IF(B27="COMPOSIÇÃO",IFERROR(INDEX(COMPOSIÇÃO!$G:$G,MATCH($C27,COMPOSIÇÃO!$A:$A,0)),0),0)) -> 2.25 | H27: 2.75 | I27: 8550
A28: 3.4 | B28: SICRO | C28: 4011227 | D28: Sub-base de solo estabilizado granulometricamente sem mistura com material de jazida, inclusive escavação e carga de material na jazida com escavadeira hidráulica | E28: m³ | F28: 466.3635 | G28: 11.65 | H28: 14.24 | I28: 6641.02
A29: 3.5 | B29: SICRO | C29: 4011219 | D29: Base de solo estabilizado granulometricamente sem mistura com material de jazida, inclusive escavação e carga de material na jazida com escavadeira hidráulica | E29: m³ | F29: 466.3635 | G29: 12.33 | H29: 15.07 | I29: 7028.1
A30: 3.7 | B30: SINAPI | C30: 93595 | D30: =IF(B30="SINAPI",IFERROR(INDEX(SINAPI!$B:$B,MATCH($C30,SINAPI!$A:$A,0)),""),IF(B30="COMPOSIÇÃO",IFERROR(INDEX(COMPOSIÇÃO!$C:$C,MATCH($C30,COMPOSIÇÃO!$A:$A,0)),""),"")) -> TRANSPORTE COM CAMINHÃO BASCULANTE DE 10 M³, EM VIA URBANA EM REVESTIMENTO PRIMÁRIO (UNIDADE: TXKM). AF_07/2020 | E30: =IF(B30="SINAPI",IFERROR(INDEX(SINAPI!$C:$C,MATCH($C30,SINAPI!$A:$A,0)),""),IF(B30="COMPOSIÇÃO",IFERROR(INDEX(COMPOSIÇÃO!$D:$D,MATCH($C30,COMPOSIÇÃO!$A:$A,0)),""),"")) -> TXKM | F30: 1327.5 | G30: =IF(B30="SINAPI",IFERROR(INDEX(SINAPI!$D:$D,MATCH($C30,SINAPI!$A:$A,0)),0),IF(B30="COMPOSIÇÃO",IFERROR(INDEX(COMPOSIÇÃO!$G:$G,MATCH($C30,COMPOSIÇÃO!$A:$A,0)),0),0)) -> 1.72 | H30: 2.1 | I30: 2787.75
A31: 3.8 | B31: SINAPI | C31: 95878 | D31: =IF(B31="SINAPI",IFERROR(INDEX(SINAPI!$B:$B,MATCH($C31,SINAPI!$A:$A,0)),""),IF(B31="COMPOSIÇÃO",IFERROR(INDEX(COMPOSIÇÃO!$C:$C,MATCH($C31,COMPOSIÇÃO!$A:$A,0)),""),"")) -> TRANSPORTE COM CAMINHÃO BASCULANTE DE 10 M³, EM VIA URBANA PAVIMENTADA, DMT ATÉ 30 KM (UNIDADE: TXKM). AF_07/2020 | E31: =IF(B31="SINAPI",IFERROR(INDEX(SINAPI!$C:$C,MATCH($C31,SINAPI!$A:$A,0)),""),IF(B31="COMPOSIÇÃO",IFERROR(INDEX(COMPOSIÇÃO!$D:$D,MATCH($C31,COMPOSIÇÃO!$A:$A,0)),""),"")) -> TXKM | F31: 9483.5 | G31: =IF(B31="SINAPI",IFERROR(INDEX(SINAPI!$D:$D,MATCH($C31,SINAPI!$A:$A,0)),0),IF(B31="COMPOSIÇÃO",IFERROR(INDEX(COMPOSIÇÃO!$G:$G,MATCH($C31,COMPOSIÇÃO!$A:$A,0)),0),0)) -> 1.58 | H31: 1.93 | I31: 18303.16
A33: 4.0 | D33: DRENAGEM DE ÁGUAS PLUVIAIS | I33: =SUM(I34:I37) -> 26007.3
A34: 4.1 | B34: COMPOSIÇÃO | C34: CP03 | D34: =IF(B34="SINAPI",IFERROR(INDEX(SINAPI!$B:$B,MATCH($C34,SINAPI!$A:$A,0)),""),IF(B34="COMPOSIÇÃO",IFERROR(INDEX(COMPOSIÇÃO!$C:$C,MATCH($C34,COMPOSIÇÃO!$A:$A,0)),""),"")) -> BOCA DE LOBO EM ALVENARIA TIJOLO MACICO, REVESTIDA C/ ARGAMASSA DE CIMENTO E AREIA 1:3, SOBRE LASTRO DE CONCRETO 10CM E TAMPA DE CONCRETO ARMADO | E34: =IF(B34="SINAPI",IFERROR(INDEX(SINAPI!$C:$C,MATCH($C34,SINAPI!$A:$A,0)),""),IF(B34="COMPOSIÇÃO",IFERROR(INDEX(COMPOSIÇÃO!$D:$D,MATCH($C34,COMPOSIÇÃO!$A:$A,0)),""),"")) -> und | F34: 10 | G34: =IF(B34="SINAPI",IFERROR(INDEX(SINAPI!$D:$D,MATCH($C34,SINAPI!$A:$A,0)),0),IF(B34="COMPOSIÇÃO",IFERROR(INDEX(COMPOSIÇÃO!$G:$G,MATCH($C34,COMPOSIÇÃO!$A:$A,0)),0),0)) -> 1190.55 | H34: 1455.21 | I34: 14552.1
A35: 4.2 | B35: SINAPI | C35: 99319 | D35: =IF(B35="SINAPI",IFERROR(INDEX(SINAPI!$B:$B,MATCH($C35,SINAPI!$A:$A,0)),""),IF(B35="COMPOSIÇÃO",IFERROR(INDEX(COMPOSIÇÃO!$C:$C,MATCH($C35,COMPOSIÇÃO!$A:$A,0)),""),"")) -> CHAMINÉ CIRCULAR PARA POÇO DE VISITA PARA DRENAGEM, EM ALVENARIA COM TIJOLOS CERÂMICOS MACIÇOS, DIÂMETRO INTERNO = 0,6 M. AF_12/2020 | E35: =IF(B35="SINAPI",IFERROR(INDEX(SINAPI!$C:$C,MATCH($C35,SINAPI!$A:$A,0)),""),IF(B35="COMPOSIÇÃO",IFERROR(INDEX(COMPOSIÇÃO!$D:$D,MATCH($C35,COMPOSIÇÃO!$A:$A,0)),""),"")) -> M | F35: 1.89 | G35: =IF(B35="SINAPI",IFERROR(INDEX(SINAPI!$D:$D,MATCH($C35,SINAPI!$A:$A,0)),0),IF(B35="COMPOSIÇÃO",IFERROR(INDEX(COMPOSIÇÃO!$G:$G,MATCH($C35,COMPOSIÇÃO!$A:$A,0)),0),0)) -> 970.92 | H35: 1186.76 | I35: 2242.98
A36: 4.3 | B36: COMPOSIÇÃO | C36: CP04 | D36: =IF(B36="SINAPI",IFERROR(INDEX(SINAPI!$B:$B,MATCH($C36,SINAPI!$A:$A,0)),""),IF(B36="COMPOSIÇÃO",IFERROR(INDEX(COMPOSIÇÃO!$C:$C,MATCH($C36,COMPOSIÇÃO!$A:$A,0)),""),"")) -> Assentamento de tampa circular para esgoto e drenagem, em ferro fundido, diâmetro interno = 0,60 m | E36: =IF(B36="SINAPI",IFERROR(INDEX(SINAPI!$C:$C,MATCH($C36,SINAPI!$A:$A,0)),""),IF(B36="COMPOSIÇÃO",IFERROR(INDEX(COMPOSIÇÃO!$D:$D,MATCH($C36,COMPOSIÇÃO!$A:$A,0)),""),"")) -> und | F36: 3 | G36: =IF(B36="SINAPI",IFERROR(INDEX(SINAPI!$D:$D,MATCH($C36,SINAPI!$A:$A,0)),0),IF(B36="COMPOSIÇÃO",IFERROR(INDEX(COMPOSIÇÃO!$G:$G,MATCH($C36,COMPOSIÇÃO!$A:$A,0)),0),0)) -> 837.63 | H36: 1023.84 | I36: 3071.52
A37: 4.4 | B37: COMPOSIÇÃO | C37: cp10 | D37: =IF(B37="SINAPI",IFERROR(INDEX(SINAPI!$B:$B,MATCH($C37,SINAPI!$A:$A,0)),""),IF(B37="COMPOSIÇÃO",IFERROR(INDEX(COMPOSIÇÃO!$C:$C,MATCH($C37,COMPOSIÇÃO!$A:$A,0)),""),"")) -> TUBO E ASSENTAMENTO DE TUBO DE CONCRETO PARA REDES COLETORAS DE ÁGUAS PLUVIAIS, DIÂMETRO DE 400 MM, JUNTA RÍGIDA, INSTALADO EM LOCAL COM BAIXO NÍVEL DE INTERFERÊNCIAS. | E37: =IF(B37="SINAPI",IFERROR(INDEX(SINAPI!$C:$C,MATCH($C37,SINAPI!$A:$A,0)),""),IF(B37="COMPOSIÇÃO",IFERROR(INDEX(COMPOSIÇÃO!$D:$D,MATCH($C37,COMPOSIÇÃO!$A:$A,0)),""),"")) -> M | F37: 30 | G37: =IF(B37="SINAPI",IFERROR(INDEX(SINAPI!$D:$D,MATCH($C37,SINAPI!$A:$A,0)),0),IF(B37="COMPOSIÇÃO",IFERROR(INDEX(COMPOSIÇÃO!$G:$G,MATCH($C37,COMPOSIÇÃO!$A:$A,0)),0),0)) -> 167.46 | H37: 204.69 | I37: 6140.7
A39: 5.0 | D39: PAVIMENTAÇÃO DE VIAS | I39: =SUM(I40:I42) -> 421943.42
A40: 5.1 | B40: SINAPI | C40: 92396 | D40: =IF(B40="SINAPI",IFERROR(INDEX(SINAPI!$B:$B,MATCH($C40,SINAPI!$A:$A,0)),""),IF(B40="COMPOSIÇÃO",IFERROR(INDEX(COMPOSIÇÃO!$C:$C,MATCH($C40,COMPOSIÇÃO!$A:$A,0)),""),"")) -> EXECUÇÃO DE PASSEIO EM PISO INTERTRAVADO, COM BLOCO RETANGULAR COR NATURAL DE 20 X 10 CM, ESPESSURA 6 CM. AF_10/2022 | E40: =IF(B40="SINAPI",IFERROR(INDEX(SINAPI!$C:$C,MATCH($C40,SINAPI!$A:$A,0)),""),IF(B40="COMPOSIÇÃO",IFERROR(INDEX(COMPOSIÇÃO!$D:$D,MATCH($C40,COMPOSIÇÃO!$A:$A,0)),""),"")) -> M2 | F40: 3089.47 | G40: =IF(B40="SINAPI",IFERROR(INDEX(SINAPI!$D:$D,MATCH($C40,SINAPI!$A:$A,0)),0),IF(B40="COMPOSIÇÃO",IFERROR(INDEX(COMPOSIÇÃO!$G:$G,MATCH($C40,COMPOSIÇÃO!$A:$A,0)),0),0)) -> 93.88 | H40: 114.75 | I40: 354516.68
A41: 5.2 | B41: SINAPI | C41: 94267 | D41: =IF(B41="SINAPI",IFERROR(INDEX(SINAPI!$B:$B,MATCH($C41,SINAPI!$A:$A,0)),""),IF(B41="COMPOSIÇÃO",IFERROR(INDEX(COMPOSIÇÃO!$C:$C,MATCH($C41,COMPOSIÇÃO!$A:$A,0)),""),"")) -> GUIA (MEIO-FIO) E SARJETA CONJUGADOS DE CONCRETO, MOLDADA IN LOCO EM TRECHO RETO COM EXTRUSORA, 45 CM BASE (15 CM BASE DA GUIA + 30 CM BASE DA SARJETA) X 22 CM ALTURA. AF_06/2016 | E41: =IF(B41="SINAPI",IFERROR(INDEX(SINAPI!$C:$C,MATCH($C41,SINAPI!$A:$A,0)),""),IF(B41="COMPOSIÇÃO",IFERROR(INDEX(COMPOSIÇÃO!$D:$D,MATCH($C41,COMPOSIÇÃO!$A:$A,0)),""),"")) -> M | F41: 714.93 | G41: =IF(B41="SINAPI",IFERROR(INDEX(SINAPI!$D:$D,MATCH($C41,SINAPI!$A:$A,0)),0),IF(B41="COMPOSIÇÃO",IFERROR(INDEX(COMPOSIÇÃO!$G:$G,MATCH($C41,COMPOSIÇÃO!$A:$A,0)),0),0)) -> 65.62 | H41: 80.21 | I41: =ROUND(F41*H41,2) -> 57344.54
A42: 5.3 | B42: SINAPI | C42: 94268 | D42: =IF(B42="SINAPI",IFERROR(INDEX(SINAPI!$B:$B,MATCH($C42,SINAPI!$A:$A,0)),""),IF(B42="COMPOSIÇÃO",IFERROR(INDEX(COMPOSIÇÃO!$C:$C,MATCH($C42,COMPOSIÇÃO!$A:$A,0)),""),"")) -> GUIA (MEIO-FIO) E SARJETA CONJUGADOS DE CONCRETO, MOLDADA IN LOCO EM TRECHO CURVO COM EXTRUSORA, 45 CM BASE (15 CM BASE DA GUIA + 30 CM BASE DA SARJETA) X 22 CM ALTURA. AF_06/2016 | E42: =IF(B42="SINAPI",IFERROR(INDEX(SINAPI!$C:$C,MATCH($C42,SINAPI!$A:$A,0)),""),IF(B42="COMPOSIÇÃO",IFERROR(INDEX(COMPOSIÇÃO!$D:$D,MATCH($C42,COMPOSIÇÃO!$A:$A,0)),""),"")) -> M | F42: 118.1 | G42: =IF(B42="SINAPI",IFERROR(INDEX(SINAPI!$D:$D,MATCH($C42,SINAPI!$A:$A,0)),0),IF(B42="COMPOSIÇÃO",IFERROR(INDEX(COMPOSIÇÃO!$G:$G,MATCH($C42,COMPOSIÇÃO!$A:$A,0)),0),0)) -> 69.84 | H42: 85.37 | I42: 10082.2
A44: 6.0 | D44: CONTROLE TECNOLÓGICO | I44: =SUM(I46:I47) -> 6795.4
D45: Laboratório de solos
A46: 6.1 | B46: COMPOSIÇÃO | C46: CP08 | D46: =IF(B46="SINAPI",IFERROR(INDEX(SINAPI!$B:$B,MATCH($C46,SINAPI!$A:$A,0)),""),IF(B46="COMPOSIÇÃO",IFERROR(INDEX(COMPOSIÇÃO!$C:$C,MATCH($C46,COMPOSIÇÃO!$A:$A,0)),""),"")) -> ENSAIOS DE BASE ESTABILIZADA GRANULOMETRICAMENTE | E46: =IF(B46="SINAPI",IFERROR(INDEX(SINAPI!$C:$C,MATCH($C46,SINAPI!$A:$A,0)),""),IF(B46="COMPOSIÇÃO",IFERROR(INDEX(COMPOSIÇÃO!$D:$D,MATCH($C46,COMPOSIÇÃO!$A:$A,0)),""),"")) -> M³ | F46: 858.16 | G46: =IF(B46="SINAPI",IFERROR(INDEX(SINAPI!$D:$D,MATCH($C46,SINAPI!$A:$A,0)),0),IF(B46="COMPOSIÇÃO",IFERROR(INDEX(COMPOSIÇÃO!$G:$G,MATCH($C46,COMPOSIÇÃO!$A:$A,0)),0),0)) -> 4.48 | H46: 5.48 | I46: 4702.72
A47: 6.2 | B47: COMPOSIÇÃO | C47: CP09 | D47: =IF(B47="SINAPI",IFERROR(INDEX(SINAPI!$B:$B,MATCH($C47,SINAPI!$A:$A,0)),""),IF(B47="COMPOSIÇÃO",IFERROR(INDEX(COMPOSIÇÃO!$C:$C,MATCH($C47,COMPOSIÇÃO!$A:$A,0)),""),"")) -> ENSAIO DE RESISTÊNCIA DE CONCRETO - FCK | E47: =IF(B47="SINAPI",IFERROR(INDEX(SINAPI!$C:$C,MATCH($C47,SINAPI!$A:$A,0)),""),IF(B47="COMPOSIÇÃO",IFERROR(INDEX(COMPOSIÇÃO!$D:$D,MATCH($C47,COMPOSIÇÃO!$A:$A,0)),""),"")) -> Und | F47: 12 | G47: =IF(B47="SINAPI",IFERROR(INDEX(SINAPI!$D:$D,MATCH($C47,SINAPI!$A:$A,0)),0),IF(B47="COMPOSIÇÃO",IFERROR(INDEX(COMPOSIÇÃO!$G:$G,MATCH($C47,COMPOSIÇÃO!$A:$A,0)),0),0)) -> 142.67 | H47: 174.39 | I47: 2092.68
A49: 7.0 | D49: PASSEIO PÚBLICO COM ACESSIBILIDADE | I49: =SUM(I50:I54) -> 246485.07
A50: 7.1 | B50: SINAPI | C50: 98524 | D50: =IF(B50="SINAPI",IFERROR(INDEX(SINAPI!$B:$B,MATCH($C50,SINAPI!$A:$A,0)),""),IF(B50="COMPOSIÇÃO",IFERROR(INDEX(COMPOSIÇÃO!$C:$C,MATCH($C50,COMPOSIÇÃO!$A:$A,0)),""),"")) -> LIMPEZA MANUAL DE VEGETAÇÃO EM TERRENO COM ENXADA.AF_05/2018 | E50: =IF(B50="SINAPI",IFERROR(INDEX(SINAPI!$C:$C,MATCH($C50,SINAPI!$A:$A,0)),""),IF(B50="COMPOSIÇÃO",IFERROR(INDEX(COMPOSIÇÃO!$D:$D,MATCH($C50,COMPOSIÇÃO!$A:$A,0)),""),"")) -> M2 | F50: 2056.58 | G50: =IF(B50="SINAPI",IFERROR(INDEX(SINAPI!$D:$D,MATCH($C50,SINAPI!$A:$A,0)),0),IF(B50="COMPOSIÇÃO",IFERROR(INDEX(COMPOSIÇÃO!$G:$G,MATCH($C50,COMPOSIÇÃO!$A:$A,0)),0),0)) -> 2.88 | H50: 3.52 | I50: 7239.16
A51: 7.2 | B51: SINAPI | C51: 101617 | D51: =IF(B51="SINAPI",IFERROR(INDEX(SINAPI!$B:$B,MATCH($C51,SINAPI!$A:$A,0)),""),IF(B51="COMPOSIÇÃO",IFERROR(INDEX(COMPOSIÇÃO!$C:$C,MATCH($C51,COMPOSIÇÃO!$A:$A,0)),""),"")) -> PREPARO DE FUNDO DE VALA COM LARGURA MAIOR OU IGUAL A 1,5 M E MENOR QUE 2,5 M (ACERTO DO SOLO NATURAL). AF_08/2020 | E51: =IF(B51="SINAPI",IFERROR(INDEX(SINAPI!$C:$C,MATCH($C51,SINAPI!$A:$A,0)),""),IF(B51="COMPOSIÇÃO",IFERROR(INDEX(COMPOSIÇÃO!$D:$D,MATCH($C51,COMPOSIÇÃO!$A:$A,0)),""),"")) -> M2 | F51: 2056.58 | G51: =IF(B51="SINAPI",IFERROR(INDEX(SINAPI!$D:$D,MATCH($C51,SINAPI!$A:$A,0)),0),IF(B51="COMPOSIÇÃO",IFERROR(INDEX(COMPOSIÇÃO!$G:$G,MATCH($C51,COMPOSIÇÃO!$A:$A,0)),0),0)) -> 2.76 | H51: 3.37 | I51: 6930.67
A52: 7.3 | B52: SINAPI | C52: 94991 | D52: =IF(B52="SINAPI",IFERROR(INDEX(SINAPI!$B:$B,MATCH($C52,SINAPI!$A:$A,0)),""),IF(B52="COMPOSIÇÃO",IFERROR(INDEX(COMPOSIÇÃO!$C:$C,MATCH($C52,COMPOSIÇÃO!$A:$A,0)),""),"")) -> EXECUÇÃO DE PASSEIO (CALÇADA) OU PISO DE CONCRETO COM CONCRETO MOLDADO IN LOCO, USINADO, ACABAMENTO CONVENCIONAL, NÃO ARMADO. AF_08/2022 | E52: =IF(B52="SINAPI",IFERROR(INDEX(SINAPI!$C:$C,MATCH($C52,SINAPI!$A:$A,0)),""),IF(B52="COMPOSIÇÃO",IFERROR(INDEX(COMPOSIÇÃO!$D:$D,MATCH($C52,COMPOSIÇÃO!$A:$A,0)),""),"")) -> M3 | F52: 167.22 | G52: =IF(B52="SINAPI",IFERROR(INDEX(SINAPI!$D:$D,MATCH($C52,SINAPI!$A:$A,0)),0),IF(B52="COMPOSIÇÃO",IFERROR(INDEX(COMPOSIÇÃO!$G:$G,MATCH($C52,COMPOSIÇÃO!$A:$A,0)),0),0)) -> 965.27 | H52: 1179.85 | I52: 197294.52
A53: 7.4 | B53: SINAPI | C53: 94991 | D53: =IF(B53="SINAPI",IFERROR(INDEX(SINAPI!$B:$B,MATCH($C53,SINAPI!$A:$A,0)),""),IF(B53="COMPOSIÇÃO",IFERROR(INDEX(COMPOSIÇÃO!$C:$C,MATCH($C53,COMPOSIÇÃO!$A:$A,0)),""),"")) -> EXECUÇÃO DE PASSEIO (CALÇADA) OU PISO DE CONCRETO COM CONCRETO MOLDADO IN LOCO, USINADO, ACABAMENTO CONVENCIONAL, NÃO ARMADO. AF_08/2022 | E53: =IF(B53="SINAPI",IFERROR(INDEX(SINAPI!$C:$C,MATCH($C53,SINAPI!$A:$A,0)),""),IF(B53="COMPOSIÇÃO",IFERROR(INDEX(COMPOSIÇÃO!$D:$D,MATCH($C53,COMPOSIÇÃO!$A:$A,0)),""),"")) -> M3 | F53: 6.6896 | G53: =IF(B53="SINAPI",IFERROR(INDEX(SINAPI!$D:$D,MATCH($C53,SINAPI!$A:$A,0)),0),IF(B53="COMPOSIÇÃO",IFERROR(INDEX(COMPOSIÇÃO!$G:$G,MATCH($C53,COMPOSIÇÃO!$A:$A,0)),0),0)) -> 965.27 | H53: 1179.85 | I53: 7892.72
A54: 7.5 | B54: COMPOSIÇÃO | C54: CP05 | D54: =IF(B54="SINAPI",IFERROR(INDEX(SINAPI!$B:$B,MATCH($C54,SINAPI!$A:$A,0)),""),IF(B54="COMPOSIÇÃO",IFERROR(INDEX(COMPOSIÇÃO!$C:$C,MATCH($C54,COMPOSIÇÃO!$A:$A,0)),""),"")) -> Assentamento de piso tátil direcional e/ou alerta (ladrilho hidráulico), colorido, p/ deficientes visuais, dimensões 20x20cm, aplicado com argamassa industrializada AC-II, rejuntado, exclusive regularização de base e aquisição de ladrilho hidráulico | E54: =IF(B54="SINAPI",IFERROR(INDEX(SINAPI!$C:$C,MATCH($C54,SINAPI!$A:$A,0)),""),IF(B54="COMPOSIÇÃO",IFERROR(INDEX(COMPOSIÇÃO!$D:$D,MATCH($C54,COMPOSIÇÃO!$A:$A,0)),""),"")) -> m² | F54: 167.24 | G54: =IF(B54="SINAPI",IFERROR(INDEX(SINAPI!$D:$D,MATCH($C54,SINAPI!$A:$A,0)),0),IF(B54="COMPOSIÇÃO",IFERROR(INDEX(COMPOSIÇÃO!$G:$G,MATCH($C54,COMPOSIÇÃO!$A:$A,0)),0),0)) -> 132.71 | H54: 162.21 | I54: 27128
A56: 8.0 | D56: SINALIZAÇÃO VIÁRIA | I56: =SUM(I57:I62) -> 13103.63
A57: 8.1 | B57: COMPOSIÇÃO | C57: CP06 | D57: =IF(B57="SINAPI",IFERROR(INDEX(SINAPI!$B:$B,MATCH($C57,SINAPI!$A:$A,0)),""),IF(B57="COMPOSIÇÃO",IFERROR(INDEX(COMPOSIÇÃO!$C:$C,MATCH($C57,COMPOSIÇÃO!$A:$A,0)),""),"")) -> Sinalização horizontal, com tinta retrorrefletiva a base de resina acrilica com microesferas de vidro | E57: =IF(B57="SINAPI",IFERROR(INDEX(SINAPI!$C:$C,MATCH($C57,SINAPI!$A:$A,0)),""),IF(B57="COMPOSIÇÃO",IFERROR(INDEX(COMPOSIÇÃO!$D:$D,MATCH($C57,COMPOSIÇÃO!$A:$A,0)),""),"")) -> m² | F57: 154.86 | G57: =IF(B57="SINAPI",IFERROR(INDEX(SINAPI!$D:$D,MATCH($C57,SINAPI!$A:$A,0)),0),IF(B57="COMPOSIÇÃO",IFERROR(INDEX(COMPOSIÇÃO!$G:$G,MATCH($C57,COMPOSIÇÃO!$A:$A,0)),0),0)) -> 16.51 | H57: 20.18 | I57: 3125.07
A58: 8.2 | B58: SICRO | C58: 5213464 | D58: Fornecimento e implantação de placa de advertência em aço, lado de 0,60 m - película retrorrefletiva tipo I e SI (Modelo A32B - Passagem sinalizada de pedestres) | E58: und | F58: 8 | G58: 225.13 | H58: 275.18 | I58: 2201.44
A59: 8.3 | B59: SICRO | C59: 5213444 | D59: Fornecimento e implantação de placa de regulamentação em aço, R1 lado 0,248 m - película retrorrefletiva tipo I e SI (Modelo R1 - Parada obrigatória) | E59: und | F59: 6 | G59: 225.13 | H59: 275.18 | I59: 1651.08
A60: 8.4 | B60: SICRO | C60: 5213440 | D60: Fornecimento e implantação de placa de advertência em aço, lado de 0,60 m - película retrorrefletiva tipo I e SI (Modelo A45 - Rua Sem Saída) | E60: und | F60: 1 | G60: 225.13 | H60: 275.18 | I60: 275.18
A61: 8.5 | B61: SICRO | C61: 5213440 | D61: Fornecimento e implantação de placa de regulamentação em aço D = 0,60 m - película retrorrefletiva tipo I e SI (Modelo R6b - Proibido Estacionar) | E61: und | F61: 1 | G61: 225.13 | H61: 275.18 | I61: 275.18
A62: 8.6 | B62: COMPOSIÇÃO | C62: CP07 | D62: =IF(B62="SINAPI",IFERROR(INDEX(SINAPI!$B:$B,MATCH($C62,SINAPI!$A:$A,0)),""),IF(B62="COMPOSIÇÃO",IFERROR(INDEX(COMPOSIÇÃO!$C:$C,MATCH($C62,COMPOSIÇÃO!$A:$A,0)),""),"")) -> Conjuntos de suporte de fixação com tubo de aço galvanizado h=3,00m apoiado sobre bloco de concreto simples | E62: =IF(B62="SINAPI",IFERROR(INDEX(SINAPI!$C:$C,MATCH($C62,SINAPI!$A:$A,0)),""),IF(B62="COMPOSIÇÃO",IFERROR(INDEX(COMPOSIÇÃO!$D:$D,MATCH($C62,COMPOSIÇÃO!$A:$A,0)),""),"")) -> und | F62: 16 | G62: =IF(B62="SINAPI",IFERROR(INDEX(SINAPI!$D:$D,MATCH($C62,SINAPI!$A:$A,0)),0),IF(B62="COMPOSIÇÃO",IFERROR(INDEX(COMPOSIÇÃO!$G:$G,MATCH($C62,COMPOSIÇÃO!$A:$A,0)),0),0)) -> 285.1 | H62: 348.48 | I62: 5575.68
D65: =IF(B65="SINAPI",IFERROR(INDEX(SINAPI!$B:$B,MATCH($C65,SINAPI!$A:$A,0)),""),IF(B65="COMPOSIÇÃO",IFERROR(INDEX(COMPOSIÇÃO!$C:$C,MATCH($C65,COMPOSIÇÃO!$A:$A,0)),""),"")) ->  | E65: =IF(B65="SINAPI",IFERROR(INDEX(SINAPI!$C:$C,MATCH($C65,SINAPI!$A:$A,0)),""),IF(B65="COMPOSIÇÃO",IFERROR(INDEX(COMPOSIÇÃO!$D:$D,MATCH($C65,COMPOSIÇÃO!$A:$A,0)),""),"")) ->  | H65: Total Geral | I65: =SUM(I14+I18+I24+I33+I39+I44+I49+I56) -> 850213.82

Sheet COMPOSIÇÃO
A6: SERVIÇO PUBLICO FEDERAL
A7: INSTITUTO FEDERAL DE EDUCAÇÃO, CIÊNCIA E TECNOLOGIA DE MATO GROSSO
A8: =ORÇAMENTO!A6 -> CAMPUS ALTA FLORESTA
C10: COMPOSIÇÃO NÃO DESONERADO
A11: =ORÇAMENTO!A10 & " " & ORÇAMENTO!B10 -> OBRA: PAVIMENTAÇÃO
A12: TABELA SINAPI | B12: ENCARGOS SOCIAIS SOBRE PREÇOS DA MÃO-DE-OBRA: 107,58%(HORA) 66,49%(MÊS)
B13: DATA DE EMISSÃO: 15/03/2023
B14: DATA REFERÊNCIA TÉCNICA: 15/03/2023
A16: CLASSE/TIPO | B16: CÓDIGOS/ SINAPI | C16: DESCRIÇÃO | D16: UND | E16: COEFICIENTE | F16: PREÇO UNITÁRIO | G16: PREÇO TOTAL
A17: CP01 | C17: Placa de obra em chapa de aço galvanizado (4,00 x 3,00 m) | D17: M³ | G17: =G25 -> 402.96
A18: =IFERROR(INDEX(SINAPI!$E:$E,MATCH($B18,SINAPI!$A:$A,0)),"") -> INSUMO | B18: 4417 | C18: =IFERROR(INDEX(SINAPI!$B:$B,MATCH($B18,SINAPI!$A:$A,0)),"") -> SARRAFO NAO APARELHADO *2,5 X 7* CM, EM MACARANDUBA, ANGELIM OU EQUIVALENTE DA REGIAO - BRUTA | D18: =IFERROR(INDEX(SINAPI!$C:$C,MATCH($B18,SINAPI!$A:$A,0)),"") -> M | E18: 1 | F18: =IFERROR(INDEX(SINAPI!$D:$D,MATCH($B18,SINAPI!$A:$A,0)),0) -> 6.39 | G18: =IFERROR(ROUND(F18*E18,2),0) -> 6.39
A19: =IFERROR(INDEX(SINAPI!$E:$E,MATCH($B19,SINAPI!$A:$A,0)),"") -> INSUMO | B19: 4491 | C19: =IFERROR(INDEX(SINAPI!$B:$B,MATCH($B19,SINAPI!$A:$A,0)),"") -> PONTALETE *7,5 X 7,5* CM EM PINUS, MISTA OU EQUIVALENTE DA REGIAO - BRUTA | D19: =IFERROR(INDEX(SINAPI!$C:$C,MATCH($B19,SINAPI!$A:$A,0)),"") -> M | E19: 4 | F19: =IFERROR(INDEX(SINAPI!$D:$D,MATCH($B19,SINAPI!$A:$A,0)),0) -> 12.95 | G19: =IFERROR(ROUND(F19*E19,2),0) -> 51.8
A20: =IFERROR(INDEX(SINAPI!$E:$E,MATCH($B20,SINAPI!$A:$A,0)),"") -> INSUMO | B20: 4813 | C20: =IFERROR(INDEX(SINAPI!$B:$B,MATCH($B20,SINAPI!$A:$A,0)),"") -> PLACA DE OBRA (PARA CONSTRUCAO CIVIL) EM CHAPA GALVANIZADA *N. 22*, ADESIVADA, DE *2,4 X 1,2* M (SEM POSTES PARA FIXACAO) | D20: =IFERROR(INDEX(SINAPI!$C:$C,MATCH($B20,SINAPI!$A:$A,0)),"") -> M2 | E20: 1 | F20: =IFERROR(INDEX(SINAPI!$D:$D,MATCH($B20,SINAPI!$A:$A,0)),0) -> 275 | G20: 275
A21: =IFERROR(INDEX(SINAPI!$E:$E,MATCH($B21,SINAPI!$A:$A,0)),"") -> INSUMO | B21: 5075 | C21: =IFERROR(INDEX(SINAPI!$B:$B,MATCH($B21,SINAPI!$A:$A,0)),"") -> PREGO DE ACO POLIDO COM CABECA 18 X 30 (2 3/4 X 10) | D21: =IFERROR(INDEX(SINAPI!$C:$C,MATCH($B21,SINAPI!$A:$A,0)),"") -> KG | E21: 0.11 | F21: =IFERROR(INDEX(SINAPI!$D:$D,MATCH($B21,SINAPI!$A:$A,0)),0) -> 25.41 | G21: 2.8
A22: =IFERROR(INDEX(SINAPI!$E:$E,MATCH($B22,SINAPI!$A:$A,0)),"") -> COMPOSIÇÃO | B22: 88262 | C22: =IFERROR(INDEX(SINAPI!$B:$B,MATCH($B22,SINAPI!$A:$A,0)),"") -> CARPINTEIRO DE FORMAS COM ENCARGOS COMPLEMENTARES | D22: =IFERROR(INDEX(SINAPI!$C:$C,MATCH($B22,SINAPI!$A:$A,0)),"") -> H | E22: 1 | F22: =IFERROR(INDEX(SINAPI!$D:$D,MATCH($B22,SINAPI!$A:$A,0)),0) -> 23.96 | G22: 23.96
A23: =IFERROR(INDEX(SINAPI!$E:$E,MATCH($B23,SINAPI!$A:$A,0)),"") -> COMPOSIÇÃO | B23: 88316 | C23: =IFERROR(INDEX(SINAPI!$B:$B,MATCH($B23,SINAPI!$A:$A,0)),"") -> SERVENTE COM ENCARGOS COMPLEMENTARES | D23: =IFERROR(INDEX(SINAPI!$C:$C,MATCH($B23,SINAPI!$A:$A,0)),"") -> H | E23: 2 | F23: =IFERROR(INDEX(SINAPI!$D:$D,MATCH($B23,SINAPI!$A:$A,0)),0) -> 19.29 | G23: 38.58
A24: =IFERROR(INDEX(SINAPI!$E:$E,MATCH($B24,SINAPI!$A:$A,0)),"") -> COMPOSIÇÃO | B24: 94962 | C24: =IFERROR(INDEX(SINAPI!$B:$B,MATCH($B24,SINAPI!$A:$A,0)),"") -> CONCRETO MAGRO PARA LASTRO, TRAÇO 1:4,5:4,5 (EM MASSA SECA DE CIMENTO/ AREIA MÉDIA/ BRITA 1) - PREPARO MECÂNICO COM BETONEIRA 400 L. AF_05/2021 | D24: =IFERROR(INDEX(SINAPI!$C:$C,MATCH($B24,SINAPI!$A:$A,0)),"") -> M3 | E24: 0.01 | F24: =IFERROR(INDEX(SINAPI!$D:$D,MATCH($B24,SINAPI!$A:$A,0)),0) -> 443.21 | G24: 4.43
F25: TOTAL | G25: =ROUND(SUM(G18:G24),2) -> 402.96
A28: CLASSE/TIPO | B28: CÓDIGOS/ SINAPI | C28: DESCRIÇÃO | D28: UND | E28: COEFICIENTE | F28: PREÇO UNITÁRIO | G28: PREÇO TOTAL
A29: CP02 | C29: LASTRO DE VALA COM PREPARO DE FUNDO, LARGURA MENOR QUE 1,5 M, COM CAMADA DE AREIA, LANÇAMENTO MANUAL, EM LOCAL COM NÍVEL BAIXO DE INTERFERÊNCIA. AF_06/2016 | D29: M³ | G29: =G35 -> 253.71
A30: =IFERROR(INDEX(SINAPI!$E:$E,MATCH($B30,SINAPI!$A:$A,0)),"") -> INSUMO | B30: 370 | C30: =IFERROR(INDEX(SINAPI!$B:$B,MATCH($B30,SINAPI!$A:$A,0)),"") -> AREIA MEDIA - POSTO JAZIDA/FORNECEDOR (RETIRADO NA JAZIDA, SEM TRANSPORTE) | D30: =IFERROR(INDEX(SINAPI!$C:$C,MATCH($B30,SINAPI!$A:$A,0)),"") -> M3 | E30: 1.1 | F30: =IFERROR(INDEX(SINAPI!$D:$D,MATCH($B30,SINAPI!$A:$A,0)),0) -> 127.95 | G30: =IFERROR(ROUND(F30*E30,2),0) -> 140.75
A31: =IFERROR(INDEX(SINAPI!$E:$E,MATCH($B31,SINAPI!$A:$A,0)),"") -> COMPOSIÇÃO | B31: 88309 | C31: =IFERROR(INDEX(SINAPI!$B:$B,MATCH($B31,SINAPI!$A:$A,0)),"") -> PEDREIRO COM ENCARGOS COMPLEMENTARES | D31: =IFERROR(INDEX(SINAPI!$C:$C,MATCH($B31,SINAPI!$A:$A,0)),"") -> H | E31: 2.065 | F31: =IFERROR(INDEX(SINAPI!$D:$D,MATCH($B31,SINAPI!$A:$A,0)),0) -> 24.33 | G31: =IFERROR(ROUND(F31*E31,2),0) -> 50.24
A32: =IFERROR(INDEX(SINAPI!$E:$E,MATCH($B32,SINAPI!$A:$A,0)),"") -> COMPOSIÇÃO | B32: 88316 | C32: =IFERROR(INDEX(SINAPI!$B:$B,MATCH($B32,SINAPI!$A:$A,0)),"") -> SERVENTE COM ENCARGOS COMPLEMENTARES | D32: =IFERROR(INDEX(SINAPI!$C:$C,MATCH($B32,SINAPI!$A:$A,0)),"") -> H | E32: 3.097 | F32: =IFERROR(INDEX(SINAPI!$D:$D,MATCH($B32,SINAPI!$A:$A,0)),0) -> 19.29 | G32: 59.74
A33: =IFERROR(INDEX(SINAPI!$E:$E,MATCH($B33,SINAPI!$A:$A,0)),"") -> COMPOSIÇÃO | B33: 91533 | C33: =IFERROR(INDEX(SINAPI!$B:$B,MATCH($B33,SINAPI!$A:$A,0)),"") -> COMPACTADOR DE SOLOS DE PERCUSSÃO (SOQUETE) COM MOTOR A GASOLINA 4 TEMPOS, POTÊNCIA 4 CV - CHP DIURNO. AF_08/2015 | D33: =IFERROR(INDEX(SINAPI!$C:$C,MATCH($B33,SINAPI!$A:$A,0)),"") -> CHP | E33: 0.069 | F33: =IFERROR(INDEX(SINAPI!$D:$D,MATCH($B33,SINAPI!$A:$A,0)),0) -> 25.31 | G33: 1.75
A34: =IFERROR(INDEX(SINAPI!$E:$E,MATCH($B34,SINAPI!$A:$A,0)),"") -> COMPOSIÇÃO | B34: 91534 | C34: =IFERROR(INDEX(SINAPI!$B:$B,MATCH($B34,SINAPI!$A:$A,0)),"") -> COMPACTADOR DE SOLOS DE PERCUSSÃO (SOQUETE) COM MOTOR A GASOLINA 4 TEMPOS, POTÊNCIA 4 CV - CHI DIURNO. AF_08/2015 | D34: =IFERROR(INDEX(SINAPI!$C:$C,MATCH($B34,SINAPI!$A:$A,0)),"") -> CHI | E34: 0.064 | F34: =IFERROR(INDEX(SINAPI!$D:$D,MATCH($B34,SINAPI!$A:$A,0)),0) -> 19.29 | G34: 1.23
F35: TOTAL | G35: =ROUND(SUM(G30:G34),2) -> 253.71
A38: CLASSE/TIPO | B38: CÓDIGOS/ SINAPI | C38: DESCRIÇÃO | D38: UND | E38: COEFICIENTE | F38: PREÇO UNITÁRIO | G38: PREÇO TOTAL
A39: CP03 | C39: BOCA DE LOBO EM ALVENARIA TIJOLO MACICO, REVESTIDA C/ ARGAMASSA DE CIMENTO E AREIA 1:3, SOBRE LASTRO DE CONCRETO 10CM E TAMPA DE CONCRETO ARMADO | D39: und | G39: =G54 -> 1190.55
A40: =IFERROR(INDEX(SINAPI!$E:$E,MATCH($B40,SINAPI!$A:$A,0)),"") -> INSUMO | B40: 34 | C40: =IFERROR(INDEX(SINAPI!$B:$B,MATCH($B40,SINAPI!$A:$A,0)),"") -> ACO CA-50, 10,0 MM, VERGALHAO | D40: =IFERROR(INDEX(SINAPI!$C:$C,MATCH($B40,SINAPI!$A:$A,0)),"") -> KG | E40: 4.26 | F40: =IFERROR(INDEX(SINAPI!$D:$D,MATCH($B40,SINAPI!$A:$A,0)),0) -> 10.67 | G40: =IFERROR(ROUND(F40*E40,2),0) -> 45.45
A41: =IFERROR(INDEX(SINAPI!$E:$E,MATCH($B41,SINAPI!$A:$A,0)),"") -> INSUMO | B41: 367 | C41: =IFERROR(INDEX(SINAPI!$B:$B,MATCH($B41,SINAPI!$A:$A,0)),"") -> AREIA GROSSA - POSTO JAZIDA/FORNECEDOR (RETIRADO NA JAZIDA, SEM TRANSPORTE) | D41: =IFERROR(INDEX(SINAPI!$C:$C,MATCH($B41,SINAPI!$A:$A,0)),"") -> M3 | E41: 0.369 | F41: =IFERROR(INDEX(SINAPI!$D:$D,MATCH($B41,SINAPI!$A:$A,0)),0) -> 129.62 | G41: =IFERROR(ROUND(F41*E41,2),0) -> 47.83
A42: =IFERROR(INDEX(SINAPI!$E:$E,MATCH($B42,SINAPI!$A:$A,0)),"") -> INSUMO | B42: 1106 | C42: =IFERROR(INDEX(SINAPI!$B:$B,MATCH($B42,SINAPI!$A:$A,0)),"") -> CAL HIDRATADA CH-I PARA ARGAMASSAS | D42: =IFERROR(INDEX(SINAPI!$C:$C,MATCH($B42,SINAPI!$A:$A,0)),"") -> KG | E42: 24.888 | F42: =IFERROR(INDEX(SINAPI!$D:$D,MATCH($B42,SINAPI!$A:$A,0)),0) -> 0.96 | G42: 23.89
A43: =IFERROR(INDEX(SINAPI!$E:$E,MATCH($B43,SINAPI!$A:$A,0)),"") -> INSUMO | B43: 43681 | C43: =IFERROR(INDEX(SINAPI!$B:$B,MATCH($B43,SINAPI!$A:$A,0)),"") -> CHAPA/PAINEL DE MADEIRA COMPENSADA RESINADA (MADEIRITE RESINADO ROSA) PARA FORMA DE CONCRETO, DE 2200 x 1100 MM, E = 8 A 12 MM | D43: =IFERROR(INDEX(SINAPI!$C:$C,MATCH($B43,SINAPI!$A:$A,0)),"") -> M2 | E43: 0.1338843 | F43: =IFERROR(INDEX(SINAPI!$D:$D,MATCH($B43,SINAPI!$A:$A,0)),0) -> 39.25 | G43: 5.25
A44: =IFERROR(INDEX(SINAPI!$E:$E,MATCH($B44,SINAPI!$A:$A,0)),"") -> INSUMO | B44: 1379 | C44: =IFERROR(INDEX(SINAPI!$B:$B,MATCH($B44,SINAPI!$A:$A,0)),"") -> CIMENTO PORTLAND COMPOSTO CP II-32 | D44: =IFERROR(INDEX(SINAPI!$C:$C,MATCH($B44,SINAPI!$A:$A,0)),"") -> KG | E44: 87.186 | F44: =IFERROR(INDEX(SINAPI!$D:$D,MATCH($B44,SINAPI!$A:$A,0)),0) -> 0.94 | G44: 81.95
A45: =IFERROR(INDEX(SINAPI!$E:$E,MATCH($B45,SINAPI!$A:$A,0)),"") -> INSUMO | B45: 4718 | C45: =IFERROR(INDEX(SINAPI!$B:$B,MATCH($B45,SINAPI!$A:$A,0)),"") -> PEDRA BRITADA N. 2 (19 A 38 MM) POSTO PEDREIRA/FORNECEDOR, SEM FRETE | D45: =IFERROR(INDEX(SINAPI!$C:$C,MATCH($B45,SINAPI!$A:$A,0)),"") -> M3 | E45: 0.126 | F45: =IFERROR(INDEX(SINAPI!$D:$D,MATCH($B45,SINAPI!$A:$A,0)),0) -> 113.24 | G45: 14.27
A46: =IFERROR(INDEX(SINAPI!$E:$E,MATCH($B46,SINAPI!$A:$A,0)),"") -> INSUMO | B46: 4721 | C46: =IFERROR(INDEX(SINAPI!$B:$B,MATCH($B46,SINAPI!$A:$A,0)),"") -> PEDRA BRITADA N. 1 (9,5 a 19 MM) POSTO PEDREIRA/FORNECEDOR, SEM FRETE | D46: =IFERROR(INDEX(SINAPI!$C:$C,MATCH($B46,SINAPI!$A:$A,0)),"") -> M3 | E46: 0.032 | F46: =IFERROR(INDEX(SINAPI!$D:$D,MATCH($B46,SINAPI!$A:$A,0)),0) -> 112.64 | G46: 3.6
A47: =IFERROR(INDEX(SINAPI!$E:$E,MATCH($B47,SINAPI!$A:$A,0)),"") -> INSUMO | B47: 6189 | C47: =IFERROR(INDEX(SINAPI!$B:$B,MATCH($B47,SINAPI!$A:$A,0)),"") -> TABUA NAO APARELHADA *2,5 X 30* CM, EM MACARANDUBA, ANGELIM OU EQUIVALENTE DA REGIAO - BRUTA | D47: =IFERROR(INDEX(SINAPI!$C:$C,MATCH($B47,SINAPI!$A:$A,0)),"") -> M | E47: 0.30749 | F47: =IFERROR(INDEX(SINAPI!$D:$D,MATCH($B47,SINAPI!$A:$A,0)),0) -> 24.23 | G47: 7.45
A48: =IFERROR(INDEX(SINAPI!$E:$E,MATCH($B48,SINAPI!$A:$A,0)),"") -> INSUMO | B48: 7258 | C48: =IFERROR(INDEX(SINAPI!$B:$B,MATCH($B48,SINAPI!$A:$A,0)),"") -> TIJOLO CERAMICO MACICO COMUM *5 X 10 X 20* CM (L X A X C) | D48: =IFERROR(INDEX(SINAPI!$C:$C,MATCH($B48,SINAPI!$A:$A,0)),"") -> UN | E48: 381.6 | F48: =IFERROR(INDEX(SINAPI!$D:$D,MATCH($B48,SINAPI!$A:$A,0)),0) -> 0.92 | G48: 351.07
A49: =IFERROR(INDEX(SINAPI!$E:$E,MATCH($B49,SINAPI!$A:$A,0)),"") -> INSUMO | B49: 43132 | C49: =IFERROR(INDEX(SINAPI!$B:$B,MATCH($B49,SINAPI!$A:$A,0)),"") -> ARAME RECOZIDO 16 BWG, D = 1,65 MM (0,016 KG/M) OU 18 BWG, D = 1,25 MM (0,01 KG/M) | D49: =IFERROR(INDEX(SINAPI!$C:$C,MATCH($B49,SINAPI!$A:$A,0)),"") -> KG | E49: 0.072 | F49: =IFERROR(INDEX(SINAPI!$D:$D,MATCH($B49,SINAPI!$A:$A,0)),0) -> 24.95 | G49: 1.8
A50: =IFERROR(INDEX(SINAPI!$E:$E,MATCH($B50,SINAPI!$A:$A,0)),"") -> COMPOSIÇÃO | B50: 88245 | C50: =IFERROR(INDEX(SINAPI!$B:$B,MATCH($B50,SINAPI!$A:$A,0)),"") -> ARMADOR COM ENCARGOS COMPLEMENTARES | D50: =IFERROR(INDEX(SINAPI!$C:$C,MATCH($B50,SINAPI!$A:$A,0)),"") -> H | E50: 0.413 | F50: =IFERROR(INDEX(SINAPI!$D:$D,MATCH($B50,SINAPI!$A:$A,0)),0) -> 24.14 | G50: 9.97
A51: =IFERROR(INDEX(SINAPI!$E:$E,MATCH($B51,SINAPI!$A:$A,0)),"") -> COMPOSIÇÃO | B51: 88262 | C51: =IFERROR(INDEX(SINAPI!$B:$B,MATCH($B51,SINAPI!$A:$A,0)),"") -> CARPINTEIRO DE FORMAS COM ENCARGOS COMPLEMENTARES | D51: =IFERROR(INDEX(SINAPI!$C:$C,MATCH($B51,SINAPI!$A:$A,0)),"") -> H | E51: 1.96 | F51: =IFERROR(INDEX(SINAPI!$D:$D,MATCH($B51,SINAPI!$A:$A,0)),0) -> 23.96 | G51: 46.96
A52: =IFERROR(INDEX(SINAPI!$E:$E,MATCH($B52,SINAPI!$A:$A,0)),"") -> COMPOSIÇÃO | B52: 88309 | C52: =IFERROR(INDEX(SINAPI!$B:$B,MATCH($B52,SINAPI!$A:$A,0)),"") -> PEDREIRO COM ENCARGOS COMPLEMENTARES | D52: =IFERROR(INDEX(SINAPI!$C:$C,MATCH($B52,SINAPI!$A:$A,0)),"") -> H | E52: 8.211 | F52: =IFERROR(INDEX(SINAPI!$D:$D,MATCH($B52,SINAPI!$A:$A,0)),0) -> 24.33 | G52: 199.77
A53: =IFERROR(INDEX(SINAPI!$E:$E,MATCH($B53,SINAPI!$A:$A,0)),"") -> COMPOSIÇÃO | B53: 88316 | C53: =IFERROR(INDEX(SINAPI!$B:$B,MATCH($B53,SINAPI!$A:$A,0)),"") -> SERVENTE COM ENCARGOS COMPLEMENTARES | D53: =IFERROR(INDEX(SINAPI!$C:$C,MATCH($B53,SINAPI!$A:$A,0)),"") -> H | E53: 18.211 | F53: =IFERROR(INDEX(SINAPI!$D:$D,MATCH($B53,SINAPI!$A:$A,0)),0) -> 19.29 | G53: 351.29
F54: TOTAL | G54: =ROUND(SUM(G40:G53),2) -> 1190.55
A57: CLASSE/TIPO | B57: CÓDIGOS/ SINAPI | C57: DESCRIÇÃO | D57: UND | E57: COEFICIENTE | F57: PREÇO UNITÁRIO | G57: PREÇO TOTAL
A58: CP04 | C58: Assentamento de tampa circular para esgoto e drenagem, em ferro fundido, diâmetro interno = 0,60 m | D58: und | G58: =G63 -> 837.63
A59: =IFERROR(INDEX(SINAPI!$E:$E,MATCH($B59,SINAPI!$A:$A,0)),"") -> COMPOSIÇÃO | B59: 88309 | C59: =IFERROR(INDEX(SINAPI!$B:$B,MATCH($B59,SINAPI!$A:$A,0)),"") -> PEDREIRO COM ENCARGOS COMPLEMENTARES | D59: =IFERROR(INDEX(SINAPI!$C:$C,MATCH($B59,SINAPI!$A:$A,0)),"") -> H | E59: 1.4045 | F59: =IFERROR(INDEX(SINAPI!$D:$D,MATCH($B59,SINAPI!$A:$A,0)),0) -> 24.33 | G59: =IFERROR(ROUND(F59*E59,2),0) -> 34.17
A60: =IFERROR(INDEX(SINAPI!$E:$E,MATCH($B60,SINAPI!$A:$A,0)),"") -> COMPOSIÇÃO | B60: 88316 | C60: =IFERROR(INDEX(SINAPI!$B:$B,MATCH($B60,SINAPI!$A:$A,0)),"") -> SERVENTE COM ENCARGOS COMPLEMENTARES | D60: =IFERROR(INDEX(SINAPI!$C:$C,MATCH($B60,SINAPI!$A:$A,0)),"") -> H | E60: 1.4045 | F60: =IFERROR(INDEX(SINAPI!$D:$D,MATCH($B60,SINAPI!$A:$A,0)),0) -> 19.29 | G60: =IFERROR(ROUND(F60*E60,2),0) -> 27.09
A61: =IFERROR(INDEX(SINAPI!$E:$E,MATCH($B61,SINAPI!$A:$A,0)),"") -> INSUMO | B61: 6240 | C61: =IFERROR(INDEX(SINAPI!$B:$B,MATCH($B61,SINAPI!$A:$A,0)),"") -> TAMPAO FOFO SIMPLES COM BASE, CLASSE D400 CARGA MAX 40 T, REDONDO, TAMPA 600 MM, REDE PLUVIAL/ESGOTO (COM INSCRICAO EM RELEVO DO TIPO DE REDE) | D61: =IFERROR(INDEX(SINAPI!$C:$C,MATCH($B61,SINAPI!$A:$A,0)),"") -> UN | E61: 1 | F61: =IFERROR(INDEX(SINAPI!$D:$D,MATCH($B61,SINAPI!$A:$A,0)),0) -> 761.31 | G61: =IFERROR(ROUND(F61*E61,2),0) -> 761.31
A62: =IFERROR(INDEX(SINAPI!$E:$E,MATCH($B62,SINAPI!$A:$A,0)),"") -> COMPOSIÇÃO | B62: 94970 | C62: =IFERROR(INDEX(SINAPI!$B:$B,MATCH($B62,SINAPI!$A:$A,0)),"") -> CONCRETO FCK = 20MPA, TRAÇO 1:2,7:3 (EM MASSA SECA DE CIMENTO/ AREIA MÉDIA/ BRITA 1) - PREPARO MECÂNICO COM BETONEIRA 600 L. AF_05/2021 | D62: =IFERROR(INDEX(SINAPI!$C:$C,MATCH($B62,SINAPI!$A:$A,0)),"") -> M3 | E62: 0.0281 | F62: =IFERROR(INDEX(SINAPI!$D:$D,MATCH($B62,SINAPI!$A:$A,0)),0) -> 535.84 | G62: 15.06
F63: TOTAL | G63: =ROUND(SUM(G59:G62),2) -> 837.63
A66: CLASSE/TIPO | B66: CÓDIGOS/ SINAPI | C66: DESCRIÇÃO | D66: UND | E66: COEFICIENTE | F66: PREÇO UNITÁRIO | G66: PREÇO TOTAL
A67: CP05 | C67: Assentamento de piso tátil direcional e/ou alerta (ladrilho hidráulico), colorido, p/ deficientes visuais, dimensões 20x20cm, aplicado com argamassa industrializada AC-II, rejuntado, exclusive regularização de base e aquisição de ladrilho hidráulico | D67: m² | G67: =G73 -> 132.71
A68: =IFERROR(INDEX(SINAPI!$E:$E,MATCH($B68,SINAPI!$A:$A,0)),"") -> INSUMO | B68: 34357 | C68: =IFERROR(INDEX(SINAPI!$B:$B,MATCH($B68,SINAPI!$A:$A,0)),"") -> REJUNTE CIMENTICIO, QUALQUER COR | D68: =IFERROR(INDEX(SINAPI!$C:$C,MATCH($B68,SINAPI!$A:$A,0)),"") -> KG | E68: 0.52 | F68: =IFERROR(INDEX(SINAPI!$D:$D,MATCH($B68,SINAPI!$A:$A,0)),0) -> 6.16 | G68: =IFERROR(ROUND(F68*E68,2),0) -> 3.2
A69: =IFERROR(INDEX(SINAPI!$E:$E,MATCH($B69,SINAPI!$A:$A,0)),"") -> INSUMO | B69: 34353 | C69: =IFERROR(INDEX(SINAPI!$B:$B,MATCH($B69,SINAPI!$A:$A,0)),"") -> ARGAMASSA COLANTE AC II | D69: =IFERROR(INDEX(SINAPI!$C:$C,MATCH($B69,SINAPI!$A:$A,0)),"") -> KG | E69: 4 | F69: =IFERROR(INDEX(SINAPI!$D:$D,MATCH($B69,SINAPI!$A:$A,0)),0) -> 1.95 | G69: =IFERROR(ROUND(F69*E69,2),0) -> 7.8
A70: =IFERROR(INDEX(SINAPI!$E:$E,MATCH($B70,SINAPI!$A:$A,0)),"") -> INSUMO | B70: 38135 | C70: =IFERROR(INDEX(SINAPI!$B:$B,MATCH($B70,SINAPI!$A:$A,0)),"") -> LADRILHO HIDRAULICO, *20 X 20* CM, E= 2 CM, TATIL ALERTA OU DIRECIONAL, AMARELO | D70: =IFERROR(INDEX(SINAPI!$C:$C,MATCH($B70,SINAPI!$A:$A,0)),"") -> M2 | E70: 1 | F70: =IFERROR(INDEX(SINAPI!$D:$D,MATCH($B70,SINAPI!$A:$A,0)),0) -> 86.39 | G70: =IFERROR(ROUND(F70*E70,2),0) -> 86.39
A71: =IFERROR(INDEX(SINAPI!$E:$E,MATCH($B71,SINAPI!$A:$A,0)),"") -> COMPOSIÇÃO | B71: 88309 | C71: =IFERROR(INDEX(SINAPI!$B:$B,MATCH($B71,SINAPI!$A:$A,0)),"") -> PEDREIRO COM ENCARGOS COMPLEMENTARES | D71: =IFERROR(INDEX(SINAPI!$C:$C,MATCH($B71,SINAPI!$A:$A,0)),"") -> H | E71: 0.5 | F71: =IFERROR(INDEX(SINAPI!$D:$D,MATCH($B71,SINAPI!$A:$A,0)),0) -> 24.33 | G71: 12.17
A72: =IFERROR(INDEX(SINAPI!$E:$E,MATCH($B72,SINAPI!$A:$A,0)),"") -> COMPOSIÇÃO | B72: 88316 | C72: =IFERROR(INDEX(SINAPI!$B:$B,MATCH($B72,SINAPI!$A:$A,0)),"") -> SERVENTE COM ENCARGOS COMPLEMENTARES | D72: =IFERROR(INDEX(SINAPI!$C:$C,MATCH($B72,SINAPI!$A:$A,0)),"") -> H | E72: 1.2 | F72: =IFERROR(INDEX(SINAPI!$D:$D,MATCH($B72,SINAPI!$A:$A,0)),0) -> 19.29 | G72: 23.15
F73: TOTAL | G73: =ROUND(SUM(G68:G72),2) -> 132.71
A76: CLASSE/TIPO | B76: CÓDIGOS/ SINAPI | C76: DESCRIÇÃO | D76: UND | E76: COEFICIENTE | F76: PREÇO UNITÁRIO | G76: PREÇO TOTAL
A77: CP06 | C77: Sinalização horizontal, com tinta retrorrefletiva a base de resina acrilica com microesferas de vidro | D77: m² | G77: =G85 -> 16.51
A78: =IFERROR(INDEX(SINAPI!$E:$E,MATCH($B78,SINAPI!$A:$A,0)),"") -> INSUMO | B78: 5318 | C78: =IFERROR(INDEX(SINAPI!$B:$B,MATCH($B78,SINAPI!$A:$A,0)),"") -> DILUENTE AGUARRAS | D78: =IFERROR(INDEX(SINAPI!$C:$C,MATCH($B78,SINAPI!$A:$A,0)),"") -> L | E78: 0.13 | F78: =IFERROR(INDEX(SINAPI!$D:$D,MATCH($B78,SINAPI!$A:$A,0)),0) -> 17.99 | G78: =IFERROR(ROUND(F78*E78,2),0) -> 2.34
A79: =IFERROR(INDEX(SINAPI!$E:$E,MATCH($B79,SINAPI!$A:$A,0)),"") -> COMPOSIÇÃO | B79: 5824 | C79: =IFERROR(INDEX(SINAPI!$B:$B,MATCH($B79,SINAPI!$A:$A,0)),"") -> CAMINHÃO TOCO, PBT 16.000 KG, CARGA ÚTIL MÁX. 10.685 KG, DIST. ENTRE EIXOS 4,8 M, POTÊNCIA 189 CV, INCLUSIVE CARROCERIA FIXA ABERTA DE MADEIRA P/ TRANSPORTE GERAL DE CARGA SECA, DIMEN. APROX. 2,5 X 7,00 X 0,50 M - CHP DIURNO. AF_06/2014 | D79: =IFERROR(INDEX(SINAPI!$C:$C,MATCH($B79,SINAPI!$A:$A,0)),"") -> CHP | E79: 0.003333 | F79: =IFERROR(INDEX(SINAPI!$D:$D,MATCH($B79,SINAPI!$A:$A,0)),0) -> 207.8 | G79: =IFERROR(ROUND(F79*E79,2),0) -> 0.69
A80: =IFERROR(INDEX(SINAPI!$E:$E,MATCH($B80,SINAPI!$A:$A,0)),"") -> INSUMO | B80: 7343 | C80: =IFERROR(INDEX(SINAPI!$B:$B,MATCH($B80,SINAPI!$A:$A,0)),"") -> TINTA ACRILICA A BASE DE SOLVENTE, PARA SINALIZACAO HORIZONTAL VIARIA (NBR 11862) | D80: =IFERROR(INDEX(SINAPI!$C:$C,MATCH($B80,SINAPI!$A:$A,0)),"") -> L | E80: 0.6 | F80: =IFERROR(INDEX(SINAPI!$D:$D,MATCH($B80,SINAPI!$A:$A,0)),0) -> 9.9 | G80: 5.94
A81: =IFERROR(INDEX(SINAPI!$E:$E,MATCH($B81,SINAPI!$A:$A,0)),"") -> INSUMO | B81: 7348 | C81: =IFERROR(INDEX(SINAPI!$B:$B,MATCH($B81,SINAPI!$A:$A,0)),"") -> TINTA ACRILICA PREMIUM PARA PISO | D81: =IFERROR(INDEX(SINAPI!$C:$C,MATCH($B81,SINAPI!$A:$A,0)),"") -> L | E81: 0.03 | F81: =IFERROR(INDEX(SINAPI!$D:$D,MATCH($B81,SINAPI!$A:$A,0)),0) -> 18.02 | G81: 0.54
A82: =IFERROR(INDEX(SINAPI!$E:$E,MATCH($B82,SINAPI!$A:$A,0)),"") -> INSUMO | B82: 44478 | C82: =IFERROR(INDEX(SINAPI!$B:$B,MATCH($B82,SINAPI!$A:$A,0)),"") -> MICROESFERAS DE VIDRO PARA SINALIZACAO HORIZONTAL VIARIA, TIPO I-B (PREMIX) - NBR 16184 | D82: =IFERROR(INDEX(SINAPI!$C:$C,MATCH($B82,SINAPI!$A:$A,0)),"") -> KG | E82: 0.4 | F82: =IFERROR(INDEX(SINAPI!$D:$D,MATCH($B82,SINAPI!$A:$A,0)),0) -> 14.58 | G82: 5.83
A83: =IFERROR(INDEX(SINAPI!$E:$E,MATCH($B83,SINAPI!$A:$A,0)),"") -> COMPOSIÇÃO | B83: 88316 | C83: =IFERROR(INDEX(SINAPI!$B:$B,MATCH($B83,SINAPI!$A:$A,0)),"") -> SERVENTE COM ENCARGOS COMPLEMENTARES | D83: =IFERROR(INDEX(SINAPI!$C:$C,MATCH($B83,SINAPI!$A:$A,0)),"") -> H | E83: 0.03333 | F83: =IFERROR(INDEX(SINAPI!$D:$D,MATCH($B83,SINAPI!$A:$A,0)),0) -> 19.29 | G83: 0.64
A84: =IFERROR(INDEX(SINAPI!$E:$E,MATCH($B84,SINAPI!$A:$A,0)),"") -> COMPOSIÇÃO | B84: 95133 | C84: =IFERROR(INDEX(SINAPI!$B:$B,MATCH($B84,SINAPI!$A:$A,0)),"") -> MÁQUINA DEMARCADORA DE FAIXA DE TRÁFEGO À FRIO, AUTOPROPELIDA, POTÊNCIA 38 HP - CHP DIURNO. AF_07/2016 | D84: =IFERROR(INDEX(SINAPI!$C:$C,MATCH($B84,SINAPI!$A:$A,0)),"") -> CHP | E84: 0.003333 | F84: =IFERROR(INDEX(SINAPI!$D:$D,MATCH($B84,SINAPI!$A:$A,0)),0) -> 157.92 | G84: 0.53
F85: TOTAL | G85: =ROUND(SUM(G78:G84),2) -> 16.51
A88: CLASSE/TIPO | B88: CÓDIGOS/ SINAPI | C88: DESCRIÇÃO | D88: UND | E88: COEFICIENTE | F88: PREÇO UNITÁRIO | G88: PREÇO TOTAL
A89: CP07 | C89: Conjuntos de suporte de fixação com tubo de aço galvanizado h=3,00m apoiado sobre bloco de concreto simples | D89: und | G89: =G96 -> 285.1
A90: =IFERROR(INDEX(SINAPI!$E:$E,MATCH($B90,SINAPI!$A:$A,0)),"") -> INSUMO | B90: 21013 | C90: =IFERROR(INDEX(SINAPI!$B:$B,MATCH($B90,SINAPI!$A:$A,0)),"") -> TUBO ACO GALVANIZADO COM COSTURA, CLASSE LEVE, DN 50 MM ( 2"), E = 3,00 MM, *4,40* KG/M (NBR 5580) | D90: =IFERROR(INDEX(SINAPI!$C:$C,MATCH($B90,SINAPI!$A:$A,0)),"") -> M | E90: 3 | F90: =IFERROR(INDEX(SINAPI!$D:$D,MATCH($B90,SINAPI!$A:$A,0)),0) -> 75.26 | G90: =IFERROR(ROUND(F90*E90,2),0) -> 225.78
A91: =IFERROR(INDEX(SINAPI!$E:$E,MATCH($B91,SINAPI!$A:$A,0)),"") -> INSUMO | B91: 13246 | C91: =IFERROR(INDEX(SINAPI!$B:$B,MATCH($B91,SINAPI!$A:$A,0)),"") -> PARAFUSO DE FERRO POLIDO, SEXTAVADO, COM ROSCA INTEIRA, DIAMETRO 5/16", COMPRIMENTO 3/4", COM PORCA E ARRUELA LISA LEVE | D91: =IFERROR(INDEX(SINAPI!$C:$C,MATCH($B91,SINAPI!$A:$A,0)),"") -> UN | E91: 2 | F91: =IFERROR(INDEX(SINAPI!$D:$D,MATCH($B91,SINAPI!$A:$A,0)),0) -> 0.48 | G91: =IFERROR(ROUND(F91*E91,2),0) -> 0.96
A92: =IFERROR(INDEX(SINAPI!$E:$E,MATCH($B92,SINAPI!$A:$A,0)),"") -> INSUMO | B92: 1166 | C92: =IFERROR(INDEX(SINAPI!$B:$B,MATCH($B92,SINAPI!$A:$A,0)),"") -> CAP OU TAMPAO DE FERRO GALVANIZADO, COM ROSCA BSP, DE 2" | D92: =IFERROR(INDEX(SINAPI!$C:$C,MATCH($B92,SINAPI!$A:$A,0)),"") -> UN | E92: 1 | F92: =IFERROR(INDEX(SINAPI!$D:$D,MATCH($B92,SINAPI!$A:$A,0)),0) -> 20.13 | G92: 20.13
A93: =IFERROR(INDEX(SINAPI!$E:$E,MATCH($B93,SINAPI!$A:$A,0)),"") -> COMPOSIÇÃO | B93: 88309 | C93: =IFERROR(INDEX(SINAPI!$B:$B,MATCH($B93,SINAPI!$A:$A,0)),"") -> PEDREIRO COM ENCARGOS COMPLEMENTARES | D93: =IFERROR(INDEX(SINAPI!$C:$C,MATCH($B93,SINAPI!$A:$A,0)),"") -> H | E93: 0.5 | F93: =IFERROR(INDEX(SINAPI!$D:$D,MATCH($B93,SINAPI!$A:$A,0)),0) -> 24.33 | G93: 12.17
A94: =IFERROR(INDEX(SINAPI!$E:$E,MATCH($B94,SINAPI!$A:$A,0)),"") -> COMPOSIÇÃO | B94: 88316 | C94: =IFERROR(INDEX(SINAPI!$B:$B,MATCH($B94,SINAPI!$A:$A,0)),"") -> SERVENTE COM ENCARGOS COMPLEMENTARES | D94: =IFERROR(INDEX(SINAPI!$C:$C,MATCH($B94,SINAPI!$A:$A,0)),"") -> H | E94: 0.5 | F94: =IFERROR(INDEX(SINAPI!$D:$D,MATCH($B94,SINAPI!$A:$A,0)),0) -> 19.29 | G94: 9.65
A95: =IFERROR(INDEX(SINAPI!$E:$E,MATCH($B95,SINAPI!$A:$A,0)),"") -> COMPOSIÇÃO | B95: 94963 | C95: =IFERROR(INDEX(SINAPI!$B:$B,MATCH($B95,SINAPI!$A:$A,0)),"") -> CONCRETO FCK = 15MPA, TRAÇO 1:3,4:3,5 (EM MASSA SECA DE CIMENTO/ AREIA MÉDIA/ BRITA 1) - PREPARO MECÂNICO COM BETONEIRA 400 L. AF_05/2021 | D95: =IFERROR(INDEX(SINAPI!$C:$C,MATCH($B95,SINAPI!$A:$A,0)),"") -> M3 | E95: 0.033 | F95: =IFERROR(INDEX(SINAPI!$D:$D,MATCH($B95,SINAPI!$A:$A,0)),0) -> 497.32 | G95: 16.41
F96: TOTAL | G96: =ROUND(SUM(G90:G95),2) -> 285.1
A99: CLASSE/TIPO | B99: CÓDIGOS/ SINAPI | C99: DESCRIÇÃO | D99: UND | E99: COEFICIENTE | F99: PREÇO UNITÁRIO | G99: PREÇO TOTAL
A100: CP08 | C100: ENSAIOS DE BASE ESTABILIZADA GRANULOMETRICAMENTE | D100: M³ | G100: =G108 -> 4.48
A101: ORSE | B101: 4682 | C101: Ensaio - Granulometria por peneiramento | D101: Und | E101: 0.0017 | F101: 140 | G101: =IFERROR(ROUND(F101*E101,2),0) -> 0.24
A102: ORSE | B102: 4683 | C102: Ensaio - Limite de liquidez | D102: Und | E102: 0.0017 | F102: 140 | G102: =IFERROR(ROUND(F102*E102,2),0) -> 0.24
A103: ORSE | B103: 4684 | C103: Ensaio - Limite de plasticidade | D103: Und | E103: 0.0017 | F103: 140 | G103: 0.24
A104: ORSE | B104: 4685 | C104: Ensaio - Compactação Proctor Normal com reuso de material (6 pontos) | D104: Und | E104: 0.0017 | F104: 202 | G104: 0.34
A105: COMPESA | B105: 01.07.11U | C105: ENSAIO DE MASSA ESPECÍFICA - IN SITU - MÉTODO BALÃO DE BORRACHA - SOLOS | D105: Und | E105: 0.005 | F105: 56.53 | G105: 0.28
A106: EMOP | B106: 01.001.0017-0 | C106: INDICE SUPORTE CALIFORNIA,POR 3 PONTOS,COMPACTACAO COM ENERGIA PROCTOR NORMAL | D106: Und | E106: 0.0017 | F106: 1758.91 | G106: 2.99
A107: SETOP | B107: ENS-SOL-080 | C107: ENSAIO DE TEOR DE UMIDADE - PROCESSO SPEEDY - SOLOS E AGREGADOS MIUDOS | D107: =IFERROR(INDEX(SINAPI!$C:$C,MATCH($B107,SINAPI!$A:$A,0)),"") ->  | E107: 0.005 | F107: 30.92 | G107: 0.15
F108: TOTAL | G108: =ROUND(SUM(G101:G107),2) -> 4.48
A111: CLASSE/TIPO | B111: CÓDIGOS/ SINAPI | C111: DESCRIÇÃO | D111: UND | E111: COEFICIENTE | F111: PREÇO UNITÁRIO | G111: PREÇO TOTAL
A112: CP09 | C112: ENSAIO DE RESISTÊNCIA DE CONCRETO - FCK | D112: Und | G112: =G115 -> 142.67
A113: =IFERROR(INDEX(SINAPI!$E:$E,MATCH($B113,SINAPI!$A:$A,0)),"") -> COMPOSIÇÃO | B113: 88249 | C113: =IFERROR(INDEX(SINAPI!$B:$B,MATCH($B113,SINAPI!$A:$A,0)),"") -> AUXILIAR DE LABORATÓRIO COM ENCARGOS COMPLEMENTARES | D113: =IFERROR(INDEX(SINAPI!$C:$C,MATCH($B113,SINAPI!$A:$A,0)),"") -> H | E113: 3.6 | F113: =IFERROR(INDEX(SINAPI!$D:$D,MATCH($B113,SINAPI!$A:$A,0)),0) -> 25.63 | G113: =IFERROR(ROUND(F113*E113,2),0) -> 92.27
A114: =IFERROR(INDEX(SINAPI!$E:$E,MATCH($B114,SINAPI!$A:$A,0)),"") -> COMPOSIÇÃO | B114: 88321 | C114: =IFERROR(INDEX(SINAPI!$B:$B,MATCH($B114,SINAPI!$A:$A,0)),"") -> TÉCNICO DE LABORATÓRIO COM ENCARGOS COMPLEMENTARES | D114: =IFERROR(INDEX(SINAPI!$C:$C,MATCH($B114,SINAPI!$A:$A,0)),"") -> H | E114: 1.8 | F114: =IFERROR(INDEX(SINAPI!$D:$D,MATCH($B114,SINAPI!$A:$A,0)),0) -> 28 | G114: =IFERROR(ROUND(F114*E114,2),0) -> 50.4
F115: TOTAL | G115: =ROUND(SUM(G113:G114),2) -> 142.67
A118: CLASSE/TIPO | B118: CÓDIGOS/ SINAPI | C118: DESCRIÇÃO | D118: UND | E118: COEFICIENTE | F118: PREÇO UNITÁRIO | G118: PREÇO TOTAL
A119: CP10 | C119: TUBO E ASSENTAMENTO DE TUBO DE CONCRETO PARA REDES COLETORAS DE ÁGUAS PLUVIAIS, DIÂMETRO DE 400 MM, JUNTA RÍGIDA, INSTALADO EM LOCAL COM BAIXO NÍVEL DE INTERFERÊNCIAS. | D119: M | G119: =G122 -> 167.46
A120: =IFERROR(INDEX(SINAPI!$E:$E,MATCH($B120,SINAPI!$A:$A,0)),"") -> INSUMO | B120: 7745 | C120: =IFERROR(INDEX(SINAPI!$B:$B,MATCH($B120,SINAPI!$A:$A,0)),"") -> TUBO DE CONCRETO ARMADO PARA AGUAS PLUVIAIS, CLASSE PA-1, COM ENCAIXE PONTA E BOLSA, DIAMETRO NOMINAL DE 400 MM | D120: =IFERROR(INDEX(SINAPI!$C:$C,MATCH($B120,SINAPI!$A:$A,0)),"") -> M | E120: 1 | F120: =IFERROR(INDEX(SINAPI!$D:$D,MATCH($B120,SINAPI!$A:$A,0)),0) -> 118.86 | G120: =IFERROR(ROUND(F120*E120,2),0) -> 118.86
A121: =IFERROR(INDEX(SINAPI!$E:$E,MATCH($B121,SINAPI!$A:$A,0)),"") -> COMPOSIÇÃO | B121: 92809 | C121: =IFERROR(INDEX(SINAPI!$B:$B,MATCH($B121,SINAPI!$A:$A,0)),"") -> ASSENTAMENTO DE TUBO DE CONCRETO PARA REDES COLETORAS DE ÁGUAS PLUVIAIS, DIÂMETRO DE 400 MM, JUNTA RÍGIDA, INSTALADO EM LOCAL COM BAIXO NÍVEL DE INTERFERÊNCIAS (NÃO INCLUI FORNECIMENTO). AF_12/2015 | D121: =IFERROR(INDEX(SINAPI!$C:$C,MATCH($B121,SINAPI!$A:$A,0)),"") -> M | E121: 1 | F121: =IFERROR(INDEX(SINAPI!$D:$D,MATCH($B121,SINAPI!$A:$A,0)),0) -> 48.6 | G121: =IFERROR(ROUND(F121*E121,2),0) -> 48.6
F122: TOTAL | G122: =ROUND(SUM(G120:G121),2) -> 167.46

Sheet CURVA ABC
A5: INSTITUTO FEDERAL DE EDUCAÇÃO, CIÊNCIA E TECNOLOGIA DE MATO GROSSO
A6: =ORÇAMENTO!A6 -> CAMPUS ALTA FLORESTA
A8: CURVA ABC
A9: LOCAL: | B9: =ORÇAMENTO!B9 -> ALF | H9: BDI: | I9: =BDI!C26 -> 0.2223 | J9: FAIXAS DE CORTE
A10: OBRA: | B10: =ORÇAMENTO!B10 -> PAVIMENTAÇÃO | J10: A | K10: B | L10: C
J11: 0.8 | K11: 0.95 | L11: 1
A13: ITEM | B13: REFERÊNCIA | C13: CÓDIGO | D13: DESCRIÇÃO DETALHADA | E13: UND | F13: QTD | G13: VALOR UNIT (R$) | H13: VALOR UNIT c/ BDI (R$) | I13: VALOR TOTAL (R$) | J13: % ITEM | K13: % ACUM | L13: CLASSE
A14: 5.1 | B14: SINAPI | C14: 92396 | D14: EXECUÇÃO DE PASSEIO EM PISO INTERTRAVADO, COM BLOCO RETANGULAR COR NATURAL DE 20 X 10 CM, ESPESSURA 6 CM. AF_10/2022 | E14: M2 | F14: 3089.47 | G14: 93.88 | H14: 114.75 | I14: 354516.68 | J14: =I14/$I$47 -> 0.4169735561 | K14: =J14 -> 0.4169735561 | L14: =IF(K14<=$J$11,"A",IF(K14<=$K$11,"B","C")) -> A
A15: 7.3 | B15: SINAPI | C15: 94991 | D15: EXECUÇÃO DE PASSEIO (CALÇADA) OU PISO DE CONCRETO COM CONCRETO MOLDADO IN LOCO, USINADO, ACABAMENTO CONVENCIONAL, NÃO ARMADO. AF_08/2022 | E15: M3 | F15: 167.22 | G15: 965.27 | H15: 1179.85 | I15: 197294.52 | J15: =I15/$I$47 -> 0.2320528264 | K15: =K14+J15 -> 0.6490263826 | L15: =IF(K15<=$J$11,"A",IF(K15<=$K$11,"B","C")) -> A
A16: 5.2 | B16: SINAPI | C16: 94267 | D16: GUIA (MEIO-FIO) E SARJETA CONJUGADOS DE CONCRETO, MOLDADA IN LOCO EM TRECHO RETO COM EXTRUSORA, 45 CM BASE (15 CM BASE DA GUIA + 30 CM BASE DA SARJETA) X 22 CM ALTURA. AF_06/2016 | E16: M | F16: 714.93 | G16: 65.62 | H16: 80.21 | I16: 57344.54 | J16: 0.06744719816 | K16: =K15+J16 -> 0.7164735807 | L16: A
A17: 1.3 | B17: SINAPI | C17: 4083 | D17: ENCARREGADO GERAL DE OBRAS (HORISTA) | E17: H | F17: 995.53 | G17: 25.07 | H17: 30.64 | I17: 30503.04 | J17: 0.03587690447 | K17: 0.7523504852 | L17: A
A18: 7.5 | B18: COMPOSIÇÃO | C18: CP05 | D18: Assentamento de piso tátil direcional e/ou alerta (ladrilho hidráulico), colorido, p/ deficientes visuais, dimensões 20x20cm, aplicado com argamassa industrializada AC-II, rejuntado, exclusive regularização de base e aquisição de ladrilho hidráulico | E18: m² | F18: 167.24 | G18: 132.71 | H18: 162.21 | I18: 27128 | J18: 0.03190726775 | K18: 0.7842577529 | L18: A
A19: 2.2 | B19: SINAPI | C19: 93584 | D19: EXECUÇÃO DE DEPÓSITO EM CANTEIRO DE OBRA EM CHAPA DE MADEIRA COMPENSADA, NÃO INCLUSO MOBILIÁRIO. AF_04/2016 | E19: M2 | F19: 24 | G19: 917.37 | H19: 1121.3 | I19: 26911.2 | J19: 0.03165227307 | K19: 0.815910026 | L19: B
A20: 1.2 | B20: SINAPI | C20: 2707 | D20: ENGENHEIRO CIVIL DE OBRA PLENO | E20: H | F20: 179.38 | G20: 118.86 | H20: 145.28 | I20: 26060.33 | J20: 0.03065150129 | K20: 0.8465615273 | L20: B
A21: 3.8 | B21: SINAPI | C21: 95878 | D21: TRANSPORTE COM CAMINHÃO BASCULANTE DE 10 M³, EM VIA URBANA PAVIMENTADA, DMT ATÉ 30 KM (UNIDADE: TXKM). AF_07/2020 | E21: TXKM | F21: 9483.5 | G21: 1.58 | H21: 1.93 | I21: 18303.16 | J21: 0.02152771405 | K21: 0.8680892414 | L21: B
A22: 4.1 | B22: COMPOSIÇÃO | C22: CP03 | D22: BOCA DE LOBO EM ALVENARIA TIJOLO MACICO, REVESTIDA C/ ARGAMASSA DE CIMENTO E AREIA 1:3, SOBRE LASTRO DE CONCRETO 10CM E TAMPA DE CONCRETO ARMADO | E22: und | F22: 10 | G22: 1190.55 | H22: 1455.21 | I22: 14552.1 | J22: 0.01711581211 | K22: 0.8852050535 | L22: B
A23: 5.3 | B23: SINAPI | C23: 94268 | D23: GUIA (MEIO-FIO) E SARJETA CONJUGADOS DE CONCRETO, MOLDADA IN LOCO EM TRECHO CURVO COM EXTRUSORA, 45 CM BASE (15 CM BASE DA GUIA + 30 CM BASE DA SARJETA) X 22 CM ALTURA. AF_06/2016 | E23: M | F23: 118.1 | G23: 69.84 | H23: 85.37 | I23: 10082.2 | J23: 0.01185842874 | K23: 0.8970634822 | L23: B
A24: 3.3 | B24: SINAPI | C24: 100576 | D24: REGULARIZAÇÃO E COMPACTAÇÃO DE SUBLEITO DE SOLO PREDOMINANTEMENTE ARGILOSO. AF_11/2019 | E24: M2 | F24: 3109.09 | G24: 2.25 | H24: 2.75 | I24: 8550 | J24: 0.01005629384 | K24: 0.9071197761 | L24: B
A25: 7.4 | B25: SINAPI | C25: 94991 | D25: EXECUÇÃO DE PASSEIO (CALÇADA) OU PISO DE CONCRETO COM CONCRETO MOLDADO IN LOCO, USINADO, ACABAMENTO CONVENCIONAL, NÃO ARMADO. AF_08/2022 | E25: M3 | F25: 6.6896 | G25: 965.27 | H25: 1179.85 | I25: 7892.72 | J25: 0.00928321772 | K25: 0.9164029938 | L25: B
A26: 7.1 | B26: SINAPI | C26: 98524 | D26: LIMPEZA MANUAL DE VEGETAÇÃO EM TERRENO COM ENXADA.AF_05/2018 | E26: M2 | F26: 2056.58 | G26: 2.88 | H26: 3.52 | I26: 7239.16 | J26: 0.008514516972 | K26: 0.9249175108 | L26: B
A27: 3.5 | B27: SICRO | C27: 4011219 | D27: Base de solo estabilizado granulometricamente sem mistura com material de jazida, inclusive escavação e carga de material na jazida com escavadeira hidráulica | E27: m³ | F27: 466.3635 | G27: 12.33 | H27: 15.07 | I27: 7028.1 | J27: 0.008266273536 | K27: 0.9331837843 | L27: B
A28: 7.2 | B28: SINAPI | C28: 101617 | D28: PREPARO DE FUNDO DE VALA COM LARGURA MAIOR OU IGUAL A 1,5 M E MENOR QUE 2,5 M (ACERTO DO SOLO NATURAL). AF_08/2020 | E28: M2 | F28: 2056.58 | G28: 2.76 | H28: 3.37 | I28: 6930.67 | J28: 0.008151678833 | K28: 0.9413354631 | L28: B
A29: 3.4 | B29: SICRO | C29: 4011227 | D29: Sub-base de solo estabilizado granulometricamente sem mistura com material de jazida, inclusive escavação e carga de material na jazida com escavadeira hidráulica | E29: m³ | F29: 466.3635 | G29: 11.65 | H29: 14.24 | I29: 6641.02 | J29: 0.007810999826 | K29: 0.9491464629 | L29: B
A30: 4.4 | B30: COMPOSIÇÃO | C30: cp10 | D30: TUBO E ASSENTAMENTO DE TUBO DE CONCRETO PARA REDES COLETORAS DE ÁGUAS PLUVIAIS, DIÂMETRO DE 400 MM, JUNTA RÍGIDA, INSTALADO EM LOCAL COM BAIXO NÍVEL DE INTERFERÊNCIAS. | E30: M | F30: 30 | G30: 167.46 | H30: 204.69 | I30: 6140.7 | J30: 0.007222536091 | K30: 0.956368999 | L30: C
A31: 2.1 | B31: COMPOSIÇÃO | C31: CP01 | D31: Placa de obra em chapa de aço galvanizado (4,00 x 3,00 m) | E31: M³ | F31: 12 | G31: 402.96 | H31: 492.54 | I31: 5910.48 | J31: 0.006951757147 | K31: 0.9633207562 | L31: C
A32: 8.6 | B32: COMPOSIÇÃO | C32: CP07 | D32: Conjuntos de suporte de fixação com tubo de aço galvanizado h=3,00m apoiado sobre bloco de concreto simples | E32: und | F32: 16 | G32: 285.1 | H32: 348.48 | I32: 5575.68 | J32: 0.006557973852 | K32: 0.96987873 | L32: C
A33: 6.1 | B33: COMPOSIÇÃO | C33: CP08 | D33: ENSAIOS DE BASE ESTABILIZADA GRANULOMETRICAMENTE | E33: M³ | F33: 858.16 | G33: 4.48 | H33: 5.48 | I33: 4702.72 | J33: 0.00553122037 | K33: 0.9754099504 | L33: C
A34: 8.1 | B34: COMPOSIÇÃO | C34: CP06 | D34: Sinalização horizontal, com tinta retrorrefletiva a base de resina acrilica com microesferas de vidro | E34: m² | F34: 154.86 | G34: 16.51 | H34: 20.18 | I34: 3125.07 | J34: 0.003675628326 | K34: 0.9790855787 | L34: C
A35: 4.3 | B35: COMPOSIÇÃO | C35: CP04 | D35: Assentamento de tampa circular para esgoto e drenagem, em ferro fundido, diâmetro interno = 0,60 m | E35: und | F35: 3 | G35: 837.63 | H35: 1023.84 | I35: 3071.52 | J35: 0.00361264417 | K35: 0.9826982229 | L35: C
A36: 3.7 | B36: SINAPI | C36: 93595 | D36: TRANSPORTE COM CAMINHÃO BASCULANTE DE 10 M³, EM VIA URBANA EM REVESTIMENTO PRIMÁRIO (UNIDADE: TXKM). AF_07/2020 | E36: TXKM | F36: 1327.5 | G36: 1.72 | H36: 2.1 | I36: 2787.75 | J36: 0.00327888107 | K36: 0.985977104 | L36: C
A37: 4.2 | B37: SINAPI | C37: 99319 | D37: CHAMINÉ CIRCULAR PARA POÇO DE VISITA PARA DRENAGEM, EM ALVENARIA COM TIJOLOS CERÂMICOS MACIÇOS, DIÂMETRO INTERNO = 0,6 M. AF_12/2020 | E37: M | F37: 1.89 | G37: 970.92 | H37: 1186.76 | I37: 2242.98 | J37: 0.002638136369 | K37: 0.9886152403 | L37: C
A38: 8.2 | B38: SICRO | C38: 5213464 | D38: Fornecimento e implantação de placa de advertência em aço, lado de 0,60 m - película retrorrefletiva tipo I e SI (Modelo A32B - Passagem sinalizada de pedestres) | E38: und | F38: 8 | G38: 225.13 | H38: 275.18 | I38: 2201.44 | J38: 0.002589278071 | K38: 0.9912045184 | L38: C
A39: 6.2 | B39: COMPOSIÇÃO | C39: CP09 | D39: ENSAIO DE RESISTÊNCIA DE CONCRETO - FCK | E39: Und | F39: 12 | G39: 142.67 | H39: 174.39 | I39: 2092.68 | J39: 0.002461357309 | K39: 0.9936658757 | L39: C
A40: 8.3 | B40: SICRO | C40: 5213444 | D40: Fornecimento e implantação de placa de regulamentação em aço, R1 lado 0,248 m - película retrorrefletiva tipo I e SI (Modelo R1 - Parada obrigatória) | E40: und | F40: 6 | G40: 225.13 | H40: 275.18 | I40: 1651.08 | J40: 0.001941958553 | K40: 0.9956078343 | L40: C
A41: 3.1 | B41: SINAPI | C41: 93588 | D41: TRANSPORTE COM CAMINHÃO BASCULANTE DE 10 M³, EM VIA URBANA EM LEITO NATURAL (UNIDADE: M3XKM). AF_07/2020 | E41: M3XKM | F41: 419.7 | G41: 2.96 | H41: 3.62 | I41: 1519.31 | J41: 0.001786974011 | K41: 0.9973948083 | L41: C
A42: 3.2 | B42: SINAPI | C42: 100574 | D42: ESPALHAMENTO DE MATERIAL COM TRATOR DE ESTEIRAS. AF_11/2019 | E42: M3 | F42: 932.727 | G42: 1.27 | H42: 1.55 | I42: 1445.73 | J42: 0.001700431075 | K42: 0.9990952394 | L42: C
A43: 8.4 | B43: SICRO | C43: 5213440 | D43: Fornecimento e implantação de placa de advertência em aço, lado de 0,60 m - película retrorrefletiva tipo I e SI (Modelo A45 - Rua Sem Saída) | E43: und | F43: 1 | G43: 225.13 | H43: 275.18 | I43: 275.18 | J43: 0.0003236597589 | K43: 0.9994188991 | L43: C
A44: 8.5 | B44: SICRO | C44: 5213440 | D44: Fornecimento e implantação de placa de regulamentação em aço D = 0,60 m - película retrorrefletiva tipo I e SI (Modelo R6b - Proibido Estacionar) | E44: und | F44: 1 | G44: 225.13 | H44: 275.18 | I44: 275.18 | J44: 0.0003236597589 | K44: 0.9997425589 | L44: C
A45: 2.4 | B45: SINAPI | C45: 99064 | D45: LOCAÇÃO DE PAVIMENTAÇÃO. AF_10/2018 | E45: M | F45: 362 | G45: 0.36 | H45: 0.44 | I45: 159.28 | J45: 0.0001873411091 | K45: 0.9999299 | L45: C
A46: 2.3 | B46: SINAPI | C46: 99063 | D46: LOCAÇÃO DE REDE DE ÁGUA OU ESGOTO. AF_10/2018 | E46: M | F46: 10 | G46: 4.88 | H46: 5.96 | I46: 59.6 | J46: 7.010001319e-05 | K46: 1 | L46: C
D47: TOTAL | I47: =SUM(I14:I46) -> 850213.82 | J47: =SUM(J14:J46) -> 1

Sheet BDI
A6: SERVIÇO PUBLICO FEDERAL
A7: INSTITUTO FEDERAL DE EDUCAÇÃO, CIÊNCIA E TECNOLOGIA DE MATO GROSSO
A8: =ORÇAMENTO!A6 -> CAMPUS ALTA FLORESTA
B10: CALCULO DO BDI NÃO DESONERADO
B12: CALCULO DO BDI
A13: AC | B13: ADMINISTRAÇÃO CENTRAL DA OBRA | C13: 0.04
A14: SG | B14: TAXA REPRESENTATIVA DE SEGUROS E GARANTIAS | C14: 0.008
A15: R | B15: TAXA REPRESENTATIVA DE RISCOS | C15: 0.0127
A16: DF | B16: TAXA REPRESENTATIVA DAS DESPESAS FINANCEIRAS | C16: 0.0123
A17: L | B17: TAXA REPRESENTATIVA DO LUCRO | C17: 0.074
A19: T | B19: TAXA REPRESENTATIVA DA INCIDENCIA DOS TRIBUTOS | C19: =C20+C21+C22+C23 -> 0.0565
B20: Contribuição Previdenciária sobre a Renda Bruta (CPRB) Lei 13.161/2015 | C20: 0
B21: COFINS | C21: 0.03
B22: PIS | C22: 0.0065
B23: ISS (BASE DE CALCULO 40% E ISSQN 5%) | C23: 0.02
B25: CALCULO DO BDI | C25: =ROUND((((1+(C13+C14+C15))*(1+C16)*(1+C17))/(1-C19))-1,4) -> 0.2223
B26: VALOR TOTAL DO BDI | C26: =C25 -> 0.2223
B27: BDI= (((1+(AC+SG+R))*(1+DF)*(1+L))/(1-T))-1
B28: Formula BDI - Paragrafo nº39 do Acórdão nº 2.369/2011 Plenario . Processo nº TC 025.990/2008-2
B29: As taxas Acórdão nº 2622/2013 Plenário. TC 036.076/2011-2 sessão:25/09/13

Sheet BDI EQUIPAMENTO
A6: SERVIÇO PUBLICO FEDERAL
A7: INSTITUTO FEDERAL DE EDUCAÇÃO, CIÊNCIA E TECNOLOGIA DE MATO GROSSO
A8: =ORÇAMENTO!A6 -> CAMPUS ALTA FLORESTA
B10: CALCULO DO BDI EQUIPAMENTO NÃO DESONERADO
B12: CALCULO DO BDI
A13: AC | B13: ADMINISTRAÇÃO CENTRAL DA OBRA | C13: 0.0345
A14: SG | B14: TAXA REPRESENTATIVA DE SEGUROS E GARANTIAS | C14: 0.0048
A15: R | B15: TAXA REPRESENTATIVA DE RISCOS | C15: 0.0085
A16: DF | B16: TAXA REPRESENTATIVA DAS DESPESAS FINANCEIRAS | C16: 0.0085
A17: L | B17: TAXA REPRESENTATIVA DO LUCRO | C17: 0.0511
A19: T | B19: TAXA REPRESENTATIVA DA INCIDENCIA DOS TRIBUTOS | C19: =C20+C21+C22+C23 -> 0.0365
B20: Contribuição Previdenciária sobre a Renda Bruta (CPRB) Lei 13.161/2015 | C20: 0
B21: COFINS | C21: 0.03
B22: PIS | C22: 0.0065
B23: ISS (BASE DE CALCULO 40% E ISSQN 5%) | C23: 0
B25: CALCULO DO BDI | C25: =ROUND((((1+(C13+C14+C15))*(1+C16)*(1+C17))/(1-C19))-1,4) -> 0.1528
B26: VALOR TOTAL DO BDI | C26: =C25 -> 0.1528
B27: BDI= (((1+(AC+SG+R))*(1+DF)*(1+L))/(1-T))-1
B28: Formula BDI - Paragrafo nº39 do Acórdão nº 2.369/2011 Plenario . Processo nº TC 025.990/2008-2
B29: As taxas Acórdão nº 2622/2013 Plenário. TC 036.076/2011-2 sessão:25/09/13

Sheet CRONOGRAMA
A5: INSTITUTO FEDERAL DE EDUCAÇÃO, CIÊNCIA E TECNOLOGIA DE MATO GROSSO
A6: =ORÇAMENTO!A6 -> CAMPUS ALTA FLORESTA
A9: CRONOGRAMA FÍSICO-FINANCEIRO NÃO DESONERADO
A10: OBRA: | B10: =ORÇAMENTO!B10 -> PAVIMENTAÇÃO
A11: ITEM | B11: DESCRIÇÃO / ETAPA | C11: TOTAL | E11: PERÍODO DE EXECUÇÃO DA OBRA | K11: TOTAL
C12: VALOR (R$) | D12: (%) | E12: mês 01 | F12: mês 02 | G12: mês 03 | H12: mês 04 | I12: mês 05 | J12: mês 06
A13: 1.0 | B13: =IFERROR(INDEX(ORÇAMENTO!$D:$D,MATCH($A13,ORÇAMENTO!$A:$A,0)),"") -> ADMINISTRAÇÃO DA OBRA | C13: =IFERROR(INDEX(ORÇAMENTO!$I:$I,MATCH($A13,ORÇAMENTO!$A:$A,0)),0) -> 56563.37 | D13: =IFERROR(C13/$C$29,"") -> 0.06652840576 | E13: =IFERROR($C13*E14,"") -> 4208.333723 | F13: =IFERROR($C13*F14,"") -> 3782.325872 | G13: 15035.92783 | H13: 15035.92783 | I13: 8783.480318 | J13: 9717.374417 | K13: =SUM(E13:J13) -> 56563.37
E14: =(E15+E17+E19+E21+E23+E25+E27)/(SUM($C$15:$C$28)) -> 0.07440033582 | F14: =(F15+F17+F19+F21+F23+F25+F27)/(SUM($C$15:$C$28)) -> 0.06686882115 | G14: 0.2658244697 | H14: 0.2658244697 | I14: 0.1552856613 | J14: 0.1717962423 | K14: 1
A15: 2.0 | B15: =IFERROR(INDEX(ORÇAMENTO!$D:$D,MATCH($A15,ORÇAMENTO!$A:$A,0)),"") -> SERVIÇOS PRELIMINARES | C15: =IFERROR(INDEX(ORÇAMENTO!$I:$I,MATCH($A15,ORÇAMENTO!$A:$A,0)),0) -> 33040.56 | D15: =IFERROR(C15/$C$29,"") -> 0.03886147134 | E15: =IFERROR($C15*E16,"") -> 33040.56 | F15: =IFERROR($C15*F16,"") -> 0 | G15: =IFERROR($C15*G16,"") -> 0 | H15: =IFERROR($C15*H16,"") -> 0 | I15: =IFERROR($C15*I16,"") -> 0 | J15: =IFERROR($C15*J16,"") -> 0 | K15: =SUM(E15:J15) -> 33040.56
E16: 1 | K16: 1
A17: 3.0 | B17: =IFERROR(INDEX(ORÇAMENTO!$D:$D,MATCH($A17,ORÇAMENTO!$A:$A,0)),"") -> MOVIMENTAÇÃO DE TERRA | C17: =IFERROR(INDEX(ORÇAMENTO!$I:$I,MATCH($A17,ORÇAMENTO!$A:$A,0)),0) -> 46275.07 | D17: =IFERROR(C17/$C$29,"") -> 0.05442756741 | E17: =IFERROR($C17*E18,"") -> 0 | F17: =IFERROR($C17*F18,"") -> 46275.07 | G17: 0 | H17: 0 | I17: 0 | J17: 0 | K17: 46275.07
F18: 1 | K18: 1
A19: 4.0 | B19: =IFERROR(INDEX(ORÇAMENTO!$D:$D,MATCH($A19,ORÇAMENTO!$A:$A,0)),"") -> DRENAGEM DE ÁGUAS PLUVIAIS | C19: =IFERROR(INDEX(ORÇAMENTO!$I:$I,MATCH($A19,ORÇAMENTO!$A:$A,0)),0) -> 26007.3 | D19: =IFERROR(C19/$C$29,"") -> 0.03058912874 | E19: =IFERROR($C19*E20,"") -> 26007.3 | F19: =IFERROR($C19*F20,"") -> 0 | G19: =IFERROR($C19*G20,"") -> 0 | H19: =IFERROR($C19*H20,"") -> 0 | I19: =IFERROR($C19*I20,"") -> 0 | J19: =IFERROR($C19*J20,"") -> 0 | K19: 26007.3
E20: 1 | K20: 1
A21: 5.0 | B21: =IFERROR(INDEX(ORÇAMENTO!$D:$D,MATCH($A21,ORÇAMENTO!$A:$A,0)),"") -> PAVIMENTAÇÃO DE VIAS | C21: =IFERROR(INDEX(ORÇAMENTO!$I:$I,MATCH($A21,ORÇAMENTO!$A:$A,0)),0) -> 421943.42 | D21: =IFERROR(C21/$C$29,"") -> 0.496279183 | E21: =IFERROR($C21*E22,"") -> 0 | F21: =IFERROR($C21*F22,"") -> 0 | G21: =IFERROR($C21*G22,"") -> 210971.71 | H21: =IFERROR($C21*H22,"") -> 210971.71 | I21: =IFERROR($C21*I22,"") -> 0 | J21: =IFERROR($C21*J22,"") -> 0 | K21: 421943.42
G22: 0.5 | H22: 0.5 | K22: 1
A23: 6.0 | B23: =IFERROR(INDEX(ORÇAMENTO!$D:$D,MATCH($A23,ORÇAMENTO!$A:$A,0)),"") -> CONTROLE TECNOLÓGICO | C23: =IFERROR(INDEX(ORÇAMENTO!$I:$I,MATCH($A23,ORÇAMENTO!$A:$A,0)),0) -> 6795.4 | D23: =IFERROR(C23/$C$29,"") -> 0.007992577679 | E23: =IFERROR($C23*E24,"") -> 0 | F23: =IFERROR($C23*F24,"") -> 6795.4 | G23: =IFERROR($C23*G24,"") -> 0 | H23: =IFERROR($C23*H24,"") -> 0 | I23: =IFERROR($C23*I24,"") -> 0 | J23: =IFERROR($C23*J24,"") -> 0 | K23: 6795.4
F24: 1 | K24: 1
A25: 7.0 | B25: =IFERROR(INDEX(ORÇAMENTO!$D:$D,MATCH($A25,ORÇAMENTO!$A:$A,0)),"") -> PASSEIO PÚBLICO COM ACESSIBILIDADE | C25: =IFERROR(INDEX(ORÇAMENTO!$I:$I,MATCH($A25,ORÇAMENTO!$A:$A,0)),0) -> 246485.07 | D25: =IFERROR(C25/$C$29,"") -> 0.2899095077 | E25: =IFERROR($C25*E26,"") -> 0 | F25: =IFERROR($C25*F26,"") -> 0 | G25: =IFERROR($C25*G26,"") -> 0 | H25: =IFERROR($C25*H26,"") -> 0 | I25: =IFERROR($C25*I26,"") -> 123242.535 | J25: =IFERROR($C25*J26,"") -> 123242.535 | K25: 246485.07
I26: 0.5 | J26: 0.5 | K26: 1
A27: 8.0 | B27: =IFERROR(INDEX(ORÇAMENTO!$D:$D,MATCH($A27,ORÇAMENTO!$A:$A,0)),"") -> SINALIZAÇÃO VIÁRIA | C27: =IFERROR(INDEX(ORÇAMENTO!$I:$I,MATCH($A27,ORÇAMENTO!$A:$A,0)),0) -> 13103.63 | D27: =IFERROR(C27/$C$29,"") -> 0.01541215832 | E27: =IFERROR($C27*E28,"") -> 0 | F27: =IFERROR($C27*F28,"") -> 0 | G27: =IFERROR($C27*G28,"") -> 0 | H27: =IFERROR($C27*H28,"") -> 0 | I27: =IFERROR($C27*I28,"") -> 0 | J27: =IFERROR($C27*J28,"") -> 13103.63 | K27: 13103.63
J28: 1 | K28: 1
B29: TOTAL | C29: =SUM(C13:C28) -> 850213.82 | D29: =SUM(D13:D28) -> 1 | E29: =E13+E15+E17+E19+E21+E23+E25+E27 -> 63256.19372 | F29: =F13+F15+F17+F19+F21+F23+F25+F27 -> 56852.79587 | G29: 226007.6378 | H29: 226007.6378 | I29: 132026.0153 | J29: 146063.5394 | K29: =K13+K15+K17+K19+K21+K23+K25+K27 -> 850213.82
E30: =E29/$C$29 -> 0.07440033582 | F30: =F29/$C$29 -> 0.06686882115 | G30: =G29/$C$29 -> 0.2658244697 | H30: 0.2658244697 | I30: 0.1552856613 | J30: 0.1717962423 | K30: 1
B31: VALOR TOTAL ACUMULADO | E31: =E29 -> 63256.19372 | F31: =F29+E31 -> 120108.9896 | G31: =G29+F31 -> 346116.6274 | H31: 572124.2653 | I31: 704150.2806 | J31: 850213.82

Sheet Terraplanagem
A1: Cubação de Terraplenagem
A2: EMPREENDIMENTO: Implantação de pavimentação em piso intertravado, drenagem de águas pluviais, sinalização viária e passeio público com acessibilidade
A3: LOCAL: Instituto Federal do Mato Grosso - IFMT, Campus Alta Floresta
A5: ITEM | B5: RUA / AVENIDA BENEFICIADA | C5: TERRAPLENAGEM | E5: PAVIMENTAÇÃO
C6: ESPESSURA | D6: VOLUME | E6: SUBLEITO | G6: SUBBASE | J6: BASE | M6: LARGURA ÚTIL | N6: MEIO-FIO C/ SARJETA EM TRECHO RETO | O6: MEIO-FIO C/ SARJETA EM TRECHO CURVO | P6: ÁREA PAVIMENTADA
C7: CORTE | D7: CORTE | E7: L | F7: AREA | G7: L | H7: E | I7: VOL. | J7: L | K7: E | L7: VOL.
C8: M | D8: M3 | E8: M | F8: M2 | G8: M | H8: M | I8: M3 | J8: M | K8: M | L8: M3 | M8: M | N8: M | O8: M | P8: M2
B9: Rua 01 | C9: 0.3 | D9: 250.22 | E9: 7 | F9: 834.07 | G9: 7 | H9: 0.15 | I9: 125.11 | J9: 7 | K9: 0.15 | L9: 125.11 | M9: 6.56 | N9: 195.97 | O9: 25.33 | P9: 781.84
B10: Rua 02 | C10: 0.3 | D10: 254.56 | E10: 7 | F10: 848.53 | G10: 7 | H10: 0.15 | I10: 127.28 | J10: 7 | K10: 0.15 | L10: 127.28 | M10: 6.56 | N10: 242.44 | P10: 795.2
B11: Rua 03 | C11: 0.3 | D11: 281.06 | E11: 7 | F11: 936.86 | G11: 7 | H11: 0.15 | I11: 140.53 | J11: 7 | K11: 0.15 | L11: 140.53 | M11: 6.56 | N11: 244 | P11: 887.98
B12: CUL-DE-SAC | C12: 0.3 | D12: 59.18 | E12: VAR | F12: 197.26 | G12: VAR | H12: 0.15 | I12: 29.59 | J12: VAR | K12: 0.15 | L12: 29.59 | M12: VAR | O12: 43 | P12: 187.86
B13: LR-01 | C13: 0.3 | D13: 21.97 | E13: VAR | F13: 73.23 | G13: VAR | H13: 0.15 | I13: 10.98 | J13: VAR | K13: 0.15 | L13: 10.98 | M13: VAR | N13: 7.75 | O13: 13.62 | P13: 72.35
B14: LR-02 | C14: 0.3 | D14: 39.21 | E14: VAR | F14: 130.7 | G14: VAR | H14: 0.15 | I14: 19.61 | J14: VAR | K14: 0.15 | L14: 19.61 | M14: VAR | N14: 17.47 | O14: 13.26 | P14: 129.06
B15: LR-03 | C15: 0.3 | D15: 14.21 | E15: VAR | F15: 47.38 | G15: VAR | H15: 0.15 | I15: 7.11 | J15: VAR | K15: 0.15 | L15: 7.11 | M15: VAR | N15: 2.08 | O15: 13.94 | P15: 47.32
B16: LR-04 | C16: 0.3 | D16: 12.32 | E16: VAR | F16: 41.06 | G16: VAR | H16: 0.15 | I16: 6.16 | J16: VAR | K16: 0.15 | L16: 6.16 | M16: VAR | N16: 5.22 | O16: 8.95 | P16: 187.86
A18: TOTAL | D18: 932.73 | F18: 3109.09 | I18: 466.36 | L18: 466.36 | N18: 714.93 | O18: 118.1 | P18: 3089.47

Sheet Drenagem
A1: CUBAÇÃO DA DRENAGEM DE ÁGUAS PLUVIAIS
A2: EMPREENDIMENTO: Implantação de pavimentação em piso intertravado, drenagem de águas pluviais, sinalização viária e passeio público com acessibilidade
A3: LOCAL: Instituto Federal do Mato Grosso - IFMT, Campus Alta Floresta
A4: ITEM | B4: TRECHO BENEFICIADO | C4: COMPRIMENTO (m) | D4: LARGURA (m) | E4: ALTURA (m) | F4: ÁREA (m²) | G4: VOLUME (m³)
A5: 1 | B5: ESCAVAÇÃO DE VALAS
A6: 1.1 | B6: Tubos de Concreto Armado PA-1 com Diâmetro = 0,40 m | C6: 51 | D6: 1.2 | E6: 1.2 | F6: 1.44 | G6: 73.44
A7: 1.2 | B7: Tubos de Concreto Armado PA-1 com Diâmetro = 0,60 m | C7: 258 | D7: 1.7 | E7: 2 | F7: 3.4 | G7: 877.2
E8: TOTAL (m³): | G8: 950.64
A10: 2 | B10: VOLUME DA TUBULAÇÃO | C10: COMPRIMENTO (m) | F10: ÁREA (m²) | G10: VOLUME (m³)
A11: 2.1 | B11: Tubos de Concreto Armado PA-1 com Diâmetro = 0,40 m | C11: 51 | F11: 0.2124 | G11: 10.83
A12: 2.2 | B12: Tubos de Concreto Armado PA-1 com Diâmetro = 0,60 m | C12: 258 | F12: 0.4072 | G12: 105.06
E13: TOTAL (m³): | G13: 115.89
A15: 3 | B15: VOLUME DO REATERRO | G15: VOLUME (m³)
A16: 3.1 | B16: Reaterro de Vala mecânico
A17: 3.1.1 | B17: Tubos de Concreto Armado PA-1 com Diâmetro = 0,40 m | C17: 51 | G17: 55.2
A18: 3.1.2 | B18: Tubos de Concreto Armado PA-1 com Diâmetro = 0,60 m | C18: 258 | G18: 692.52
E19: TOTAL (m³): | G19: 747.73
A20: 3.2 | B20: Reaterro de Vala manual
A21: 3.2.1 | B21: Tubos de Concreto Armado PA-1 com Diâmetro = 0,40 m | C21: 51 | G21: 5.88
A22: 3.2.2 | B22: Tubos de Concreto Armado PA-1 com Diâmetro = 0,60 m | C22: 258 | G22: 69.3
E23: TOTAL (m³): | G23: 75.17
A25: 4 | B25: VOLUME DO LASTRO DE AREIA E PREPARAÇÃO DE FUNDO DE VALA | C25: COMPRIMENTO (m) | D25: LARGURA (m) | E25: ESPESSURA (m) | F25: ÁREA (m²) | G25: VOLUME (m³)
A26: 4.1 | B26: Tubos de Concreto Armado PA-1 com Diâmetro = 0,40 m | C26: 51 | D26: 0.3 | E26: 0.1 | F26: 0.03 | G26: 1.53
A27: 4.2 | B27: Tubos de Concreto Armado PA-1 com Diâmetro = 0,60 m | C27: 258 | D27: 0.4 | E27: 0.1 | F27: 0.04 | G27: 10.32
E28: TOTAL (m³): | G28: 11.85

Sheet Composição transportes
A1: COMPOSIÇÃO DO TRANSPORTE DE MATERIAIS
A2: EMPREENDIMENTO: Implantação de pavimentação em piso intertravado, drenagem de águas pluviais, sinalização viária e passeio público com acessibilidade
A3: LOCAL: Instituto Federal do Mato Grosso - IFMT, Campus Alta Floresta
A4: Memorial de cálculo de transporte de cascalho de jazida até a obra em via não pavimentada
A6: Descrição | B6: Vol (m³) | C6: D.M.T (km) | D6: ton/m3 | E6: ton | F6: ton x km
A7: IFMT (Alta Floresta) | B7: 932.73 | C7: 1.38 | D7: 2.0625 | E7: 1923.74 | F7: 2654.76
E8: Total | F8: 2654.76
A10: Memorial de cálculo de transporte de cascalho de jazida até a obra em via pavimentada
A12: Descrição | B12: Vol (m³) | C12: D.M.T (km) | D12: ton/m3 | E12: ton | F12: ton x km
A13: IFMT (Alta Floresta) | B13: 932.73 | C13: 9.86 | D13: 2.0625 | E13: 1923.74 | F13: 18968.07
E14: Total | F14: 18968.07
A15: Memorial de cálculo de transporte do material de bota-fora de terraplenagem em leito natural
A17: Descrição | B17: Vol (m³) | C17: D.M.T (km) | F17: m3 x km
A18: IFMT (Alta Floresta) | B18: 932.73 | C18: 1 | F18: 932.72
E19: Total | F19: 932.72
A21: Memorial de cálculo de transporte do material de bota-fora de drenagem em leito natural
A23: Descrição | B23: Vol (m³) | C23: D.M.T (km) | D23: ton/m3 | E23: ton | F23: m3 x km
A24: IFMT (Alta Floresta) | B24: 115.89 | C24: 1 | D24: 1.6 | E24: 185.42 | F24: 115.89
E25: Total | F25: 115.89

Sheet SINAPI (hidden)
A1: 97141 | B1: ASSENTAMENTO DE TUBO DE FERRO FUNDIDO PARA REDE DE ÁGUA, DN 80 MM, JUNTA ELÁSTICA, INSTALADO EM LOCAL COM NÍVEL ALTO DE INTERFERÊNCIAS (NÃO INCLUI FORNECIMENTO). AF_11/2017 | C1: M | D1: 7.62 | E1: COMPOSIÇÃO | G1: Alta Floresta
A2: 97142 | B2: ASSENTAMENTO DE TUBO DE FERRO FUNDIDO PARA REDE DE ÁGUA, DN 100 MM, JUNTA ELÁSTICA, INSTALADO EM LOCAL COM NÍVEL ALTO DE INTERFERÊNCIAS (NÃO INCLUI FORNECIMENTO). AF_11/2017 | C2: M | D2: 8.47 | E2: COMPOSIÇÃO | G2: ALF
A3: 97143 | B3: ASSENTAMENTO DE TUBO DE FERRO FUNDIDO PARA REDE DE ÁGUA, DN 150 MM, JUNTA ELÁSTICA, INSTALADO EM LOCAL COM NÍVEL ALTO DE INTERFERÊNCIAS (NÃO INCLUI FORNECIMENTO). AF_11/2017 | C3: M | D3: 10.62 | E3: COMPOSIÇÃO | G3: Pavimentação
A4: 97144 | B4: ASSENTAMENTO DE TUBO DE FERRO FUNDIDO PARA REDE DE ÁGUA, DN 200 MM, JUNTA ELÁSTICA, INSTALADO EM LOCAL COM NÍVEL ALTO DE INTERFERÊNCIAS (NÃO INCLUI FORNECIMENTO). AF_11/2017 | C4: M | D4: 12.75 | E4: COMPOSIÇÃO | G4: C:\Users\1261397\Documents\SINAPI\SINAPI_ref_Insumos_Composicoes_MT_022023_NaoDesonerado\SINAPI_Custo_Ref_Composicoes_Sintetico_MT_202302_NaoDesonerado.xls
A5: 97145 | B5: ASSENTAMENTO DE TUBO DE FERRO FUNDIDO PARA REDE DE ÁGUA, DN 250 MM, JUNTA ELÁSTICA, INSTALADO EM LOCAL COM NÍVEL ALTO DE INTERFERÊNCIAS (NÃO INCLUI FORNECIMENTO). AF_11/2017 | C5: M | D5: 14.92 | E5: COMPOSIÇÃO | G5: C:\Users\1261397\Documents\SINAPI\SINAPI_ref_Insumos_Composicoes_MT_022023_NaoDesonerado\SINAPI_Preco_Ref_Insumos_MT_022023_NaoDesonerado.XLS
A6: 97146 | B6: ASSENTAMENTO DE TUBO DE FERRO FUNDIDO PARA REDE DE ÁGUA, DN 300 MM, JUNTA ELÁSTICA, INSTALADO EM LOCAL COM NÍVEL ALTO DE INTERFERÊNCIAS (NÃO INCLUI FORNECIMENTO). AF_11/2017 | C6: M | D6: 17.07 | E6: COMPOSIÇÃO
A7: 97147 | B7: ASSENTAMENTO DE TUBO DE FERRO FUNDIDO PARA REDE DE ÁGUA, DN 350 MM, JUNTA ELÁSTICA, INSTALADO EM LOCAL COM NÍVEL ALTO DE INTERFERÊNCIAS (NÃO INCLUI FORNECIMENTO). AF_11/2017 | C7: M | D7: 19.24 | E7: COMPOSIÇÃO
A8: 97148 | B8: ASSENTAMENTO DE TUBO DE FERRO FUNDIDO PARA REDE DE ÁGUA, DN 400 MM, JUNTA ELÁSTICA, INSTALADO EM LOCAL COM NÍVEL ALTO DE INTERFERÊNCIAS (NÃO INCLUI FORNECIMENTO). AF_11/2017 | C8: M | D8: 21.4 | E8: COMPOSIÇÃO
A9: 97149 | B9: ASSENTAMENTO DE TUBO DE FERRO FUNDIDO PARA REDE DE ÁGUA, DN 450 MM, JUNTA ELÁSTICA, INSTALADO EM LOCAL COM NÍVEL ALTO DE INTERFERÊNCIAS (NÃO INCLUI FORNECIMENTO). AF_11/2017 | C9: M | D9: 23.59 | E9: COMPOSIÇÃO
A10: 97150 | B10: ASSENTAMENTO DE TUBO DE FERRO FUNDIDO PARA REDE DE ÁGUA, DN 500 MM, JUNTA ELÁSTICA, INSTALADO EM LOCAL COM NÍVEL ALTO DE INTERFERÊNCIAS (NÃO INCLUI FORNECIMENTO). AF_11/2017 | C10: M | D10: 30.02 | E10: COMPOSIÇÃO
A11: 97151 | B11: ASSENTAMENTO DE TUBO DE FERRO FUNDIDO PARA REDE DE ÁGUA, DN 600 MM, JUNTA ELÁSTICA, INSTALADO EM LOCAL COM NÍVEL ALTO DE INTERFERÊNCIAS (NÃO INCLUI FORNECIMENTO). AF_11/2017 | C11: M | D11: 35.01 | E11: COMPOSIÇÃO
A12: 97152 | B12: ASSENTAMENTO DE TUBO DE FERRO FUNDIDO PARA REDE DE ÁGUA, DN 700 MM, JUNTA ELÁSTICA, INSTALADO EM LOCAL COM NÍVEL ALTO DE INTERFERÊNCIAS (NÃO INCLUI FORNECIMENTO). AF_11/2017 | C12: M | D12: 39.69 | E12: COMPOSIÇÃO
A13: 97153 | B13: ASSENTAMENTO DE TUBO DE FERRO FUNDIDO PARA REDE DE ÁGUA, DN 800 MM, JUNTA ELÁSTICA, INSTALADO EM LOCAL COM NÍVEL ALTO DE INTERFERÊNCIAS (NÃO INCLUI FORNECIMENTO). AF_11/2017 | C13: M | D13: 44.56 | E13: COMPOSIÇÃO
A14: 97154 | B14: ASSENTAMENTO DE TUBO DE FERRO FUNDIDO PARA REDE DE ÁGUA, DN 900 MM, JUNTA ELÁSTICA, INSTALADO EM LOCAL COM NÍVEL ALTO DE INTERFERÊNCIAS (NÃO INCLUI FORNECIMENTO). AF_11/2017 | C14: M | D14: 49.47 | E14: COMPOSIÇÃO
A15: 97155 | B15: ASSENTAMENTO DE TUBO DE FERRO FUNDIDO PARA REDE DE ÁGUA, DN 1000 MM, JUNTA ELÁSTICA, INSTALADO EM LOCAL COM NÍVEL ALTO DE INTERFERÊNCIAS (NÃO INCLUI FORNECIMENTO). AF_11/2017 | C15: M | D15: 54.38 | E15: COMPOSIÇÃO
A16: 97156 | B16: ASSENTAMENTO DE TUBO DE FERRO FUNDIDO PARA REDE DE ÁGUA, DN 1200 MM, JUNTA ELÁSTICA, INSTALADO EM LOCAL COM NÍVEL ALTO DE INTERFERÊNCIAS (NÃO INCLUI FORNECIMENTO). AF_11/2017 | C16: M | D16: 64.7 | E16: COMPOSIÇÃO
A17: 97157 | B17: ASSENTAMENTO DE TUBO DE FERRO FUNDIDO PARA REDE DE ÁGUA, DN 80 MM, JUNTA ELÁSTICA, INSTALADO EM LOCAL COM NÍVEL BAIXO DE INTERFERÊNCIAS (NÃO INCLUI FORNECIMENTO). AF_11/2017 | C17: M | D17: 4.68 | E17: COMPOSIÇÃO
A18: 97158 | B18: ASSENTAMENTO DE TUBO DE FERRO FUNDIDO PARA REDE DE ÁGUA, DN 100 MM, JUNTA ELÁSTICA, INSTALADO EM LOCAL COM NÍVEL BAIXO DE INTERFERÊNCIAS (NÃO INCLUI FORNECIMENTO). AF_11/2017 | C18: M | D18: 5.21 | E18: COMPOSIÇÃO
A19: 97159 | B19: ASSENTAMENTO DE TUBO DE FERRO FUNDIDO PARA REDE DE ÁGUA, DN 150 MM, JUNTA ELÁSTICA, INSTALADO EM LOCAL COM NÍVEL BAIXO DE INTERFERÊNCIAS (NÃO INCLUI FORNECIMENTO). AF_11/2017 | C19: M | D19: 6.54 | E19: COMPOSIÇÃO
A20: 97160 | B20: ASSENTAMENTO DE TUBO DE FERRO FUNDIDO PARA REDE DE ÁGUA, DN 200 MM, JUNTA ELÁSTICA, INSTALADO EM LOCAL COM NÍVEL BAIXO DE INTERFERÊNCIAS (NÃO INCLUI FORNECIMENTO). AF_11/2017 | C20: M | D20: 7.83 | E20: COMPOSIÇÃO
A21: 97161 | B21: ASSENTAMENTO DE TUBO DE FERRO FUNDIDO PARA REDE DE ÁGUA, DN 250 MM, JUNTA ELÁSTICA, INSTALADO EM LOCAL COM NÍVEL BAIXO DE INTERFERÊNCIAS (NÃO INCLUI FORNECIMENTO). AF_11/2017 | C21: M | D21: 9.19 | E21: COMPOSIÇÃO
A22: 97162 | B22: ASSENTAMENTO DE TUBO DE FERRO FUNDIDO PARA REDE DE ÁGUA, DN 300 MM, JUNTA ELÁSTICA, INSTALADO EM LOCAL COM NÍVEL BAIXO DE INTERFERÊNCIAS (NÃO INCLUI FORNECIMENTO). AF_11/2017 | C22: M | D22: 10.53 | E22: COMPOSIÇÃO
A23: 97163 | B23: ASSENTAMENTO DE TUBO DE FERRO FUNDIDO PARA REDE DE ÁGUA, DN 350 MM, JUNTA ELÁSTICA, INSTALADO EM LOCAL COM NÍVEL BAIXO DE INTERFERÊNCIAS (NÃO INCLUI FORNECIMENTO). AF_11/2017 | C23: M | D23: 11.88 | E23: COMPOSIÇÃO
A24: 97164 | B24: ASSENTAMENTO DE TUBO DE FERRO FUNDIDO PARA REDE DE ÁGUA, DN 400 MM, JUNTA ELÁSTICA, INSTALADO EM LOCAL COM NÍVEL BAIXO DE INTERFERÊNCIAS (NÃO INCLUI FORNECIMENTO). AF_11/2017 | C24: M | D24: 13.22 | E24: COMPOSIÇÃO
A25: 97165 | B25: ASSENTAMENTO DE TUBO DE FERRO FUNDIDO PARA REDE DE ÁGUA, DN 450 MM, JUNTA ELÁSTICA, INSTALADO EM LOCAL COM NÍVEL BAIXO DE INTERFERÊNCIAS (NÃO INCLUI FORNECIMENTO). AF_11/2017 | C25: M | D25: 14.58 | E25: COMPOSIÇÃO
A26: 97166 | B26: ASSENTAMENTO DE TUBO DE FERRO FUNDIDO PARA REDE DE ÁGUA, DN 500 MM, JUNTA ELÁSTICA, INSTALADO EM LOCAL COM NÍVEL BAIXO DE INTERFERÊNCIAS (NÃO INCLUI FORNECIMENTO). AF_11/2017 | C26: M | D26: 18.56 | E26: COMPOSIÇÃO
A27: 97167 | B27: ASSENTAMENTO DE TUBO DE FERRO FUNDIDO PARA REDE DE ÁGUA, DN 600 MM, JUNTA ELÁSTICA, INSTALADO EM LOCAL COM NÍVEL BAIXO DE INTERFERÊNCIAS (NÃO INCLUI FORNECIMENTO). AF_11/2017 | C27: M | D27: 21.67 | E27: COMPOSIÇÃO
A28: 97168 | B28: ASSENTAMENTO DE TUBO DE FERRO FUNDIDO PARA REDE DE ÁGUA, DN 700 MM, JUNTA ELÁSTICA, INSTALADO EM LOCAL COM NÍVEL BAIXO DE INTERFERÊNCIAS (NÃO INCLUI FORNECIMENTO). AF_11/2017 | C28: M | D28: 24.48 | E28: COMPOSIÇÃO
A29: 97169 | B29: ASSENTAMENTO DE TUBO DE FERRO FUNDIDO PARA REDE DE ÁGUA, DN 800 MM, JUNTA ELÁSTICA, INSTALADO EM LOCAL COM NÍVEL BAIXO DE INTERFERÊNCIAS (NÃO INCLUI FORNECIMENTO). AF_11/2017 | C29: M | D29: 27.48 | E29: COMPOSIÇÃO
A30: 97170 | B30: ASSENTAMENTO DE TUBO DE FERRO FUNDIDO PARA REDE DE ÁGUA, DN 900 MM, JUNTA ELÁSTICA, INSTALADO EM LOCAL COM NÍVEL BAIXO DE INTERFERÊNCIAS (NÃO INCLUI FORNECIMENTO). AF_11/2017 | C30: M | D30: 30.51 | E30: COMPOSIÇÃO
A31: 97171 | B31: ASSENTAMENTO DE TUBO DE FERRO FUNDIDO PARA REDE DE ÁGUA, DN 1000 MM, JUNTA ELÁSTICA, INSTALADO EM LOCAL COM NÍVEL BAIXO DE INTERFERÊNCIAS (NÃO INCLUI FORNECIMENTO). AF_11/2017 | C31: M | D31: 33.57 | E31: COMPOSIÇÃO
A32: 97172 | B32: ASSENTAMENTO DE TUBO DE FERRO FUNDIDO PARA REDE DE ÁGUA, DN 1200 MM, JUNTA ELÁSTICA, INSTALADO EM LOCAL COM NÍVEL BAIXO DE INTERFERÊNCIAS (NÃO INCLUI FORNECIMENTO). AF_11/2017 | C32: M | D32: 40.15 | E32: COMPOSIÇÃO
A33: 97173 | B33: ASSENTAMENTO DE TUBO DE AÇO CARBONO PARA REDE DE ÁGUA, DN 600 MM (24), JUNTA SOLDADA, INSTALADO EM LOCAL COM NÍVEL ALTO DE INTERFERÊNCIAS (NÃO INCLUI FORNECIMENTO). AF_11/2017 | C33: M | D33: 33.58 | E33: COMPOSIÇÃO
A34: 97174 | B34: ASSENTAMENTO DE TUBO DE AÇO CARBONO PARA REDE DE ÁGUA, DN 700 MM (28), JUNTA SOLDADA, INSTALADO EM LOCAL COM NÍVEL ALTO DE INTERFERÊNCIAS (NÃO INCLUI FORNECIMENTO). AF_11/2017 | C34: M | D34: 38.88 | E34: COMPOSIÇÃO
A35: 97175 | B35: ASSENTAMENTO DE TUBO DE AÇO CARBONO PARA REDE DE ÁGUA, DN 800 MM (32), JUNTA SOLDADA, INSTALADO EM LOCAL COM NÍVEL ALTO DE INTERFERÊNCIAS (NÃO INCLUI FORNECIMENTO). AF_11/2017 | C35: M | D35: 44.17 | E35: COMPOSIÇÃO
A36: 97176 | B36: ASSENTAMENTO DE TUBO DE AÇO CARBONO PARA REDE DE ÁGUA, DN 900 MM (36), JUNTA SOLDADA, INSTALADO EM LOCAL COM NÍVEL ALTO DE INTERFERÊNCIAS (NÃO INCLUI FORNECIMENTO). AF_11/2017 | C36: M | D36: 49.47 | E36: COMPOSIÇÃO
A37: 97177 | B37: ASSENTAMENTO DE TUBO DE AÇO CARBONO PARA REDE DE ÁGUA, DN 1000 MM (40) OU DN 1100 MM (44), JUNTA SOLDADA, INSTALADO EM LOCAL COM NÍVEL ALTO DE INTERFERÊNCIAS (NÃO INCLUI FORNECIMENTO). AF_11/2017 | C37: M | D37: 60.07 | E37: COMPOSIÇÃO
A38: 97178 | B38: ASSENTAMENTO DE TUBO DE AÇO CARBONO PARA REDE DE ÁGUA, DN 1200 MM (48) OU DN 1300 MM (52), JUNTA SOLDADA, INSTALADO EM LOCAL COM NÍVEL ALTO DE INTERFERÊNCIAS (NÃO INCLUI FORNECIMENTO). AF_11/2017 | C38: M | D38: 70.68 | E38: COMPOSIÇÃO
A39: 97179 | B39: ASSENTAMENTO DE TUBO DE AÇO CARBONO PARA REDE DE ÁGUA, DN 1400 MM (56'') OU DN 1500 MM (60), JUNTA SOLDADA, INSTALADO EM LOCAL COM NÍVEL ALTO DE INTERFERÊNCIAS (NÃO INCLUI FORNECIMENTO). AF_11/2017 | C39: M | D39: 81.25 | E39: COMPOSIÇÃO
A40: 97180 | B40: ASSENTAMENTO DE TUBO DE AÇO CARBONO PARA REDE DE ÁGUA, DN 1600 MM (64) OU DN 1700 MM (68), JUNTA SOLDADA, INSTALADO EM LOCAL COM NÍVEL ALTO DE INTERFERÊNCIAS (NÃO INCLUI FORNECIMENTO). AF_11/2017 | C40: M | D40: 91.86 | E40: COMPOSIÇÃO
A41: 97181 | B41: ASSENTAMENTO DE TUBO DE AÇO CARBONO PARA REDE DE ÁGUA, DN 1800 MM (72) OU DN 1900 MM (76), JUNTA SOLDADA, INSTALADO EM LOCAL COM NÍVEL ALTO DE INTERFERÊNCIAS (NÃO INCLUI FORNECIMENTO). AF_11/2017 | C41: M | D41: 106.94 | E41: COMPOSIÇÃO
A42: 97182 | B42: ASSENTAMENTO DE TUBO DE AÇO CARBONO PARA REDE DE ÁGUA, DN 2000 MM (80) OU DN 2100 MM (84), JUNTA SOLDADA, INSTALADO EM LOCAL COM NÍVEL ALTO DE INTERFERÊNCIAS (NÃO INCLUI FORNECIMENTO). AF_11/2017 | C42: M | D42: 118.01 | E42: COMPOSIÇÃO
A43: 97183 | B43: ASSENTAMENTO DE TUBO DE AÇO CARBONO PARA REDE DE ÁGUA, DN 600 MM (24), JUNTA SOLDADA, INSTALADO EM LOCAL COM NÍVEL BAIXO DE INTERFERÊNCIAS (NÃO INCLUI FORNECIMENTO). AF_11/2017 | C43: M | D43: 27.25 | E43: COMPOSIÇÃO
A44: 97184 | B44: ASSENTAMENTO DE TUBO DE AÇO CARBONO PARA REDE DE ÁGUA, DN 700 MM (28), JUNTA SOLDADA, INSTALADO EM LOCAL COM NÍVEL BAIXO DE INTERFERÊNCIAS (NÃO INCLUI FORNECIMENTO). AF_11/2017 | C44: M | D44: 31.61 | E44: COMPOSIÇÃO
A45: 97185 | B45: ASSENTAMENTO DE TUBO DE AÇO CARBONO PARA REDE DE ÁGUA, DN 800 MM (32), JUNTA SOLDADA, INSTALADO EM LOCAL COM NÍVEL BAIXO DE INTERFERÊNCIAS (NÃO INCLUI FORNECIMENTO). AF_11/2017 | C45: M | D45: 35.97 | E45: COMPOSIÇÃO
A46: 97186 | B46: ASSENTAMENTO DE TUBO DE AÇO CARBONO PARA REDE DE ÁGUA, DN 900 MM (36), JUNTA SOLDADA, INSTALADO EM LOCAL COM NÍVEL BAIXO DE INTERFERÊNCIAS (NÃO INCLUI FORNECIMENTO). AF_11/2017 | C46: M | D46: 40.34 | E46: COMPOSIÇÃO
A47: 97187 | B47: ASSENTAMENTO DE TUBO DE AÇO CARBONO PARA REDE DE ÁGUA, DN 1000 MM (40 ) OU DN 1100 MM (44 ), JUNTA SOLDADA, INSTALADO EM LOCAL COM NÍVEL BAIXO DE INTERFERÊNCIAS (NÃO INCLUI FORNECIMENTO). AF_11/2017 | C47: M | D47: 49.07 | E47: COMPOSIÇÃO
A48: 97188 | B48: ASSENTAMENTO DE TUBO DE AÇO CARBONO PARA REDE DE ÁGUA, DN 1200 MM (48) OU DN 1300 MM (52), JUNTA SOLDADA, INSTALADO EM LOCAL COM NÍVEL BAIXO DE INTERFERÊNCIAS (NÃO INCLUI FORNECIMENTO). AF_11/2017 | C48: M | D48: 57.79 | E48: COMPOSIÇÃO
A49: 97189 | B49: ASSENTAMENTO DE TUBO DE AÇO CARBONO PARA REDE DE ÁGUA, DN 1400 MM (56'') OU DN 1500 MM (60), JUNTA SOLDADA, INSTALADO EM LOCAL COM NÍVEL BAIXO DE INTERFERÊNCIAS (NÃO INCLUI FORNECIMENTO). AF_11/2017 | C49: M | D49: 66.52 | E49: COMPOSIÇÃO
A50: 97190 | B50: ASSENTAMENTO DE TUBO DE AÇO CARBONO PARA REDE DE ÁGUA, DN 1600 MM (64) OU DN 1700 MM (68), JUNTA SOLDADA, INSTALADO EM LOCAL COM NÍVEL BAIXO DE INTERFERÊNCIAS (NÃO INCLUI FORNECIMENTO). AF_11/2017 | C50: M | D50: 75.25 | E50: COMPOSIÇÃO
A51: 97191 | B51: ASSENTAMENTO DE TUBO DE AÇO CARBONO PARA REDE DE ÁGUA, DN 1800 MM (72) OU DN 1900 MM (76), JUNTA SOLDADA, INSTALADO EM LOCAL COM NÍVEL BAIXO DE INTERFERÊNCIAS (NÃO INCLUI FORNECIMENTO). AF_11/2017 | C51: M | D51: 87.31 | E51: COMPOSIÇÃO
A52: 97192 | B52: ASSENTAMENTO DE TUBO DE AÇO CARBONO PARA REDE DE ÁGUA, DN 2000 MM (80) OU DN 2100 MM (84), JUNTA SOLDADA, INSTALADO EM LOCAL COM NÍVEL BAIXO DE INTERFERÊNCIAS (NÃO INCLUI FORNECIMENTO). AF_11/2017 | C52: M | D52: 96.37 | E52: COMPOSIÇÃO
A53: 90694 | B53: TUBO DE PVC PARA REDE COLETORA DE ESGOTO DE PAREDE MACIÇA, DN 100 MM, JUNTA ELÁSTICA - FORNECIMENTO E ASSENTAMENTO. AF_01/2021 | C53: M | D53: 54.06 | E53: COMPOSIÇÃO
A54: 90695 | B54: TUBO DE PVC PARA REDE COLETORA DE ESGOTO DE PAREDE MACIÇA, DN 150 MM, JUNTA ELÁSTICA - FORNECIMENTO E ASSENTAMENTO. AF_01/2021 | C54: M | D54: 103.55 | E54: COMPOSIÇÃO
A55: 90696 | B55: TUBO DE PVC PARA REDE COLETORA DE ESGOTO DE PAREDE MACIÇA, DN 200 MM, JUNTA ELÁSTICA - FORNECIMENTO E ASSENTAMENTO. AF_01/2021 | C55: M | D55: 173.67 | E55: COMPOSIÇÃO
A56: 90697 | B56: TUBO DE PVC PARA REDE COLETORA DE ESGOTO DE PAREDE MACIÇA, DN 250 MM, JUNTA ELÁSTICA - FORNECIMENTO E ASSENTAMENTO. AF_01/2021 | C56: M | D56: 270.08 | E56: COMPOSIÇÃO
A57: 90698 | B57: TUBO DE PVC PARA REDE COLETORA DE ESGOTO DE PAREDE MACIÇA, DN 300 MM, JUNTA ELÁSTICA, FORNECIMENTO E ASSENTAMENTO. AF_01/2021 | C57: M | D57: 413.54 | E57: COMPOSIÇÃO
A58: 90699 | B58: TUBO DE PVC PARA REDE COLETORA DE ESGOTO DE PAREDE MACIÇA, DN 350 MM, JUNTA ELÁSTICA - FORNECIMENTO E ASSENTAMENTO. AF_01/2021 | C58: M | D58: 582.64 | E58: COMPOSIÇÃO
A59: 90700 | B59: TUBO DE PVC PARA REDE COLETORA DE ESGOTO DE PAREDE MACIÇA, DN 400 MM, JUNTA ELÁSTICA FORNECIMENTO E ASSENTAMENTO. AF_01/2021 | C59: M | D59: 680.16 | E59: COMPOSIÇÃO
A60: 90701 | B60: TUBO DE PVC CORRUGADO DE DUPLA PAREDE PARA REDE COLETORA DE ESGOTO, DN 150 MM, JUNTA ELÁSTICA - FORNECIMENTO E ASSENTAMENTO. AF_01/2021 | C60: M | D60: 81.18 | E60: COMPOSIÇÃO
A61: 90702 | B61: TUBO DE PVC CORRUGADO DE DUPLA PAREDE PARA REDE COLETORA DE ESGOTO, DN 200 MM, JUNTA ELÁSTICA - FORNECIMENTO E ASSENTAMENTO. AF_01/2021 | C61: M | D61: 135.13 | E61: COMPOSIÇÃO
A62: 90703 | B62: TUBO DE PVC CORRUGADO DE DUPLA PAREDE PARA REDE COLETORA DE ESGOTO, DN 250 MM, JUNTA ELÁSTICA - FORNECIMENTO E ASSENTAMENTO. AF_01/2021 | C62: M | D62: 212.85 | E62: COMPOSIÇÃO
A63: 90704 | B63: TUBO DE PVC CORRUGADO DE DUPLA PAREDE PARA REDE COLETORA DE ESGOTO, DN 300 MM, JUNTA ELÁSTICA - FORNECIMENTO E ASSENTAMENTO. AF_01/2021 | C63: M | D63: 317.86 | E63: COMPOSIÇÃO
A64: 90705 | B64: TUBO DE PVC CORRUGADO DE DUPLA PAREDE PARA REDE COLETORA DE ESGOTO, DN 350 MM, JUNTA ELÁSTICA - FORNECIMENTO E ASSENTAMENTO. AF_01/2021 | C64: M | D64: 414.45 | E64: COMPOSIÇÃO
A65: 90706 | B65: TUBO DE PVC CORRUGADO DE DUPLA PAREDE PARA REDE COLETORA DE ESGOTO, DN 400 MM, JUNTA ELÁSTICA - FORNECIMENTO E ASSENTAMENTO. AF_01/2021 | C65: M | D65: 549.39 | E65: COMPOSIÇÃO
A66: 90708 | B66: TUBO DE PEAD CORRUGADO DE DUPLA PAREDE PARA REDE COLETORA DE ESGOTO, DN 600 MM, JUNTA ELÁSTICA INTEGRADA - FORNECIMENTO E ASSENTAMENTO. AF_01/2021 | C66: M | D66: 829.89 | E66: COMPOSIÇÃO
A67: 90724 | B67: JUNTA ARGAMASSADA ENTRE TUBO DN 100 MM E O POÇO DE VISITA/ CAIXA DE CONCRETO OU ALVENARIA EM REDES DE ESGOTO. AF_01/2021 | C67: UN | D67: 21.6 | E67: COMPOSIÇÃO
A68: 90725 | B68: JUNTA ARGAMASSADA ENTRE TUBO DN 150 MM E O POÇO DE VISITA/ CAIXA DE CONCRETO OU ALVENARIA EM REDES DE ESGOTO. AF_01/2021 | C68: UN | D68: 26.63 | E68: COMPOSIÇÃO
A69: 90726 | B69: JUNTA ARGAMASSADA ENTRE TUBO DN 200 MM E O POÇO/ CAIXA DE CONCRETO OU ALVENARIA EM REDES DE ESGOTO. AF_01/2021 | C69: UN | D69: 31.73 | E69: COMPOSIÇÃO
A70: 90727 | B70: JUNTA ARGAMASSADA ENTRE TUBO DN 250 MM E O POÇO DE VISITA/ CAIXA DE CONCRETO OU ALVENARIA EM REDES DE ESGOTO. AF_01/2021 | C70: UN | D70: 36.76 | E70: COMPOSIÇÃO
A71: 90728 | B71: JUNTA ARGAMASSADA ENTRE TUBO DN 300 MM E O POÇO DE VISITA/ CAIXA DE CONCRETO OU ALVENARIA EM REDES DE ESGOTO. AF_01/2021 | C71: UN | D71: 41.79 | E71: COMPOSIÇÃO
A72: 90729 | B72: JUNTA ARGAMASSADA ENTRE TUBO DN 350 MM E O POÇO DE VISITA/ CAIXA DE CONCRETO OU ALVENARIA EM REDES DE ESGOTO. AF_01/2021 | C72: UN | D72: 46.83 | E72: COMPOSIÇÃO
A73: 90730 | B73: JUNTA ARGAMASSADA ENTRE TUBO DN 400 MM E O POÇO DE VISITA/ CAIXA DE CONCRETO OU ALVENARIA EM REDES DE ESGOTO. AF_01/2021 | C73: UN | D73: 51.87 | E73: COMPOSIÇÃO
A74: 90731 | B74: JUNTA ARGAMASSADA ENTRE TUBO DN 450 MM E O POÇO DE VISITA/ CAIXA DE CONCRETO OU ALVENARIA EM REDES DE ESGOTO. AF_01/2021 | C74: UN | D74: 56.9 | E74: COMPOSIÇÃO
A75: 90732 | B75: JUNTA ARGAMASSADA ENTRE TUBO DN 600 MM E O POÇO DE VISITA/ CAIXA DE CONCRETO OU ALVENARIA EM REDES DE ESGOTO. AF_01/2021 | C75: UN | D75: 71.99 | E75: COMPOSIÇÃO
A76: 90733 | B76: ASSENTAMENTO DE TUBO DE PVC PARA REDE COLETORA DE ESGOTO DE PAREDE MACIÇA, DN 100 MM, JUNTA ELÁSTICA (NÃO INCLUI FORNECIMENTO). AF_01/2021 | C76: M | D76: 2.99 | E76: COMPOSIÇÃO
A77: 90734 | B77: ASSENTAMENTO DE TUBO DE PVC PARA REDE COLETORA DE ESGOTO DE PAREDE MACIÇA, DN 150 MM, JUNTA ELÁSTICA, (NÃO INCLUI FORNECIMENTO). AF_01/2021 | C77: M | D77: 3.55 | E77: COMPOSIÇÃO
A78: 90735 | B78: ASSENTAMENTO DE TUBO DE PVC PARA REDE COLETORA DE ESGOTO DE PAREDE MACIÇA, DN 200 MM, JUNTA ELÁSTICA (NÃO INCLUI FORNECIMENTO). AF_01/2021 | C78: M | D78: 4.09 | E78: COMPOSIÇÃO
A79: 90736 | B79: ASSENTAMENTO DE TUBO DE PVC PARA REDE COLETORA DE ESGOTO DE PAREDE MACIÇA, DN 250 MM, JUNTA ELÁSTICA (NÃO INCLUI FORNECIMENTO). AF_01/2021 | C79: M | D79: 4.64 | E79: COMPOSIÇÃO
A80: 90737 | B80: ASSENTAMENTO DE TUBO DE PVC PARA REDE COLETORA DE ESGOTO DE PAREDE MACIÇA, DN 300 MM, JUNTA ELÁSTICA (NÃO INCLUI FORNECIMENTO). AF_01/2021 | C80: M | D80: 5.2 | E80: COMPOSIÇÃO
A81: 90738 | B81: ASSENTAMENTO DE TUBO DE PVC PARA REDE COLETORA DE ESGOTO DE PAREDE MACIÇA, DN 350 MM, JUNTA ELÁSTICA (NÃO INCLUI FORNECIMENTO). AF_01/2021 | C81: M | D81: 5.75 | E81: COMPOSIÇÃO
A82: 90739 | B82: ASSENTAMENTO DE TUBO DE PVC PARA REDE COLETORA DE ESGOTO DE PAREDE MACIÇA, DN 400 MM, JUNTA ELÁSTICA (NÃO INCLUI FORNECIMENTO). AF_01/2021 | C82: M | D82: 8.31 | E82: COMPOSIÇÃO
A83: 90740 | B83: ASSENTAMENTO DE TUBO DE PVC CORRUGADO DE DUPLA PAREDE PARA REDE COLETORA DE ESGOTO, DN 150 MM, JUNTA ELÁSTICA (NÃO INCLUI FORNECIMENTO). AF_01/2021 | C83: M | D83: 3.94 | E83: COMPOSIÇÃO
A84: 90741 | B84: ASSENTAMENTO DE TUBO DE PVC CORRUGADO DE DUPLA PAREDE PARA REDE COLETORA DE ESGOTO, DN 200 MM, JUNTA ELÁSTICA (NÃO INCLUI FORNECIMENTO). AF_01/2021 | C84: M | D84: 4.5 | E84: COMPOSIÇÃO
A85: 90742 | B85: ASSENTAMENTO DE TUBO DE PVC CORRUGADO DE DUPLA PAREDE PARA REDE COLETORA DE ESGOTO, DN 250 MM, JUNTA ELÁSTICA (NÃO INCLUI FORNECIMENTO). AF_01/2021 | C85: M | D85: 5.05 | E85: COMPOSIÇÃO
A86: 90743 | B86: ASSENTAMENTO DE TUBO DE PVC CORRUGADO DE DUPLA PAREDE PARA REDE COLETORA DE ESGOTO, DN 300 MM, JUNTA ELÁSTICA (NÃO INCLUI FORNECIMENTO). AF_01/2021 | C86: M | D86: 5.6 | E86: COMPOSIÇÃO
A87: 90744 | B87: ASSENTAMENTO DE TUBO DE PVC CORRUGADO DE DUPLA PAREDE PARA REDE COLETORA DE ESGOTO, DN 350 MM, JUNTA ELÁSTICA (NÃO INCLUI FORNECIMENTO). AF_01/2021 | C87: M | D87: 6.15 | E87: COMPOSIÇÃO
A88: 90745 | B88: ASSENTAMENTO DE TUBO DE PVC CORRUGADO DE DUPLA PAREDE PARA REDE COLETORA DE ESGOTO, DN 400 MM, JUNTA ELÁSTICA (NÃO INCLUI FORNECIMENTO). AF_01/2021 | C88: M | D88: 9.28 | E88: COMPOSIÇÃO
A89: 90746 | B89: ASSENTAMENTO DE TUBO DE PEAD CORRUGADO DE DUPLA PAREDE PARA REDE COLETORA DE ESGOTO, DN 450 MM, JUNTA ELÁSTICA INTEGRADA (NÃO INCLUI FORNECIMENTO). AF_01/2021 | C89: M | D89: 3.24 | E89: COMPOSIÇÃO
A90: 90747 | B90: ASSENTAMENTO DE TUBO DE PEAD CORRUGADO DE DUPLA PAREDE PARA REDE COLETORA DE ESGOTO, DN 600 MM, JUNTA ELÁSTICA INTEGRADA (NÃO INCLUI FORNECIMENTO). AF_01/2021 | C90: M | D90: 15.62 | E90: COMPOSIÇÃO
A91: 94869 | B91: TUBO DE PEAD CORRUGADO DE DUPLA PAREDE PARA REDE COLETORA DE ESGOTO, DN 250 MM, JUNTA ELÁSTICA INTEGRADA - FORNECIMENTO E ASSENTAMENTO. AF_01/2021 | C91: M | D91: 146.68 | E91: COMPOSIÇÃO
A92: 94870 | B92: ASSENTAMENTO DE TUBO DE PEAD CORRUGADO DE DUPLA PAREDE PARA REDE COLETORA DE ESGOTO, DN 250 MM, JUNTA ELÁSTICA INTEGRADA (NÃO INCLUI FORNECIMENTO). AF_01/2021 | C92: M | D92: 1.98 | E92: COMPOSIÇÃO
A93: 94871 | B93: TUBO DE PEAD CORRUGADO DE DUPLA PAREDE PARA REDE COLETORA DE ESGOTO, DN 300 MM, JUNTA ELÁSTICA INTEGRADA - FORNECIMENTO E ASSENTAMENTO. AF_01/2021 | C93: M | D93: 229.39 | E93: COMPOSIÇÃO
A94: 94872 | B94: ASSENTAMENTO DE TUBO DE PEAD CORRUGADO DE DUPLA PAREDE PARA REDE COLETORA DE ESGOTO, DN 300 MM, JUNTA ELÁSTICA INTEGRADA (NÃO INCLUI FORNECIMENTO). AF_01/2021 | C94: M | D94: 2.69 | E94: COMPOSIÇÃO
A95: 94875 | B95: TUBO DE PEAD CORRUGADO DE DUPLA PAREDE PARA REDE COLETORA DE ESGOTO, DN 800 MM, JUNTA ELÁSTICA INTEGRADA - FORNECIMENTO E ASSENTAMENTO. AF_01/2021 | C95: M | D95: 1347.82 | E95: COMPOSIÇÃO
A96: 94876 | B96: ASSENTAMENTO DE TUBO DE PEAD CORRUGADO DE DUPLA PAREDE PARA REDE COLETORA DE ESGOTO, DN 800 MM, JUNTA ELÁSTICA INTEGRADA (NÃO INCLUI FORNECIMENTO). AF_01/2021 | C96: M | D96: 26.94 | E96: COMPOSIÇÃO
A97: 94878 | B97: ASSENTAMENTO DE TUBO DE PEAD CORRUGADO DE DUPLA PAREDE PARA REDE COLETORA DE ESGOTO, DN 900 MM, JUNTA ELÁSTICA INTEGRADA (NÃO INCLUI FORNECIMENTO). AF_01/2021 | C97: M | D97: 31.04 | E97: COMPOSIÇÃO
A98: 94879 | B98: TUBO DE PEAD CORRUGADO DE DUPLA PAREDE PARA REDE COLETORA DE ESGOTO, DN 1000 MM, JUNTA ELÁSTICA INTEGRADA - FORNECIMENTO E ASSENTAMENTO. AF_01/2021 | C98: M | D98: 2075.34 | E98: COMPOSIÇÃO
A99: 94880 | B99: ASSENTAMENTO DE TUBO DE PEAD CORRUGADO DE DUPLA PAREDE PARA REDE COLETORA DE ESGOTO, DN 1000 MM, JUNTA ELÁSTICA INTEGRADA (NÃO INCLUI FORNECIMENTO). AF_01/2021 | C99: M | D99: 40.54 | E99: COMPOSIÇÃO
A100: 94881 | B100: TUBO DE PEAD CORRUGADO DE DUPLA PAREDE PARA REDE COLETORA DE ESGOTO, DN 1200 MM, JUNTA ELÁSTICA INTEGRADA - FORNECIMENTO E ASSENTAMENTO. AF_01/2021 | C100: M | D100: 2859.1 | E100: COMPOSIÇÃO
A101: 94882 | B101: ASSENTAMENTO DE TUBO DE PEAD CORRUGADO DE DUPLA PAREDE PARA REDE COLETORA DE ESGOTO, DN 1200 MM, JUNTA ELÁSTICA INTEGRADA (NÃO INCLUI FORNECIMENTO). AF_01/2021 | C101: M | D101: 46.88 | E101: COMPOSIÇÃO
A102: 94884 | B102: ASSENTAMENTO DE TUBO DE PEAD CORRUGADO DE DUPLA PAREDE PARA REDE COLETORA DE ESGOTO, DN 1500 MM, JUNTA ELÁSTICA INTEGRADA (NÃO INCLUI FORNECIMENTO). AF_01/2021 | C102: M | D102: 59.72 | E102: COMPOSIÇÃO
A103: 97121 | B103: ASSENTAMENTO DE TUBO DE PVC PBA PARA REDE DE ÁGUA, DN 50 MM, JUNTA ELÁSTICA INTEGRADA, INSTALADO EM LOCAL COM NÍVEL ALTO DE INTERFERÊNCIAS (NÃO INCLUI FORNECIMENTO). AF_11/2017 | C103: M | D103: 1.82 | E103: COMPOSIÇÃO
A104: 97122 | B104: ASSENTAMENTO DE TUBO DE PVC PBA PARA REDE DE ÁGUA, DN 75 MM, JUNTA ELÁSTICA INTEGRADA, INSTALADO EM LOCAL COM NÍVEL ALTO DE INTERFERÊNCIAS (NÃO INCLUI FORNECIMENTO). AF_11/2017 | C104: M | D104: 2.54 | E104: COMPOSIÇÃO
A105: 97123 | B105: ASSENTAMENTO DE TUBO DE PVC PBA PARA REDE DE ÁGUA, DN 100 MM, JUNTA ELÁSTICA INTEGRADA, INSTALADO EM LOCAL COM NÍVEL ALTO DE INTERFERÊNCIAS (NÃO INCLUI FORNECIMENTO). AF_11/2017 | C105: M | D105: 3.23 | E105: COMPOSIÇÃO
A106: 97124 | B106: ASSENTAMENTO DE TUBO DE PVC PBA PARA REDE DE ÁGUA, DN 50 MM, JUNTA ELÁSTICA INTEGRADA, INSTALADO EM LOCAL COM NÍVEL BAIXO DE INTERFERÊNCIAS (NÃO INCLUI FORNECIMENTO). AF_11/2017 | C106: M | D106: 0.82 | E106: COMPOSIÇÃO
A107: 97125 | B107: ASSENTAMENTO DE TUBO DE PVC PBA PARA REDE DE ÁGUA, DN 75 MM, JUNTA ELÁSTICA INTEGRADA, INSTALADO EM LOCAL COM NÍVEL BAIXO DE INTERFERÊNCIAS (NÃO INCLUI FORNECIMENTO). AF_11/2017 | C107: M | D107: 1.18 | E107: COMPOSIÇÃO
A108: 97126 | B108: ASSENTAMENTO DE TUBO DE PVC PBA PARA REDE DE ÁGUA, DN 100 MM, JUNTA ELÁSTICA INTEGRADA, INSTALADO EM LOCAL COM NÍVEL BAIXO DE INTERFERÊNCIAS (NÃO INCLUI FORNECIMENTO). AF_11/2017 | C108: M | D108: 1.5 | E108: COMPOSIÇÃO
A109: 102264 | B109: TUBO DE PVC BRANCO PARA REDE COLETORA DE ESGOTO CONDOMINIAL DE PAREDE MACIÇA, DN 100 MM, JUNTA ELÁSTICA - FORNECIMENTO E ASSENTAMENTO. AF_01/2021 | C109: M | D109: 22.88 | E109: COMPOSIÇÃO
A110: 102265 | B110: JUNTA ARGAMASSADA ENTRE TUBO DN 800 MM E O POÇO DE VISITA/ CAIXA DE CONCRETO OU ALVENARIA EM REDES DE ESGOTO. AF_01/2021 | C110: UN | D110: 92.11 | E110: COMPOSIÇÃO
A111: 102266 | B111: JUNTA ARGAMASSADA ENTRE TUBO DN 900 MM E O POÇO DE VISITA/ CAIXA DE CONCRETO OU ALVENARIA EM REDES DE ESGOTO. AF_01/2021 | C111: UN | D111: 102.17 | E111: COMPOSIÇÃO
A112: 102267 | B112: JUNTA ARGAMASSADA ENTRE TUBO DN 1000 MM E O POÇO DE VISITA/ CAIXA DE CONCRETO OU ALVENARIA EM REDES DE ESGOTO. AF_01/2021 | C112: UN | D112: 117.35 | E112: COMPOSIÇÃO
A113: 102268 | B113: JUNTA ARGAMASSADA ENTRE TUBO DN 1200 MM E O POÇO DE VISITA/ CAIXA DE CONCRETO OU ALVENARIA EM REDES DE ESGOTO. AF_01/2021 | C113: UN | D113: 132.44 | E113: COMPOSIÇÃO
A114: 102269 | B114: JUNTA ARGAMASSADA ENTRE TUBO DN 1500 MM E O POÇO DE VISITA/ CAIXA DE CONCRETO OU ALVENARIA EM REDES DE ESGOTO. AF_01/2021 | C114: UN | D114: 162.63 | E114: COMPOSIÇÃO
A115: 92833 | B115: TUBO DE CONCRETO PARA REDES COLETORAS DE ESGOTO SANITÁRIO, DIÂMETRO DE 300 MM, JUNTA ELÁSTICA, INSTALADO EM LOCAL COM BAIXO NÍVEL DE INTERFERÊNCIAS - FORNECIMENTO E ASSENTAMENTO. AF_12/2015 | C115: M | D115: 217.16 | E115: COMPOSIÇÃO
A116: 92834 | B116: ASSENTAMENTO DE TUBO DE CONCRETO PARA REDES COLETORAS DE ESGOTO SANITÁRIO, DIÂMETRO DE 300 MM, JUNTA ELÁSTICA, INSTALADO EM LOCAL COM BAIXO NÍVEL DE INTERFERÊNCIAS (NÃO INCLUI FORNECIMENTO). AF_12/2015 | C116: M | D116: 8.36 | E116: COMPOSIÇÃO
A117: 92835 | B117: TUBO DE CONCRETO PARA REDES COLETORAS DE ESGOTO SANITÁRIO, DIÂMETRO DE 400 MM, JUNTA ELÁSTICA, INSTALADO EM LOCAL COM BAIXO NÍVEL DE INTERFERÊNCIAS - FORNECIMENTO E ASSENTAMENTO. AF_12/2015 | C117: M | D117: 227.29 | E117: COMPOSIÇÃO
A118: 92836 | B118: ASSENTAMENTO DE TUBO DE CONCRETO PARA REDES COLETORAS DE ESGOTO SANITÁRIO, DIÂMETRO DE 400 MM, JUNTA ELÁSTICA, INSTALADO EM LOCAL COM BAIXO NÍVEL DE INTERFERÊNCIAS (NÃO INCLUI FORNECIMENTO). AF_12/2015 | C118: M | D118: 10.67 | E118: COMPOSIÇÃO
A119: 92837 | B119: TUBO DE CONCRETO PARA REDES COLETORAS DE ESGOTO SANITÁRIO, DIÂMETRO DE 500 MM, JUNTA ELÁSTICA, INSTALADO EM LOCAL COM BAIXO NÍVEL DE INTERFERÊNCIAS - FORNECIMENTO E ASSENTAMENTO. AF_12/2015 | C119: M | D119: 402 | E119: COMPOSIÇÃO
A120: 92838 | B120: ASSENTAMENTO DE TUBO DE CONCRETO PARA REDES COLETORAS DE ESGOTO SANITÁRIO, DIÂMETRO DE 500 MM, JUNTA ELÁSTICA, INSTALADO EM LOCAL COM BAIXO NÍVEL DE INTERFERÊNCIAS (NÃO INCLUI FORNECIMENTO). AF_12/2015 | C120: M | D120: 12.78 | E120: COMPOSIÇÃO
A121: 92839 | B121: TUBO DE CONCRETO PARA REDES COLETORAS DE ESGOTO SANITÁRIO, DIÂMETRO DE 600 MM, JUNTA ELÁSTICA, INSTALADO EM LOCAL COM BAIXO NÍVEL DE INTERFERÊNCIAS - FORNECIMENTO E ASSENTAMENTO. AF_12/2015 | C121: M | D121: 491.9 | E121: COMPOSIÇÃO
A122: 92840 | B122: ASSENTAMENTO DE TUBO DE CONCRETO PARA REDES COLETORAS DE ESGOTO SANITÁRIO, DIÂMETRO DE 600 MM, JUNTA ELÁSTICA, INSTALADO EM LOCAL COM BAIXO NÍVEL DE INTERFERÊNCIAS (NÃO INCLUI FORNECIMENTO). AF_12/2015 | C122: M | D122: 15.17 | E122: COMPOSIÇÃO
A123: 92841 | B123: TUBO DE CONCRETO PARA REDES COLETORAS DE ESGOTO SANITÁRIO, DIÂMETRO DE 700 MM, JUNTA ELÁSTICA, INSTALADO EM LOCAL COM BAIXO NÍVEL DE INTERFERÊNCIAS - FORNECIMENTO E ASSENTAMENTO. AF_12/2015 | C123: M | D123: 641.41 | E123: COMPOSIÇÃO
A124: 92842 | B124: ASSENTAMENTO DE TUBO DE CONCRETO PARA REDES COLETORAS DE ESGOTO SANITÁRIO, DIÂMETRO DE 700 MM, JUNTA ELÁSTICA, INSTALADO EM LOCAL COM BAIXO NÍVEL DE INTERFERÊNCIAS (NÃO INCLUI FORNECIMENTO). AF_12/2015 | C124: M | D124: 17.3 | E124: COMPOSIÇÃO
A125: 92843 | B125: TUBO DE CONCRETO PARA REDES COLETORAS DE ESGOTO SANITÁRIO, DIÂMETRO DE 800 MM, JUNTA ELÁSTICA, INSTALADO EM LOCAL COM BAIXO NÍVEL DE INTERFERÊNCIAS - FORNECIMENTO E ASSENTAMENTO. AF_12/2015 | C125: M | D125: 664.69 | E125: COMPOSIÇÃO
A126: 92844 | B126: ASSENTAMENTO DE TUBO DE CONCRETO PARA REDES COLETORAS DE ESGOTO SANITÁRIO, DIÂMETRO DE 800 MM, JUNTA ELÁSTICA, INSTALADO EM LOCAL COM BAIXO NÍVEL DE INTERFERÊNCIAS (NÃO INCLUI FORNECIMENTO). AF_12/2015 | C126: M | D126: 19.68 | E126: COMPOSIÇÃO
A127: 92845 | B127: TUBO DE CONCRETO PARA REDES COLETORAS DE ESGOTO SANITÁRIO, DIÂMETRO DE 900 MM, JUNTA ELÁSTICA, INSTALADO EM LOCAL COM BAIXO NÍVEL DE INTERFERÊNCIAS - FORNECIMENTO E ASSENTAMENTO. AF_12/2015 | C127: M | D127: 984.96 | E127: COMPOSIÇÃO
A128: 92846 | B128: ASSENTAMENTO DE TUBO DE CONCRETO PARA REDES COLETORAS DE ESGOTO SANITÁRIO, DIÂMETRO DE 900 MM, JUNTA ELÁSTICA, INSTALADO EM LOCAL COM BAIXO NÍVEL DE INTERFERÊNCIAS (NÃO INCLUI FORNECIMENTO). AF_12/2015 | C128: M | D128: 21.82 | E128: COMPOSIÇÃO
A129: 92847 | B129: TUBO DE CONCRETO PARA REDES COLETORAS DE ESGOTO SANITÁRIO, DIÂMETRO DE 1000 MM, JUNTA ELÁSTICA, INSTALADO EM LOCAL COM BAIXO NÍVEL DE INTERFERÊNCIAS - FORNECIMENTO E ASSENTAMENTO. AF_12/2015 | C129: M | D129: 1012.71 | E129: COMPOSIÇÃO
A130: 92848 | B130: ASSENTAMENTO DE TUBO DE CONCRETO PARA REDES COLETORAS DE ESGOTO SANITÁRIO, DIÂMETRO DE 1000 MM, JUNTA ELÁSTICA, INSTALADO EM LOCAL COM BAIXO NÍVEL DE INTERFERÊNCIAS (NÃO INCLUI FORNECIMENTO). AF_12/2015 | C130: M | D130: 24.21 | E130: COMPOSIÇÃO
A131: 92849 | B131: TUBO DE CONCRETO PARA REDES COLETORAS DE ESGOTO SANITÁRIO, DIÂMETRO DE 300 MM, JUNTA ELÁSTICA, INSTALADO EM LOCAL COM ALTO NÍVEL DE INTERFERÊNCIAS - FORNECIMENTO E ASSENTAMENTO. AF_12/2015 | C131: M | D131: 224.6 | E131: COMPOSIÇÃO
A132: 92850 | B132: ASSENTAMENTO DE TUBO DE CONCRETO PARA REDES COLETORAS DE ESGOTO SANITÁRIO, DIÂMETRO DE 300 MM, JUNTA ELÁSTICA, INSTALADO EM LOCAL COM ALTO NÍVEL DE INTERFERÊNCIAS (NÃO INCLUI FORNECIMENTO). AF_12/2015 | C132: M | D132: 15.8 | E132: COMPOSIÇÃO
A133: 92851 | B133: TUBO DE CONCRETO PARA REDES COLETORAS DE ESGOTO SANITÁRIO, DIÂMETRO DE 400 MM, JUNTA ELÁSTICA, INSTALADO EM LOCAL COM ALTO NÍVEL DE INTERFERÊNCIAS - FORNECIMENTO E ASSENTAMENTO. AF_12/2015 | C133: M | D133: 236.56 | E133: COMPOSIÇÃO
A134: 92852 | B134: ASSENTAMENTO DE TUBO DE CONCRETO PARA REDES COLETORAS DE ESGOTO SANITÁRIO, DIÂMETRO DE 400 MM, JUNTA ELÁSTICA, INSTALADO EM LOCAL COM ALTO NÍVEL DE INTERFERÊNCIAS (NÃO INCLUI FORNECIMENTO). AF_12/2015 | C134: M | D134: 19.94 | E134: COMPOSIÇÃO
A135: 92853 | B135: TUBO DE CONCRETO PARA REDES COLETORAS DE ESGOTO SANITÁRIO, DIÂMETRO DE 500 MM, JUNTA ELÁSTICA, INSTALADO EM LOCAL COM ALTO NÍVEL DE INTERFERÊNCIAS - FORNECIMENTO E ASSENTAMENTO. AF_12/2015 | C135: M | D135: 413.51 | E135: COMPOSIÇÃO
A136: 92854 | B136: ASSENTAMENTO DE TUBO DE CONCRETO PARA REDES COLETORAS DE ESGOTO SANITÁRIO, DIÂMETRO DE 500 MM, JUNTA ELÁSTICA, INSTALADO EM LOCAL COM ALTO NÍVEL DE INTERFERÊNCIAS (NÃO INCLUI FORNECIMENTO). AF_12/2015 | C136: M | D136: 24.29 | E136: COMPOSIÇÃO
A137: 92855 | B137: TUBO DE CONCRETO PARA REDES COLETORAS DE ESGOTO SANITÁRIO, DIÂMETRO DE 600 MM, JUNTA ELÁSTICA, INSTALADO EM LOCAL COM ALTO NÍVEL DE INTERFERÊNCIAS - FORNECIMENTO E ASSENTAMENTO. AF_12/2015 | C137: M | D137: 505.36 | E137: COMPOSIÇÃO
A138: 92856 | B138: ASSENTAMENTO DE TUBO DE CONCRETO PARA REDES COLETORAS DE ESGOTO SANITÁRIO, DIÂMETRO DE 600 MM, JUNTA ELÁSTICA, INSTALADO EM LOCAL COM ALTO NÍVEL DE INTERFERÊNCIAS (NÃO INCLUI FORNECIMENTO). AF_12/2015 | C138: M | D138: 28.63 | E138: COMPOSIÇÃO
A139: 92857 | B139: TUBO DE CONCRETO PARA REDES COLETORAS DE ESGOTO SANITÁRIO, DIÂMETRO DE 700 MM, JUNTA ELÁSTICA, INSTALADO EM LOCAL COM ALTO NÍVEL DE INTERFERÊNCIAS - FORNECIMENTO E ASSENTAMENTO. AF_12/2015 | C139: M | D139: 656.86 | E139: COMPOSIÇÃO
A140: 92858 | B140: ASSENTAMENTO DE TUBO DE CONCRETO PARA REDES COLETORAS DE ESGOTO SANITÁRIO, DIÂMETRO DE 700 MM, JUNTA ELÁSTICA, INSTALADO EM LOCAL COM ALTO NÍVEL DE INTERFERÊNCIAS (NÃO INCLUI FORNECIMENTO). AF_12/2015 | C140: M | D140: 32.75 | E140: COMPOSIÇÃO
A141: 92859 | B141: TUBO DE CONCRETO PARA REDES COLETORAS DE ESGOTO SANITÁRIO, DIÂMETRO DE 800 MM, JUNTA ELÁSTICA, INSTALADO EM LOCAL COM ALTO NÍVEL DE INTERFERÊNCIAS - FORNECIMENTO E ASSENTAMENTO. AF_12/2015 | C141: M | D141: 682.21 | E141: COMPOSIÇÃO
A142: 92860 | B142: ASSENTAMENTO DE TUBO DE CONCRETO PARA REDES COLETORAS DE ESGOTO SANITÁRIO, DIÂMETRO DE 800 MM, JUNTA ELÁSTICA, INSTALADO EM LOCAL COM ALTO NÍVEL DE INTERFERÊNCIAS (NÃO INCLUI FORNECIMENTO). AF_12/2015 | C142: M | D142: 37.2 | E142: COMPOSIÇÃO
A143: 92861 | B143: TUBO DE CONCRETO PARA REDES COLETORAS DE ESGOTO SANITÁRIO, DIÂMETRO DE 900 MM, JUNTA ELÁSTICA, INSTALADO EM LOCAL COM ALTO NÍVEL DE INTERFERÊNCIAS - FORNECIMENTO E ASSENTAMENTO. AF_12/2015 | C143: M | D143: 1004.64 | E143: COMPOSIÇÃO
A144: 92862 | B144: ASSENTAMENTO DE TUBO DE CONCRETO PARA REDES COLETORAS DE ESGOTO SANITÁRIO, DIÂMETRO DE 900 MM, JUNTA ELÁSTICA, INSTALADO EM LOCAL COM ALTO NÍVEL DE INTERFERÊNCIAS (NÃO INCLUI FORNECIMENTO). AF_12/2015 | C144: M | D144: 41.5 | E144: COMPOSIÇÃO
A145: 92863 | B145: TUBO DE CONCRETO PARA REDES COLETORAS DE ESGOTO SANITÁRIO, DIÂMETRO DE 1000 MM, JUNTA ELÁSTICA, INSTALADO EM LOCAL COM ALTO NÍVEL DE INTERFERÊNCIAS - FORNECIMENTO E ASSENTAMENTO. AF_12/2015 | C145: M | D145: 1034.36 | E145: COMPOSIÇÃO
A146: 92864 | B146: ASSENTAMENTO DE TUBO DE CONCRETO PARA REDES COLETORAS DE ESGOTO SANITÁRIO, DIÂMETRO DE 1000 MM, JUNTA ELÁSTICA, INSTALADO EM LOCAL COM ALTO NÍVEL DE INTERFERÊNCIAS (NÃO INCLUI FORNECIMENTO). AF_12/2015 | C146: M | D146: 45.86 | E146: COMPOSIÇÃO
A147: 92210 | B147: TUBO DE CONCRETO PARA REDES COLETORAS DE ÁGUAS PLUVIAIS, DIÂMETRO DE 400 MM, JUNTA RÍGIDA, INSTALADO EM LOCAL COM BAIXO NÍVEL DE INTERFERÊNCIAS - FORNECIMENTO E ASSENTAMENTO. AF_12/2015 | C147: M | D147: 171.02 | E147: COMPOSIÇÃO
A148: 92211 | B148: TUBO DE CONCRETO PARA REDES COLETORAS DE ÁGUAS PLUVIAIS, DIÂMETRO DE 500 MM, JUNTA RÍGIDA, INSTALADO EM LOCAL COM BAIXO NÍVEL DE INTERFERÊNCIAS - FORNECIMENTO E ASSENTAMENTO. AF_12/2015 | C148: M | D148: 205.54 | E148: COMPOSIÇÃO
A149: 92212 | B149: TUBO DE CONCRETO PARA REDES COLETORAS DE ÁGUAS PLUVIAIS, DIÂMETRO DE 600 MM, JUNTA RÍGIDA, INSTALADO EM LOCAL COM BAIXO NÍVEL DE INTERFERÊNCIAS - FORNECIMENTO E ASSENTAMENTO. AF_12/2015 | C149: M | D149: 307.71 | E149: COMPOSIÇÃO
A150: 92213 | B150: TUBO DE CONCRETO PARA REDES COLETORAS DE ÁGUAS PLUVIAIS, DIÂMETRO DE 700 MM, JUNTA RÍGIDA, INSTALADO EM LOCAL COM BAIXO NÍVEL DE INTERFERÊNCIAS - FORNECIMENTO E ASSENTAMENTO. AF_12/2015 | C150: M | D150: 405.09 | E150: COMPOSIÇÃO
A151: 92214 | B151: TUBO DE CONCRETO PARA REDES COLETORAS DE ÁGUAS PLUVIAIS, DIÂMETRO DE 800 MM, JUNTA RÍGIDA, INSTALADO EM LOCAL COM BAIXO NÍVEL DE INTERFERÊNCIAS - FORNECIMENTO E ASSENTAMENTO. AF_12/2015 | C151: M | D151: 490.21 | E151: COMPOSIÇÃO
A152: 92215 | B152: TUBO DE CONCRETO PARA REDES COLETORAS DE ÁGUAS PLUVIAIS, DIÂMETRO DE 900 MM, JUNTA RÍGIDA, INSTALADO EM LOCAL COM BAIXO NÍVEL DE INTERFERÊNCIAS - FORNECIMENTO E ASSENTAMENTO. AF_12/2015 | C152: M | D152: 563.56 | E152: COMPOSIÇÃO
A153: 92216 | B153: TUBO DE CONCRETO PARA REDES COLETORAS DE ÁGUAS PLUVIAIS, DIÂMETRO DE 1000 MM, JUNTA RÍGIDA, INSTALADO EM LOCAL COM BAIXO NÍVEL DE INTERFERÊNCIAS - FORNECIMENTO E ASSENTAMENTO. AF_12/2015 | C153: M | D153: 589.85 | E153: COMPOSIÇÃO
A154: 92219 | B154: TUBO DE CONCRETO PARA REDES COLETORAS DE ÁGUAS PLUVIAIS, DIÂMETRO DE 400 MM, JUNTA RÍGIDA, INSTALADO EM LOCAL COM ALTO NÍVEL DE INTERFERÊNCIAS - FORNECIMENTO E ASSENTAMENTO. AF_12/2015 | C154: M | D154: 180.29 | E154: COMPOSIÇÃO
A155: 92220 | B155: TUBO DE CONCRETO PARA REDES COLETORAS DE ÁGUAS PLUVIAIS, DIÂMETRO DE 500 MM, JUNTA RÍGIDA, INSTALADO EM LOCAL COM ALTO NÍVEL DE INTERFERÊNCIAS - FORNECIMENTO E ASSENTAMENTO. AF_12/2015 | C155: M | D155: 217.04 | E155: COMPOSIÇÃO
A156: 92221 | B156: TUBO DE CONCRETO PARA REDES COLETORAS DE ÁGUAS PLUVIAIS, DIÂMETRO DE 600 MM, JUNTA RÍGIDA, INSTALADO EM LOCAL COM ALTO NÍVEL DE INTERFERÊNCIAS - FORNECIMENTO E ASSENTAMENTO. AF_12/2015 | C156: M | D156: 321.17 | E156: COMPOSIÇÃO
A157: 92222 | B157: TUBO DE CONCRETO PARA REDES COLETORAS DE ÁGUAS PLUVIAIS, DIÂMETRO DE 700 MM, JUNTA RÍGIDA, INSTALADO EM LOCAL COM ALTO NÍVEL DE INTERFERÊNCIAS - FORNECIMENTO E ASSENTAMENTO. AF_12/2015 | C157: M | D157: 420.75 | E157: COMPOSIÇÃO
A158: 92223 | B158: TUBO DE CONCRETO PARA REDES COLETORAS DE ÁGUAS PLUVIAIS, DIÂMETRO DE 800 MM, JUNTA RÍGIDA, INSTALADO EM LOCAL COM ALTO NÍVEL DE INTERFERÊNCIAS - FORNECIMENTO E ASSENTAMENTO. AF_12/2015 | C158: M | D158: 507.71 | E158: COMPOSIÇÃO
A159: 92224 | B159: TUBO DE CONCRETO PARA REDES COLETORAS DE ÁGUAS PLUVIAIS, DIÂMETRO DE 900 MM, JUNTA RÍGIDA, INSTALADO EM LOCAL COM ALTO NÍVEL DE INTERFERÊNCIAS - FORNECIMENTO E ASSENTAMENTO. AF_12/2015 | C159: M | D159: 582.99 | E159: COMPOSIÇÃO
A160: 92226 | B160: TUBO DE CONCRETO PARA REDES COLETORAS DE ÁGUAS PLUVIAIS, DIÂMETRO DE 1000 MM, JUNTA RÍGIDA, INSTALADO EM LOCAL COM ALTO NÍVEL DE INTERFERÊNCIAS - FORNECIMENTO E ASSENTAMENTO. AF_12/2015 | C160: M | D160: 611.6 | E160: COMPOSIÇÃO
A161: 92808 | B161: ASSENTAMENTO DE TUBO DE CONCRETO PARA REDES COLETORAS DE ÁGUAS PLUVIAIS, DIÂMETRO DE 300 MM, JUNTA RÍGIDA, INSTALADO EM LOCAL COM BAIXO NÍVEL DE INTERFERÊNCIAS (NÃO INCLUI FORNECIMENTO). AF_12/2015 | C161: M | D161: 37.79 | E161: COMPOSIÇÃO
A162: 92809 | B162: ASSENTAMENTO DE TUBO DE CONCRETO PARA REDES COLETORAS DE ÁGUAS PLUVIAIS, DIÂMETRO DE 400 MM, JUNTA RÍGIDA, INSTALADO EM LOCAL COM BAIXO NÍVEL DE INTERFERÊNCIAS (NÃO INCLUI FORNECIMENTO). AF_12/2015 | C162: M | D162: 48.6 | E162: COMPOSIÇÃO
A163: 92810 | B163: ASSENTAMENTO DE TUBO DE CONCRETO PARA REDES COLETORAS DE ÁGUAS PLUVIAIS, DIÂMETRO DE 500 MM, JUNTA RÍGIDA, INSTALADO EM LOCAL COM BAIXO NÍVEL DE INTERFERÊNCIAS (NÃO INCLUI FORNECIMENTO). AF_12/2015 | C163: M | D163: 59.23 | E163: COMPOSIÇÃO
A164: 92811 | B164: ASSENTAMENTO DE TUBO DE CONCRETO PARA REDES COLETORAS DE ÁGUAS PLUVIAIS, DIÂMETRO DE 600 MM, JUNTA RÍGIDA, INSTALADO EM LOCAL COM BAIXO NÍVEL DE INTERFERÊNCIAS (NÃO INCLUI FORNECIMENTO). AF_12/2015 | C164: M | D164: 70.81 | E164: COMPOSIÇÃO
A165: 92812 | B165: ASSENTAMENTO DE TUBO DE CONCRETO PARA REDES COLETORAS DE ÁGUAS PLUVIAIS, DIÂMETRO DE 700 MM, JUNTA RÍGIDA, INSTALADO EM LOCAL COM BAIXO NÍVEL DE INTERFERÊNCIAS (NÃO INCLUI FORNECIMENTO). AF_12/2015 | C165: M | D165: 82.2 | E165: COMPOSIÇÃO
A166: 92813 | B166: ASSENTAMENTO DE TUBO DE CONCRETO PARA REDES COLETORAS DE ÁGUAS PLUVIAIS, DIÂMETRO DE 800 MM, JUNTA RÍGIDA, INSTALADO EM LOCAL COM BAIXO NÍVEL DE INTERFERÊNCIAS (NÃO INCLUI FORNECIMENTO). AF_12/2015 | C166: M | D166: 96.05 | E166: COMPOSIÇÃO
A167: 92814 | B167: ASSENTAMENTO DE TUBO DE CONCRETO PARA REDES COLETORAS DE ÁGUAS PLUVIAIS, DIÂMETRO DE 900 MM, JUNTA RÍGIDA, INSTALADO EM LOCAL COM BAIXO NÍVEL DE INTERFERÊNCIAS (NÃO INCLUI FORNECIMENTO). AF_12/2015 | C167: M | D167: 110.67 | E167: COMPOSIÇÃO
A168: 92815 | B168: ASSENTAMENTO DE TUBO DE CONCRETO PARA REDES COLETORAS DE ÁGUAS PLUVIAIS, DIÂMETRO DE 1000 MM, JUNTA RÍGIDA, INSTALADO EM LOCAL COM BAIXO NÍVEL DE INTERFERÊNCIAS (NÃO INCLUI FORNECIMENTO). AF_12/2015 | C168: M | D168: 128 | E168: COMPOSIÇÃO
A169: 92816 | B169: TUBO DE CONCRETO PARA REDES COLETORAS DE ÁGUAS PLUVIAIS, DIÂMETRO DE 1200 MM, JUNTA RÍGIDA, INSTALADO EM LOCAL COM BAIXO NÍVEL DE INTERFERÊNCIAS - FORNECIMENTO E ASSENTAMENTO. AF_12/2015 | C169: M | D169: 849.96 | E169: COMPOSIÇÃO
A170: 92817 | B170: ASSENTAMENTO DE TUBO DE CONCRETO PARA REDES COLETORAS DE ÁGUAS PLUVIAIS, DIÂMETRO DE 1200 MM, JUNTA RÍGIDA, INSTALADO EM LOCAL COM BAIXO NÍVEL DE INTERFERÊNCIAS (NÃO INCLUI FORNECIMENTO). AF_12/2015 | C170: M | D170: 160.17 | E170: COMPOSIÇÃO
A171: 92818 | B171: TUBO DE CONCRETO PARA REDES COLETORAS DE ÁGUAS PLUVIAIS, DIÂMETRO DE 1500 MM, JUNTA RÍGIDA, INSTALADO EM LOCAL COM BAIXO NÍVEL DE INTERFERÊNCIAS - FORNECIMENTO E ASSENTAMENTO. AF_12/2015 | C171: M | D171: 1214.97 | E171: COMPOSIÇÃO
A172: 92819 | B172: ASSENTAMENTO DE TUBO DE CONCRETO PARA REDES COLETORAS DE ÁGUAS PLUVIAIS, DIÂMETRO DE 1500 MM, JUNTA RÍGIDA, INSTALADO EM LOCAL COM BAIXO NÍVEL DE INTERFERÊNCIAS (NÃO INCLUI FORNECIMENTO). AF_12/2015 | C172: M | D172: 215.62 | E172: COMPOSIÇÃO
A173: 92820 | B173: ASSENTAMENTO DE TUBO DE CONCRETO PARA REDES COLETORAS DE ÁGUAS PLUVIAIS, DIÂMETRO DE 300 MM, JUNTA RÍGIDA, INSTALADO EM LOCAL COM ALTO NÍVEL DE INTERFERÊNCIAS (NÃO INCLUI FORNECIMENTO). AF_12/2015 | C173: M | D173: 45.04 | E173: COMPOSIÇÃO
A174: 92821 | B174: ASSENTAMENTO DE TUBO DE CONCRETO PARA REDES COLETORAS DE ÁGUAS PLUVIAIS, DIÂMETRO DE 400 MM, JUNTA RÍGIDA, INSTALADO EM LOCAL COM ALTO NÍVEL DE INTERFERÊNCIAS (NÃO INCLUI FORNECIMENTO). AF_12/2015 | C174: M | D174: 57.87 | E174: COMPOSIÇÃO
A175: 92822 | B175: ASSENTAMENTO DE TUBO DE CONCRETO PARA REDES COLETORAS DE ÁGUAS PLUVIAIS, DIÂMETRO DE 500 MM, JUNTA RÍGIDA, INSTALADO EM LOCAL COM ALTO NÍVEL DE INTERFERÊNCIAS (NÃO INCLUI FORNECIMENTO). AF_12/2015 | C175: M | D175: 70.73 | E175: COMPOSIÇÃO
A176: 92824 | B176: ASSENTAMENTO DE TUBO DE CONCRETO PARA REDES COLETORAS DE ÁGUAS PLUVIAIS, DIÂMETRO DE 600 MM, JUNTA RÍGIDA, INSTALADO EM LOCAL COM ALTO NÍVEL DE INTERFERÊNCIAS (NÃO INCLUI FORNECIMENTO). AF_12/2015 | C176: M | D176: 84.27 | E176: COMPOSIÇÃO
A177: 92825 | B177: ASSENTAMENTO DE TUBO DE CONCRETO PARA REDES COLETORAS DE ÁGUAS PLUVIAIS, DIÂMETRO DE 700 MM, JUNTA RÍGIDA, INSTALADO EM LOCAL COM ALTO NÍVEL DE INTERFERÊNCIAS (NÃO INCLUI FORNECIMENTO). AF_12/2015 | C177: M | D177: 97.86 | E177: COMPOSIÇÃO
A178: 92826 | B178: ASSENTAMENTO DE TUBO DE CONCRETO PARA REDES COLETORAS DE ÁGUAS PLUVIAIS, DIÂMETRO DE 800 MM, JUNTA RÍGIDA, INSTALADO EM LOCAL COM ALTO NÍVEL DE INTERFERÊNCIAS (NÃO INCLUI FORNECIMENTO). AF_12/2015 | C178: M | D178: 113.55 | E178: COMPOSIÇÃO
A179: 92827 | B179: ASSENTAMENTO DE TUBO DE CONCRETO PARA REDES COLETORAS DE ÁGUAS PLUVIAIS, DIÂMETRO DE 900 MM, JUNTA RÍGIDA, INSTALADO EM LOCAL COM ALTO NÍVEL DE INTERFERÊNCIAS (NÃO INCLUI FORNECIMENTO). AF_12/2015 | C179: M | D179: 130.1 | E179: COMPOSIÇÃO
A180: 92828 | B180: ASSENTAMENTO DE TUBO DE CONCRETO PARA REDES COLETORAS DE ÁGUAS PLUVIAIS, DIÂMETRO DE 1000 MM, JUNTA RÍGIDA, INSTALADO EM LOCAL COM ALTO NÍVEL DE INTERFERÊNCIAS (NÃO INCLUI FORNECIMENTO). AF_12/2015 | C180: M | D180: 149.75 | E180: COMPOSIÇÃO
A181: 92829 | B181: TUBO DE CONCRETO PARA REDES COLETORAS DE ÁGUAS PLUVIAIS, DIÂMETRO DE 1200 MM, JUNTA RÍGIDA, INSTALADO EM LOCAL COM ALTO NÍVEL DE INTERFERÊNCIAS - FORNECIMENTO E ASSENTAMENTO. AF_12/2015 | C181: M | D181: 875.56 | E181: COMPOSIÇÃO
A182: 92830 | B182: ASSENTAMENTO DE TUBO DE CONCRETO PARA REDES COLETORAS DE ÁGUAS PLUVIAIS, DIÂMETRO DE 1200 MM, JUNTA RÍGIDA, INSTALADO EM LOCAL COM ALTO NÍVEL DE INTERFERÊNCIAS (NÃO INCLUI FORNECIMENTO). AF_12/2015 | C182: M | D182: 185.77 | E182: COMPOSIÇÃO
A183: 92831 | B183: TUBO DE CONCRETO PARA REDES COLETORAS DE ÁGUAS PLUVIAIS, DIÂMETRO DE 1500 MM, JUNTA RÍGIDA, INSTALADO EM LOCAL COM ALTO NÍVEL DE INTERFERÊNCIAS - FORNECIMENTO E ASSENTAMENTO. AF_12/2015 | C183: M | D183: 1246.31 | E183: COMPOSIÇÃO
A184: 92832 | B184: ASSENTAMENTO DE TUBO DE CONCRETO PARA REDES COLETORAS DE ÁGUAS PLUVIAIS, DIÂMETRO DE 1500 MM, JUNTA RÍGIDA, INSTALADO EM LOCAL COM ALTO NÍVEL DE INTERFERÊNCIAS (NÃO INCLUI FORNECIMENTO). AF_12/2015 | C184: M | D184: 246.96 | E184: COMPOSIÇÃO
A185: 95565 | B185: TUBO DE CONCRETO PARA REDES COLETORAS DE ÁGUAS PLUVIAIS, DIÂMETRO DE 300MM, JUNTA RÍGIDA, INSTALADO EM LOCAL COM BAIXO NÍVEL DE INTERFERÊNCIAS - FORNECIMENTO E ASSENTAMENTO. AF_12/2015 | C185: M | D185: 146.27 | E185: COMPOSIÇÃO
A186: 95566 | B186: TUBO DE CONCRETO PARA REDES COLETORAS DE ÁGUAS PLUVIAIS, DIÂMETRO DE 300MM, JUNTA RÍGIDA, INSTALADO EM LOCAL COM ALTO NÍVEL DE INTERFERÊNCIAS - FORNECIMENTO E ASSENTAMENTO. AF_12/2015 | C186: M | D186: 153.52 | E186: COMPOSIÇÃO
A187: 95567 | B187: TUBO DE CONCRETO (SIMPLES) PARA REDES COLETORAS DE ÁGUAS PLUVIAIS, DIÂMETRO DE 300 MM, JUNTA RÍGIDA, INSTALADO EM LOCAL COM BAIXO NÍVEL DE INTERFERÊNCIAS - FORNECIMENTO E ASSENTAMENTO. AF_12/2015 | C187: M | D187: 99.59 | E187: COMPOSIÇÃO
A188: 95568 | B188: TUBO DE CONCRETO (SIMPLES) PARA REDES COLETORAS DE ÁGUAS PLUVIAIS, DIÂMETRO DE 400 MM, JUNTA RÍGIDA, INSTALADO EM LOCAL COM BAIXO NÍVEL DE INTERFERÊNCIAS - FORNECIMENTO E ASSENTAMENTO. AF_12/2015 | C188: M | D188: 121.62 | E188: COMPOSIÇÃO
A189: 95569 | B189: TUBO DE CONCRETO (SIMPLES) PARA REDES COLETORAS DE ÁGUAS PLUVIAIS, DIÂMETRO DE 500 MM, JUNTA RÍGIDA, INSTALADO EM LOCAL COM BAIXO NÍVEL DE INTERFERÊNCIAS - FORNECIMENTO E ASSENTAMENTO. AF_12/2015 | C189: M | D189: 167.91 | E189: COMPOSIÇÃO
A190: 95570 | B190: TUBO DE CONCRETO (SIMPLES) PARA REDES COLETORAS DE ÁGUAS PLUVIAIS, DIÂMETRO DE 300 MM, JUNTA RÍGIDA, INSTALADO EM LOCAL COM ALTO NÍVEL DE INTERFERÊNCIAS - FORNECIMENTO E ASSENTAMENTO. AF_12/2015 | C190: M | D190: 106.84 | E190: COMPOSIÇÃO
A191: 95571 | B191: TUBO DE CONCRETO (SIMPLES) PARA REDES COLETORAS DE ÁGUAS PLUVIAIS, DIÂMETRO DE 400 MM, JUNTA RÍGIDA, INSTALADO EM LOCAL COM ALTO NÍVEL DE INTERFERÊNCIAS - FORNECIMENTO E ASSENTAMENTO. AF_12/2015 | C191: M | D191: 130.89 | E191: COMPOSIÇÃO
A192: 95572 | B192: TUBO DE CONCRETO (SIMPLES) PARA REDES COLETORAS DE ÁGUAS PLUVIAIS, DIÂMETRO DE 500 MM, JUNTA RÍGIDA, INSTALADO EM LOCAL COM ALTO NÍVEL DE INTERFERÊNCIAS - FORNECIMENTO E ASSENTAMENTO. AF_12/2015 | C192: M | D192: 179.41 | E192: COMPOSIÇÃO
A193: 97127 | B193: ASSENTAMENTO DE TUBO DE PVC DEFOFO OU PRFV OU RPVC PARA REDE DE ÁGUA, DN 150 MM, JUNTA ELÁSTICA INTEGRADA, INSTALADO EM LOCAL COM NÍVEL ALTO DE INTERFERÊNCIAS (NÃO INCLUI FORNECIMENTO). AF_11/2017 | C193: M | D193: 4.64 | E193: COMPOSIÇÃO
A194: 97128 | B194: ASSENTAMENTO DE TUBO DE PVC DEFOFO OU PRFV OU RPVC PARA REDE DE ÁGUA, DN 200 MM, JUNTA ELÁSTICA INTEGRADA, INSTALADO EM LOCAL COM NÍVEL ALTO DE INTERFERÊNCIAS (NÃO INCLUI FORNECIMENTO). AF_11/2017 | C194: M | D194: 9.39 | E194: COMPOSIÇÃO
A195: 97129 | B195: ASSENTAMENTO DE TUBO DE PVC DEFOFO OU PRFV OU RPVC PARA REDE DE ÁGUA, DN 250 MM, JUNTA ELÁSTICA INTEGRADA, INSTALADO EM LOCAL COM NÍVEL ALTO DE INTERFERÊNCIAS (NÃO INCLUI FORNECIMENTO). AF_11/2017 | C195: M | D195: 11.54 | E195: COMPOSIÇÃO
A196: 97130 | B196: ASSENTAMENTO DE TUBO DE PVC DEFOFO OU PRFV OU RPVC PARA REDE DE ÁGUA, DN 300 MM, JUNTA ELÁSTICA INTEGRADA, INSTALADO EM LOCAL COM NÍVEL ALTO DE INTERFERÊNCIAS (NÃO INCLUI FORNECIMENTO). AF_11/2017 | C196: M | D196: 13.7 | E196: COMPOSIÇÃO
A197: 97131 | B197: ASSENTAMENTO DE TUBO DE PVC DEFOFO OU PRFV OU RPVC PARA REDE DE ÁGUA, DN 350 MM, JUNTA ELÁSTICA INTEGRADA, INSTALADO EM LOCAL COM NÍVEL ALTO DE INTERFERÊNCIAS (NÃO INCLUI FORNECIMENTO). AF_11/2017 | C197: M | D197: 15.85 | E197: COMPOSIÇÃO
A198: 97132 | B198: ASSENTAMENTO DE TUBO DE PVC DEFOFO OU PRFV OU RPVC PARA REDE DE ÁGUA, DN 400 MM, JUNTA ELÁSTICA INTEGRADA, INSTALADO EM LOCAL COM NÍVEL ALTO DE INTERFERÊNCIAS (NÃO INCLUI FORNECIMENTO). AF_11/2017 | C198: M | D198: 17.98 | E198: COMPOSIÇÃO
A199: 97133 | B199: ASSENTAMENTO DE TUBO DE PVC DEFOFO OU PRFV OU RPVC PARA REDE DE ÁGUA, DN 500 MM, JUNTA ELÁSTICA INTEGRADA, INSTALADO EM LOCAL COM NÍVEL ALTO DE INTERFERÊNCIAS (NÃO INCLUI FORNECIMENTO). AF_11/2017 | C199: M | D199: 22.3 | E199: COMPOSIÇÃO
A200: 97134 | B200: ASSENTAMENTO DE TUBO DE PVC DEFOFO OU PRFV OU RPVC PARA REDE DE ÁGUA, DN 150 MM, JUNTA ELÁSTICA INTEGRADA, INSTALADO EM LOCAL COM NÍVEL BAIXO DE INTERFERÊNCIAS (NÃO INCLUI FORNECIMENTO). AF_11/2017 | C200: M | D200: 2.18 | E200: COMPOSIÇÃO
... 12254 more rows
